Ref No,Fund Type,Dept,Cost Centre Description    ,Description    ,Creditor Name    ,GL Code Net Amount,Payment date        
2,Revenue,CAHD,Bed Purchasing - South,Respite Planned - Residential,Chandos House,2314.29, 28-Aug-2018
3,Revenue,CAHD,Bed Purchasing - South,Respite Planned - Residential,Chandos House,1671.43, 28-Aug-2018
4,Revenue,CAHD,18-25 Year Olds,Permanent Residential,1 St Georges House,13021.00, 28-Aug-2018
5,Revenue,CAHD,CSC - Asylum Seekers - Unaccompanied,Training Expenses,1625 Independent People,66.25, 20-Aug-2018
6,Revenue,CAHD,CSC - Asylum Seekers - Unaccompanied,Furniture & Fittings Loose,1625 Independent People,1183.98, 20-Aug-2018
7,Revenue,CAHD,CSC - Asylum Seekers - Unaccompanied,Personal Needs of Clients,1625 Independent People,40.00, 20-Aug-2018
8,Revenue,CAHD,CSC - LAC Housing Support Grants,Grants to Voluntary Bodies,1625 Independent People,3447.50, 23-Aug-2018
9,Revenue,CAHD,CSC - LAC Housing Support Grants,Grants to Voluntary Bodies,1625 Independent People,3265.00, 23-Aug-2018
10,Revenue,CAHD,Supporting People Programme,Grants to Voluntary Bodies,1625 Independent People,18078.00, 01-Aug-2018
11,Revenue,CAHD,Supporting People Programme,Grants to Voluntary Bodies,1625 Independent People,18078.00, 31-Aug-2018
12,Revenue,CAHD,Supporting People Programme,Grants to Voluntary Bodies,1625 Independent People,9811.67, 03-Aug-2018
13,Revenue,CAHD,CSC - Care Leavers Independent Living,Independent Living,16Pluscare Support Solutions,7118.84, 20-Aug-2018
14,Revenue,CAHD,CSC - Care Leavers Independent Living,Adults - Family Support,16Pluscare Support Solutions,3214.96, 20-Aug-2018
15,Revenue,CAHD,Bed Purchasing - North,Permanent Residential,1St Floor Lingfield House,2677.24, 28-Aug-2018
16,Revenue,CAHD,Home Care - Elderly - South,Day Care / Social Activities,3 Trees Community Support Ltd,95.20, 10-Aug-2018
17,Revenue,CAHD,Home Care - Elderly - North,Day Care / Social Activities,3 Trees Community Support Ltd,1042.44, 10-Aug-2018
18,Revenue,CAHD,Home Care - Elderly - North,Other Small Contracts,3 Trees Community Support Ltd,3101.28, 10-Aug-2018
19,Revenue,CAHD,Home Care - Elderly - North,Supported Living,3 Trees Community Support Ltd,5332.01, 10-Aug-2018
20,Revenue,CAHD,Home Care - Elderly - South,Day Care / Social Activities,3 Trees Community Support Ltd,95.20, 10-Aug-2018
21,Revenue,CAHD,Home Care - Elderly - North,Day Care / Social Activities,3 Trees Community Support Ltd,1061.48, 10-Aug-2018
22,Revenue,CAHD,Home Care - Elderly - North,Other Small Contracts,3 Trees Community Support Ltd,3101.28, 10-Aug-2018
23,Revenue,CAHD,Home Care - Elderly - North,Supported Living,3 Trees Community Support Ltd,5437.76, 10-Aug-2018
24,Revenue,CAHD,Home Care - Elderly - South,Day Care / Social Activities,3 Trees Community Support Ltd,95.20, 10-Aug-2018
25,Revenue,CAHD,Home Care - Elderly - North,Day Care / Social Activities,3 Trees Community Support Ltd,1013.88, 10-Aug-2018
26,Revenue,CAHD,Home Care - Elderly - North,Other Small Contracts,3 Trees Community Support Ltd,3101.28, 10-Aug-2018
27,Revenue,CAHD,Home Care - Elderly - North,Supported Living,3 Trees Community Support Ltd,5443.88, 10-Aug-2018
28,Revenue,CAHD,Home Care - Elderly - South,Day Care / Social Activities,3 Trees Community Support Ltd,95.20, 24-Aug-2018
29,Revenue,CAHD,Home Care - Elderly - North,Day Care / Social Activities,3 Trees Community Support Ltd,1056.72, 24-Aug-2018
30,Revenue,CAHD,Home Care - Elderly - North,Other Small Contracts,3 Trees Community Support Ltd,3101.28, 24-Aug-2018
31,Revenue,CAHD,Home Care - Elderly - North,Supported Living,3 Trees Community Support Ltd,5332.69, 24-Aug-2018
32,Revenue,CAHD,Home Care - Elderly - South,Day Care / Social Activities,3 Trees Community Support Ltd,99.96, 29-Aug-2018
33,Revenue,CAHD,Home Care - Elderly - North,Day Care / Social Activities,3 Trees Community Support Ltd,899.64, 29-Aug-2018
34,Revenue,CAHD,Home Care - Elderly - North,Other Small Contracts,3 Trees Community Support Ltd,3101.28, 29-Aug-2018
35,Revenue,CAHD,Home Care - Elderly - North,Supported Living,3 Trees Community Support Ltd,5430.94, 29-Aug-2018
36,Revenue,CAHD,18-25 Year Olds,Permanent Residential,5Th Floor Harlech Court,14897.40, 28-Aug-2018
37,Revenue,CAHD,18-25 Year Olds,Permanent Residential,5Th Floor Harlech Court,15040.44, 28-Aug-2018
38,Revenue,CAHD,18-25 Year Olds,Permanent Residential,5Th Floor Harlech Court,13380.24, 28-Aug-2018
39,Revenue,CAHD,18-25 Year Olds,Permanent Residential,5Th Floor Harlech Court,17792.32, 28-Aug-2018
40,Revenue,CAHD,Bed Purchasing - North,Permanent Residential,5Th Floor Harlech Court,13492.04, 28-Aug-2018
41,Revenue,CAHD,18-25 Year Olds,Permanent Residential,5Th Floor Harlech Court,13505.44, 28-Aug-2018
42,Revenue,CAHD,Bed Purchasing - North,Permanent Residential,5Th Floor Harlech Court,14372.24, 28-Aug-2018
43,Revenue,CAHD,Jointly Funded H&SC Packages,Permanent Residential,5Th Floor Harlech Court,3556.48, 28-Aug-2018
44,Revenue,CAHD,18-25 Year Olds,Permanent Residential,5Th Floor Harlech Court,17021.40, 28-Aug-2018
45,Revenue,CAHD,Bed Purchasing - South,Permanent Residential,5Th Floor Harlech Court,16276.48, 28-Aug-2018
46,Revenue,CAHD,Bed Purchasing - South,Permanent Residential,5Th Floor Harlech Court,10175.32, 28-Aug-2018
47,Revenue,CAHD,Bed purchasing - S28A Under 65 - South,Permanent Residential,5Th Floor Harlech Court,10649.12, 28-Aug-2018
48,Revenue,CAHD,Bed Purchasing - South,Permanent Residential,5Th Floor Harlech Court,11168.36, 28-Aug-2018
49,Revenue,CAHD,Bed Purchasing - South,Permanent Residential,5Th Floor Harlech Court,7425.64, 28-Aug-2018
50,Revenue,CAHD,Jointly Funded H&SC Packages,Permanent Residential,5Th Floor Harlech Court,2743.16, 28-Aug-2018
51,Revenue,CAHD,Minor Adaptations Service,Other Supplies & Services,A L Dalton Ltd t/a Daltons Wadkin,550.00, 31-Aug-2018
52,Revenue,CAHD,CSC - Special Guardianship Orders,Special Payments,Individual,552.60, 10-Aug-2018
53,Revenue,CAHD,CSC - Vinney Green Secure Unit,R & M by Departments,A P Thompson Services Limited,1560.00, 08-Aug-2018
54,Revenue,CAHD,Early Years Inclusion Fund,Other Public Bodies,Abbeywood Tots Day Nursery Ltd,1000.00, 22-Aug-2018
55,Revenue,CAHD,Early Years Inclusion Fund,Other Public Bodies,Abbeywood Tots Day Nursery Ltd,1000.00, 22-Aug-2018
56,Revenue,CAHD,Health Inequalities,Other Small Contracts,Abbotswood Action Group,882.00, 14-Aug-2018
57,Revenue,CAHD,Transport OLA Special Schools and RB,Client Transport,ABC Taxis,1300.00, 24-Aug-2018
58,Revenue,CAHD,Post 16 High Needs Placements,Other Private Contractors,Access To Music Ltd,12000.00, 03-Aug-2018
59,Revenue,CAHD,Section 117 Placements MH Younger,Permanent Residential,Acorn Care Providers,6453.32, 28-Aug-2018
60,Revenue,CAHD,Training - Adult Services,Training Expenses,Acorn Health & Safety Limited,465.00, 09-Aug-2018
61,Revenue,CAHD,Training - Adult Services,Training Expenses,Acorn Health & Safety Limited,462.50, 09-Aug-2018
62,Revenue,CAHD,Training - Adult Services,Training Expenses,Acorn Health & Safety Limited,462.50, 07-Aug-2018
63,Revenue,CAHD,CSC - Agency Fostering,Foster Parent Allowances,Action for Children,3352.34, 28-Aug-2018
64,Revenue,CAHD,CSC - Agency Fostering,Foster Parent Allowances,Action for Children,6975.00, 28-Aug-2018
65,Revenue,CAHD,Home Care - Elderly - North,Other Small Contracts,Advantedge Commercial Finance Limited,766.08, 08-Aug-2018
66,Revenue,CAHD,Home Care - Elderly - South,Other Small Contracts,Advantedge Commercial Finance Limited,2006.40, 03-Aug-2018
67,Revenue,CAHD,Home Care - Elderly - South,Other Small Contracts,Advantedge Commercial Finance Limited,510.72, 01-Aug-2018
68,Revenue,CAHD,Home Care - Elderly - South,Other Small Contracts,Advantedge Commercial Finance Limited,912.00, 03-Aug-2018
69,Revenue,CAHD,Home Care - Elderly - South,Other Small Contracts,Advantedge Commercial Finance Limited,2845.44, 08-Aug-2018
70,Revenue,CAHD,Home Care - Elderly - North,Other Small Contracts,Advantedge Commercial Finance Limited,781.20, 03-Aug-2018
71,Revenue,CAHD,Home Care - Elderly - South,Other Small Contracts,Advantedge Commercial Finance Limited,3031.80, 08-Aug-2018
72,Revenue,CAHD,Home Care - Elderly - South,Other Small Contracts,Advantedge Commercial Finance Limited,558.00, 08-Aug-2018
73,Revenue,CAHD,Home Care - Elderly - South,Other Small Contracts,Advantedge Commercial Finance Limited,2901.60, 03-Aug-2018
74,Revenue,CAHD,Home Care - Elderly - South,Other Small Contracts,Agincare UK Limited,1713.25, 29-Aug-2018
75,Revenue,CAHD,Home Care - Elderly - North,Other Small Contracts,Agincare UK Limited,1228.20, 29-Aug-2018
76,Revenue,CAHD,Home Care - Elderly - South,Other Small Contracts,Agincare UK Limited,1788.90, 29-Aug-2018
77,Revenue,CAHD,Home Care - Elderly - North,Other Small Contracts,Agincare UK Limited,1201.50, 29-Aug-2018
78,Revenue,CAHD,Home Care - Elderly - South,Other Small Contracts,Agincare UK Limited,1744.40, 29-Aug-2018
79,Revenue,CAHD,Home Care - Elderly - North,Other Small Contracts,Agincare UK Limited,1179.25, 29-Aug-2018
80,Revenue,CAHD,Home Care - Elderly - South,Other Small Contracts,Agincare UK Limited,1633.15, 29-Aug-2018
81,Revenue,CAHD,Home Care - Elderly - North,Other Small Contracts,Agincare UK Limited,1188.15, 29-Aug-2018
82,Revenue,CAHD,Extra Care Housing,Private & Voluntary Home Care,Agincare UK Limited,21920.39, 01-Aug-2018
83,Revenue,CAHD,Extra Care Housing,Private & Voluntary Home Care,Agincare UK Limited,21920.39, 31-Aug-2018
84,Revenue,CAHD,Extra Care Housing,Private & Voluntary Home Care,Agincare UK Limited,10674.56, 01-Aug-2018
85,Revenue,CAHD,Extra Care Housing,Private & Voluntary Home Care,Agincare UK Limited,10674.56, 31-Aug-2018
86,Revenue,CAHD,Extra Care Housing,Private & Voluntary Home Care,Agincare UK Limited,25811.00, 03-Aug-2018
87,Revenue,CAHD,Prison Assessments & Costs,Other Supplies & Services,Agincare UK Limited,5385.75, 17-Aug-2018
88,Revenue,CAHD,Home Care - Elderly - South,Other Small Contracts,AliMo Care Ltd,694.64, 02-Aug-2018
89,Revenue,CAHD,Home Care - Elderly - South,Other Small Contracts,AliMo Care Ltd,740.34, 02-Aug-2018
90,Revenue,CAHD,Home Care - Elderly - South,Other Small Contracts,AliMo Care Ltd,799.75, 02-Aug-2018
91,Revenue,CAHD,Home Care - Elderly - South,Other Small Contracts,AliMo Care Ltd,754.05, 16-Aug-2018
92,Revenue,CAHD,Home Care - Elderly - South,Other Small Contracts,AliMo Care Ltd,680.93, 16-Aug-2018
93,Revenue,CAHD,Home Care - Elderly - South,Other Small Contracts,AliMo Care Ltd,502.70, 30-Aug-2018
94,Revenue,CAHD,Bed Purchasing - Southmead Hospital,Permanent Nursing,Allambie Court,2266.04, 28-Aug-2018
95,Revenue,CAHD,Bed Purchasing - Southmead Hospital,Permanent Nursing,Allambie Court,2266.04, 28-Aug-2018
96,Revenue,CAHD,NHS Health Checks,Other Small Contracts,Almondsbury Surgery,759.00, 10-Aug-2018
97,Revenue,CAHD,Bed Purchasing - Southmead Hospital,Permanent Nursing,Amerind Grove Nursing Home,2642.88, 28-Aug-2018
98,Revenue,CAHD,CSC - Agency Fostering,Foster Parent Allowances,Amicus Foster Care Ltd,505.80, 20-Aug-2018
99,Revenue,CAHD,CSC - Agency Fostering,Foster Parent Allowances,Amicus Foster Care Ltd,5397.81, 28-Aug-2018
100,Revenue,CAHD,CSC - Agency Fostering,Foster Parent Allowances,Amicus Foster Care Ltd,4879.00, 28-Aug-2018
101,Revenue,CAHD,CSC - Agency Fostering,Foster Parent Allowances,Amicus Foster Care Ltd,1264.50, 28-Aug-2018
102,Revenue,CAHD,CSC - Agency Fostering,Foster Parent Allowances,Amicus Foster Care Ltd,600.00, 28-Aug-2018
103,Revenue,CAHD,Supporting People Programme,Grants to Voluntary Bodies,Anchor Housing,827.00, 01-Aug-2018
104,Revenue,CAHD,Supporting People Programme,Grants to Voluntary Bodies,Anchor Housing,827.00, 31-Aug-2018
105,Revenue,CAHD,CSC - Section 17 0-25,Preventative Assistance,Angel Care Support Limited,3024.00, 21-Aug-2018
106,Revenue,CAHD,Training Budget - Children`s Social Serv,Training Expenses,Anna Bianchi,755.00, 10-Aug-2018
107,Revenue,CAHD,Childrens - Safeguarding Board,Training Expenses,Anthony Domaille,1350.00, 07-Aug-2018
108,Revenue,CAHD,"Education, Learning and Skills",Premises Hire,Aquaterra Leisure,762.50, 17-Aug-2018
109,Revenue,CAHD,"Education, Learning and Skills",Premises Hire,Aquaterra Leisure,608.75, 06-Aug-2018
110,Revenue,CAHD,Bed Purchasing - South,Permanent Nursing,Ash Grove House,2890.28, 28-Aug-2018
111,Revenue,CAHD,Jointly Funded H&SC Packages,Permanent Residential,Ash View House,1085.36, 28-Aug-2018
112,Revenue,CAHD,Bed Purchasing - South,Permanent Residential,Ash View House,5293.96, 28-Aug-2018
113,Revenue,CAHD,S117 Placements PCT,Permanent Residential,Ash View House,7379.20, 28-Aug-2018
114,Revenue,CAHD,18-25 Year Olds,Permanent Residential,Ash View House,6933.12, 28-Aug-2018
115,Revenue,CAHD,Section 117 Placements MH Younger,Permanent Residential,Ash View House,4808.72, 28-Aug-2018
116,Revenue,CAHD,Jointly Funded H&SC Packages,Permanent Residential,Ash View House,2060.92, 28-Aug-2018
117,Revenue,CAHD,Bed purchasing - Elderly S117 - South,Permanent Residential,Ash View House,6535.92, 28-Aug-2018
118,Revenue,CAHD,18-25 Year Olds,Permanent Residential,Ash View House,6460.48, 28-Aug-2018
119,Revenue,CAHD,Drug and Alcohol Programme,Electricity,Ashville Asset Management Limited,423.80, 09-Aug-2018
120,Revenue,CAHD,Bed Purchasing - North,Permanent Residential,Aspects 2 Limited,7062.40, 28-Aug-2018
121,Revenue,CAHD,Supporting People Programme,Grants to Voluntary Bodies,Aspects and Milestones Trust,3361.00, 01-Aug-2018
122,Revenue,CAHD,Supporting People Programme,Grants to Voluntary Bodies,Aspects and Milestones Trust,1685.00, 01-Aug-2018
123,Revenue,CAHD,Supporting People Programme,Grants to Voluntary Bodies,Aspects and Milestones Trust,3361.00, 31-Aug-2018
124,Revenue,CAHD,Supporting People Programme,Grants to Voluntary Bodies,Aspects and Milestones Trust,1685.00, 31-Aug-2018
125,Revenue,CAHD,CSC - Legal Fees,Legal Fees,Aspire Social Work Services Limited,3462.00, 07-Aug-2018
126,Revenue,CAHD,CSC - Vinney Green Secure Unit,Service Contracts (Premises),Assa Abloy Limited,3010.00, 10-Aug-2018
127,Revenue,CAHD,Bed Purchasing - South,Adults - Family Support,Ategi Limited,10891.12, 28-Aug-2018
128,Revenue,CAHD,Independent Special Placements - Post 16,Other Private Contractors,Aurora Care & Education,85000.00, 22-Aug-2018
129,Revenue,CAHD,Independent Special Placements - Post 16,Other Private Contractors,Aurora Care & Education,62497.60, 22-Aug-2018
130,Revenue,CAHD,Independent Special Placements - Post 16,Other Private Contractors,Aurora Hedgeway School,15154.33, 22-Aug-2018
131,Revenue,CAHD,Independent Special Placements - Post 16,Other Private Contractors,Aurora Hedgeway School,15154.33, 22-Aug-2018
132,Revenue,CAHD,Independent Special Placements - Post 16,Other Private Contractors,Aurora Hedgeway School,15154.33, 22-Aug-2018
133,Revenue,CAHD,Independent Special Placements - Post 16,Other Private Contractors,Aurora Hedgeway School,15154.33, 22-Aug-2018
134,Revenue,CAHD,Independent Special Placements - Post 16,Other Private Contractors,Aurora Hedgeway School,16984.00, 22-Aug-2018
135,Revenue,CAHD,Independent Special Placements - Post 16,Other Private Contractors,Aurora Hedgeway School,15154.33, 22-Aug-2018
136,Revenue,CAHD,Independent Special Placements - Post 16,Other Private Contractors,Aurora Hedgeway School,15154.33, 22-Aug-2018
137,Revenue,CAHD,Independent Special Placements - Post 16,Other Private Contractors,Aurora Hedgeway School,15154.33, 22-Aug-2018
138,Revenue,CAHD,Independent Special Placements - Post 16,Other Private Contractors,Aurora Hedgeway School,22260.33, 22-Aug-2018
139,Revenue,CAHD,Independent Special Placements - Post 16,Other Private Contractors,Aurora Hedgeway School,15154.33, 22-Aug-2018
140,Revenue,CAHD,Independent Special Placements - Post 16,Other Private Contractors,Aurora Hedgeway School,15114.67, 22-Aug-2018
141,Revenue,CAHD,Bed Purchasing - South,Permanent Residential,Autism Specialised Care Homes,6354.36, 28-Aug-2018
142,Revenue,CAHD,Bed Purchasing - South,Permanent Residential,Avery Homes Downend Limited,3800.00, 28-Aug-2018
143,Revenue,CAHD,Bed Purchasing - South,Permanent Residential,Avery Homes Downend Limited,3800.00, 28-Aug-2018
144,Revenue,CAHD,Bed Purchasing - Southmead Hospital,Permanent Residential,Avery Homes Downend Limited,3450.00, 28-Aug-2018
145,Revenue,CAHD,Bed Purchasing - Southmead Hospital,Permanent Residential,Avery Homes Downend Limited,750.00, 28-Aug-2018
146,Revenue,CAHD,Younger Adult Mental Health,Health Services (Third Party Payments),Avon & Wiltshire Mental Health,1693.33, 02-Aug-2018
147,Revenue,CAHD,Early Years High Needs Support,Other Private Contractors,Baker Street Nursery & Pre-School,910.13, 24-Aug-2018
148,Revenue,CAHD,CSC - Adoption Support Fund,Post Adoption,Individual,768.00, 24-Aug-2018
149,Revenue,CAHD,Children & Young People�s Health,Other Small Contracts,Barnardos,7650.00, 03-Aug-2018
150,Revenue,CAHD,Pensions - Non DSG,Annual Pension,Bath & North East Somerset Council,6181.90, 24-Aug-2018
151,Revenue,CAHD,Mental Health and Emotional Wellbeing,Project Funding,Bath & North East Somerset Council,714.00, 08-Aug-2018
152,Revenue,CAHD,Purchase of RAC places,Other L.A.'s - General,Bath & North East Somerset Council,1207.60, 02-Aug-2018
153,Revenue,CAHD,Purchase of RAC places,Other L.A.'s - General,Bath & North East Somerset Council,1772.00, 02-Aug-2018
154,Revenue,CAHD,Pensions - Non DSG,Annual Pension,Bath & North East Somerset Council,110704.03, 15-Aug-2018
155,Revenue,CAHD,Independent Special Placements - Pre 16,Other Private Contractors,Bath Road Priory,77550.00, 24-Aug-2018
156,Revenue,CAHD,Training - Adult Services,Training Expenses,Bawa Healthcare & Leisure,2160.83, 10-Aug-2018
157,Revenue,CAHD,"Education, Learning and Skills",Catering,Bawa Healthcare & Leisure,743.25, 07-Aug-2018
158,Revenue,CAHD,"Education, Learning and Skills",Premises Hire,Bawa Healthcare & Leisure,1155.00, 07-Aug-2018
159,Revenue,CAHD,Pathway 3 - (Complex Beds),Permanent Nursing,Beaufort Care Ltd,5543.00, 16-Aug-2018
160,Revenue,CAHD,South Glos Users in South Glos Homes,Permanent Nursing,Beaufort Grange Care Home,632.64, 28-Aug-2018
161,Revenue,CAHD,South Glos Users in South Glos Homes,Permanent Nursing,Beaufort Grange Care Home,632.64, 28-Aug-2018
162,Revenue,CAHD,South Glos Users in South Glos Homes,Permanent Nursing,Beaufort Grange Care Home,632.64, 28-Aug-2018
163,Revenue,CAHD,South Glos Users in South Glos Homes,Permanent Nursing,Beaufort Grange Care Home,632.64, 28-Aug-2018
164,Revenue,CAHD,South Glos Users in South Glos Homes,Permanent Nursing,Beaufort Grange Care Home,632.64, 28-Aug-2018
165,Revenue,CAHD,South Glos Users in South Glos Homes,Permanent Nursing,Beaufort Grange Care Home,632.64, 28-Aug-2018
166,Revenue,CAHD,South Glos Users in South Glos Homes,Permanent Nursing,Beaufort Grange Care Home,632.64, 28-Aug-2018
167,Revenue,CAHD,South Glos Users in South Glos Homes,Permanent Nursing,Beaufort Grange Care Home,632.64, 28-Aug-2018
168,Revenue,CAHD,South Glos Users in South Glos Homes,Permanent Nursing,Beaufort Grange Care Home,632.64, 28-Aug-2018
169,Revenue,CAHD,South Glos Users in South Glos Homes,Permanent Nursing,Beaufort Grange Care Home,632.64, 28-Aug-2018
170,Revenue,CAHD,Bed Purchasing - Elderly S117- North,Permanent Nursing,Beaufort Grange Care Home,4762.72, 28-Aug-2018
171,Revenue,CAHD,South Glos Users in South Glos Homes,Permanent Nursing,Beaufort Grange Care Home,632.64, 28-Aug-2018
172,Revenue,CAHD,South Glos Users in South Glos Homes,Permanent Nursing,Beaufort Grange Care Home,632.64, 28-Aug-2018
173,Revenue,CAHD,South Glos Users in South Glos Homes,Permanent Nursing,Beaufort Grange Care Home,632.64, 28-Aug-2018
174,Revenue,CAHD,South Glos Users in South Glos Homes,Permanent Nursing,Beaufort Grange Care Home,632.64, 28-Aug-2018
175,Revenue,CAHD,South Glos Users in South Glos Homes,Permanent Nursing,Beaufort Grange Care Home,632.64, 28-Aug-2018
176,Revenue,CAHD,South Glos Users in South Glos Homes,Permanent Nursing,Beaufort Grange Care Home,632.64, 28-Aug-2018
177,Revenue,CAHD,South Glos Users in South Glos Homes,Permanent Nursing,Beaufort Grange Care Home,632.64, 28-Aug-2018
178,Revenue,CAHD,South Glos Users in South Glos Homes,Permanent Nursing,Beaufort Grange Care Home,632.64, 28-Aug-2018
179,Revenue,CAHD,South Glos Users in South Glos Homes,Permanent Nursing,Beaufort Grange Care Home,632.64, 28-Aug-2018
180,Revenue,CAHD,South Glos Users in South Glos Homes,Permanent Nursing,Beaufort Grange Care Home,632.64, 28-Aug-2018
181,Revenue,CAHD,South Glos Users in South Glos Homes,Permanent Nursing,Beaufort Grange Care Home,632.64, 28-Aug-2018
182,Revenue,CAHD,Bed Purchasing - North,Permanent Residential,Beaufort House,2489.80, 28-Aug-2018
183,Revenue,CAHD,Bed Purchasing - Southmead Hospital,Permanent Nursing,Beaufort House,2800.00, 28-Aug-2018
184,Revenue,CAHD,Bed Purchasing - Southmead Hospital,Permanent Residential,Beaufort House,2710.56, 28-Aug-2018
185,Revenue,CAHD,Bed Purchasing - North,Permanent Residential,Beaufort House,2511.12, 28-Aug-2018
186,Revenue,CAHD,Bed Purchasing - South,Permanent Residential,Beaufort House,2477.40, 28-Aug-2018
187,Revenue,CAHD,Bed Purchasing - South,Permanent Residential,Beaufort House,10727.28, 28-Aug-2018
188,Revenue,CAHD,Bed Purchasing - South,Permanent Residential,Beaufort House,2383.84, 28-Aug-2018
189,Revenue,CAHD,Bed Purchasing - South,Fees & Charges Income - General,Beaufort House,3880.54, 28-Aug-2018
190,Revenue,CAHD,Bed Purchasing - Central,Permanent Residential,Beaufort House,2800.00, 28-Aug-2018
191,Revenue,CAHD,Bed Purchasing - Southmead Hospital,Respite Planned - Residential,Beaufort House,2710.56, 28-Aug-2018
192,Revenue,CAHD,Bed Purchasing - North,Permanent Residential,Beaufort House,2453.56, 28-Aug-2018
193,Revenue,CAHD,Bed Purchasing - Southmead Hospital,Permanent Residential,Beaufort House,2710.56, 28-Aug-2018
194,Revenue,CAHD,Bed Purchasing - North,Permanent Residential,Beaufort House,2636.64, 28-Aug-2018
195,Revenue,CAHD,Bed Purchasing - South,Permanent Residential,Beaufort House,2649.40, 28-Aug-2018
196,Revenue,CAHD,Bed Purchasing - Southmead Hospital,Permanent Residential,Beaufort House,2683.84, 28-Aug-2018
197,Revenue,CAHD,South Glos Users in South Glos Homes,Permanent Nursing,Beech House,632.64, 28-Aug-2018
198,Revenue,CAHD,Bed Purchasing - South,Permanent Residential,Beech House,2890.28, 28-Aug-2018
199,Revenue,CAHD,South Glos Users in South Glos Homes,Permanent Nursing,Beech House,632.64, 28-Aug-2018
200,Revenue,CAHD,Bed Purchasing - Southmead Hospital,Permanent Residential,Beech House,4055.64, 28-Aug-2018
201,Revenue,CAHD,South Glos Users in South Glos Homes,Permanent Nursing,Beech House,632.64, 28-Aug-2018
202,Revenue,CAHD,South Glos Users in South Glos Homes,Permanent Nursing,Beech House,632.64, 28-Aug-2018
203,Revenue,CAHD,South Glos Users in South Glos Homes,Permanent Nursing,Beech House,632.64, 28-Aug-2018
204,Revenue,CAHD,Bed Purchasing - North,Permanent Nursing,Beech House,2761.24, 28-Aug-2018
205,Revenue,CAHD,South Glos Users in South Glos Homes,Permanent Nursing,Beech House,632.64, 28-Aug-2018
206,Revenue,CAHD,South Glos Users in South Glos Homes,Permanent Nursing,Beech House,632.64, 28-Aug-2018
207,Revenue,CAHD,Bed Purchasing - North,Permanent Nursing,Beech House,3088.64, 28-Aug-2018
208,Revenue,CAHD,South Glos Users in South Glos Homes,Permanent Nursing,Beech House,632.64, 28-Aug-2018
209,Revenue,CAHD,Bed Purchasing - North,Permanent Nursing,Beech House,3464.60, 28-Aug-2018
210,Revenue,CAHD,South Glos Users in South Glos Homes,Permanent Nursing,Beech House,632.64, 28-Aug-2018
211,Revenue,CAHD,Bed Purchasing - North,Permanent Residential,Beech House,2890.28, 28-Aug-2018
212,Revenue,CAHD,South Glos Users in South Glos Homes,Permanent Nursing,Beech House,632.64, 28-Aug-2018
213,Revenue,CAHD,South Glos Users in South Glos Homes,Permanent Nursing,Beech House,632.64, 28-Aug-2018
214,Revenue,CAHD,South Glos Users in South Glos Homes,Permanent Nursing,Beech House,632.64, 28-Aug-2018
215,Revenue,CAHD,South Glos Users in South Glos Homes,Permanent Nursing,Beech House,632.64, 28-Aug-2018
216,Revenue,CAHD,South Glos Users in South Glos Homes,Permanent Nursing,Beech House,632.64, 28-Aug-2018
217,Revenue,CAHD,South Glos Users in South Glos Homes,Permanent Nursing,Beech House,632.64, 28-Aug-2018
218,Revenue,CAHD,Bed Purchasing - North,Permanent Residential,Beech House,3974.12, 28-Aug-2018
219,Revenue,CAHD,Bed Purchasing - Southmead Hospital,Permanent Residential,Beech House,3749.92, 28-Aug-2018
220,Revenue,CAHD,South Glos Users in South Glos Homes,Permanent Nursing,Beech House,632.64, 28-Aug-2018
221,Revenue,CAHD,South Glos Users in South Glos Homes,Permanent Nursing,Beech House,632.64, 28-Aug-2018
222,Revenue,CAHD,South Glos Users in South Glos Homes,Permanent Nursing,Beech House,632.64, 28-Aug-2018
223,Revenue,CAHD,South Glos Users in South Glos Homes,Permanent Nursing,Beech House,632.64, 28-Aug-2018
224,Revenue,CAHD,Bed Purchasing - North,Permanent Nursing,Beech House,3362.72, 28-Aug-2018
225,Revenue,CAHD,South Glos Users in South Glos Homes,Permanent Nursing,Beech House,632.64, 28-Aug-2018
226,Revenue,CAHD,Bed Purchasing - North,Permanent Nursing,Beech House,3229.92, 28-Aug-2018
227,Revenue,CAHD,South Glos Users in South Glos Homes,Permanent Nursing,Beech House,632.64, 28-Aug-2018
228,Revenue,CAHD,South Glos Users in South Glos Homes,Permanent Nursing,Beech House,632.64, 28-Aug-2018
229,Revenue,CAHD,South Glos Users in South Glos Homes,Permanent Nursing,Beech House,632.64, 28-Aug-2018
230,Revenue,CAHD,Bed Purchasing - Southmead Hospital,Permanent Residential,Beech House,3423.60, 28-Aug-2018
231,Revenue,CAHD,Statemented Support Payments to OLAs,Other L.A.'s - General,Beechen Cliff School,718.49, 23-Aug-2018
232,Revenue,CAHD,0-25 Education Support Team,Training Expenses,Ben Rosamond,1929.00, 08-Aug-2018
233,Revenue,CAHD,CSC - Section 17 0-25,Preventative Assistance,Bibby Factors Leicester Limited,504.00, 22-Aug-2018
234,Revenue,CAHD,CSC - Section 17 0-25,Preventative Assistance,Bibby Factors Leicester Limited,504.00, 21-Aug-2018
235,Revenue,CAHD,Bed Purchasing - Southmead Hospital,Permanent Nursing,Bloomfield Care Centre,4367.36, 28-Aug-2018
236,Revenue,CAHD,South Glos Users in South Glos Homes,Permanent Nursing,Blossom Field,632.64, 28-Aug-2018
237,Revenue,CAHD,Bed Purchasing - Elderly S117- North,Permanent Nursing,Blossom Field,3607.00, 28-Aug-2018
238,Revenue,CAHD,South Glos Users in South Glos Homes,Permanent Nursing,Blossom Field,632.64, 28-Aug-2018
239,Revenue,CAHD,South Glos Users in South Glos Homes,Permanent Nursing,Blossom Field,632.64, 28-Aug-2018
240,Revenue,CAHD,South Glos Users in South Glos Homes,Permanent Nursing,Blossom Field,632.64, 28-Aug-2018
241,Revenue,CAHD,Bed Purchasing - North,Permanent Nursing,Blossom Field,3080.00, 28-Aug-2018
242,Revenue,CAHD,South Glos Users in South Glos Homes,Permanent Nursing,Blossom Field,632.64, 28-Aug-2018
243,Revenue,CAHD,South Glos Users in South Glos Homes,Permanent Nursing,Blossom Field,632.64, 28-Aug-2018
244,Revenue,CAHD,South Glos Users in South Glos Homes,Permanent Nursing,Blossom Field,632.64, 28-Aug-2018
245,Revenue,CAHD,South Glos Users in South Glos Homes,Permanent Nursing,Blossom Field,632.64, 28-Aug-2018
246,Revenue,CAHD,South Glos Users in South Glos Homes,Permanent Nursing,Blossom Field,632.64, 28-Aug-2018
247,Revenue,CAHD,South Glos Users in South Glos Homes,Permanent Nursing,Blossom Field,632.64, 28-Aug-2018
248,Revenue,CAHD,Bed Purchasing - South,Permanent Nursing,Blossom Field,4309.64, 28-Aug-2018
249,Revenue,CAHD,South Glos Users in South Glos Homes,Permanent Nursing,Blossom Field,632.64, 28-Aug-2018
250,Revenue,CAHD,South Glos Users in South Glos Homes,Permanent Nursing,Blossom Field,632.64, 28-Aug-2018
251,Revenue,CAHD,South Glos Users in South Glos Homes,Permanent Nursing,Blossom Field,632.64, 28-Aug-2018
252,Revenue,CAHD,Bed Purchasing - North,Permanent Nursing,Blossom Field,4687.40, 28-Aug-2018
253,Revenue,CAHD,South Glos Users in South Glos Homes,Permanent Nursing,Blossom Field,632.64, 28-Aug-2018
254,Revenue,CAHD,South Glos Users in South Glos Homes,Permanent Nursing,Blossom Field,632.64, 28-Aug-2018
255,Revenue,CAHD,South Glos Users in South Glos Homes,Permanent Nursing,Blossom Field,632.64, 28-Aug-2018
256,Revenue,CAHD,South Glos Users in South Glos Homes,Permanent Nursing,Blossom Field,632.64, 28-Aug-2018
257,Revenue,CAHD,South Glos Users in South Glos Homes,Permanent Nursing,Blossom Field,632.64, 28-Aug-2018
258,Revenue,CAHD,Bed Purchasing - South,Permanent Nursing,Blossom Field,3932.19, 28-Aug-2018
259,Revenue,CAHD,South Glos Users in South Glos Homes,Permanent Nursing,Blossom Field,542.26, 28-Aug-2018
260,Revenue,CAHD,Bed Purchasing - North,Permanent Nursing,Blossom Field,4259.20, 28-Aug-2018
261,Revenue,CAHD,South Glos Users in South Glos Homes,Permanent Nursing,Blossom Field,632.64, 28-Aug-2018
262,Revenue,CAHD,Bed Purchasing - North,Permanent Nursing,Blossom Field,3896.72, 28-Aug-2018
263,Revenue,CAHD,South Glos Users in South Glos Homes,Permanent Nursing,Blossom Field,632.64, 28-Aug-2018
264,Revenue,CAHD,South Glos Users in South Glos Homes,Permanent Nursing,Blossom Field,632.64, 28-Aug-2018
265,Revenue,CAHD,Bed Purchasing - North,Permanent Nursing,Blossom Field,3549.76, 28-Aug-2018
266,Revenue,CAHD,South Glos Users in South Glos Homes,Permanent Nursing,Blossom Field,632.64, 28-Aug-2018
267,Revenue,CAHD,South Glos Users in South Glos Homes,Permanent Nursing,Blossom Field,632.64, 28-Aug-2018
268,Revenue,CAHD,Bed Purchasing - North,Permanent Residential,Bluebells,3612.88, 28-Aug-2018
269,Revenue,CAHD,Home Care - Elderly - South,Other Small Contracts,Bluebird Care (South Gloucestershire),231.44, 02-Aug-2018
270,Revenue,CAHD,Home Care - Elderly - North,Other Small Contracts,Bluebird Care (South Gloucestershire),1545.23, 02-Aug-2018
271,Revenue,CAHD,Home Care - Elderly - South,Other Small Contracts,Bluebird Care (South Gloucestershire),226.18, 03-Aug-2018
272,Revenue,CAHD,Home Care - Elderly - North,Other Small Contracts,Bluebird Care (South Gloucestershire),1785.14, 03-Aug-2018
273,Revenue,CAHD,Pathway 1 - Re-Ablement Home Care,Other Small Contracts,Bluebird Care (South Gloucestershire),581.85, 10-Aug-2018
274,Revenue,CAHD,CSC - Fostering Carer Support,Advertising - General,Bommel UK Ltd,3000.00, 03-Aug-2018
275,Revenue,CAHD,Bed purchasing - S28A Under 65 - South,Permanent Residential,Bradbury House,4946.40, 28-Aug-2018
276,Revenue,CAHD,18-25 Year Olds,Permanent Residential,Bradbury House,9684.64, 28-Aug-2018
277,Revenue,CAHD,Bed Purchasing - North,Permanent Residential,Bradbury House,6065.96, 28-Aug-2018
278,Revenue,CAHD,Jointly Funded H&SC Packages,Permanent Residential,Bradbury House,8379.40, 28-Aug-2018
279,Revenue,CAHD,Bed Purchasing - North,Permanent Residential,Bradbury House,2751.32, 28-Aug-2018
280,Revenue,CAHD,Sexual Health,Other Small Contracts,Bradley Stoke Surgery,1014.00, 24-Aug-2018
281,Revenue,CAHD,NHS Health Checks,Other Small Contracts,Bradley Stoke Surgery,5589.00, 10-Aug-2018
282,Revenue,CAHD,Sexual Health,Other Small Contracts,Bradley Stoke Surgery,2012.50, 03-Aug-2018
283,Revenue,CAHD,Sexual Health,Other Small Contracts,Bradley Stoke Surgery,2085.38, 03-Aug-2018
284,Revenue,CAHD,Home Care - Elderly - North,Other Small Contracts,Bramble Home Care Limited,976.08, 15-Aug-2018
285,Revenue,CAHD,Home Care - Elderly - North,Other Small Contracts,Bramble Home Care Limited,996.00, 15-Aug-2018
286,Revenue,CAHD,Home Care - Elderly - North,Other Small Contracts,Bramble Home Care Limited,986.04, 15-Aug-2018
287,Revenue,CAHD,Home Care - Elderly - North,Other Small Contracts,Bramble Home Care Limited,1115.52, 15-Aug-2018
288,Revenue,CAHD,Home Care - Elderly - North,Other Small Contracts,Bramble Home Care Limited,557.76, 15-Aug-2018
289,Revenue,CAHD,Home Care - Elderly - North,Other Small Contracts,Bramble Home Care Limited,627.48, 15-Aug-2018
290,Revenue,CAHD,Home Care - Elderly - North,Other Small Contracts,Bramble Home Care Limited,747.00, 22-Aug-2018
291,Revenue,CAHD,Home Care - Elderly - North,Other Small Contracts,Bramble Home Care Limited,827.72, 15-Aug-2018
292,Revenue,CAHD,Home Care - Elderly - North,Other Small Contracts,Bramble Home Care Limited,747.00, 24-Aug-2018
293,Revenue,CAHD,Social Lettings Agency,Fees - General,Individual,11.41, 03-Aug-2018
294,Revenue,CAHD,Social Lettings Agency,Other Supplies & Services,Individual,746.54, 03-Aug-2018
295,Revenue,CAHD,Bed Purchasing - Southmead Hospital,Permanent Residential,Bridge House Care Home,2469.12, 28-Aug-2018
296,Revenue,CAHD,Bed Purchasing - North,Permanent Residential,Bridge House Care Home,2427.40, 28-Aug-2018
297,Revenue,CAHD,Bed Purchasing - North,Permanent Residential,Bridgwater Court,10521.12, 28-Aug-2018
298,Revenue,CAHD,Early Years Inclusion Fund,Other Public Bodies,Bright Sparks Pre-School,5300.00, 20-Aug-2018
299,Revenue,CAHD,Statemented Support Academies,Schools Funding,Bristol & South Gloucestershire UTC,7298.24, 23-Aug-2018
300,Revenue,CAHD,Health Inequalities,Other Small Contracts,Bristol Area Stroke Foundation,650.00, 14-Aug-2018
301,Revenue,CAHD,Research & Conferences,Other Supplies & Services,Bristol City Council,15000.00, 15-Aug-2018
302,Revenue,CAHD,Sexual Health,Other Small Contracts,Bristol City Council,236277.25, 06-Aug-2018
303,Revenue,CAHD,A & CL - Employability 17/18,Consultants Fees,Bristol City Council,1453.72, 07-Aug-2018
304,Revenue,CAHD,Mental Health and Emotional Wellbeing,Project Funding,Bristol City Council,710.00, 21-Aug-2018
305,Revenue,CAHD,A & CL - Functional Skills 17/18,Examination Fees,Bristol City Council,1446.60, 14-Aug-2018
306,Revenue,CAHD,Placements OLA Special Schools and RB,Other L.A.'s - General,Bristol City Council - Schools,2050.17, 29-Aug-2018
307,Revenue,CAHD,Placements OLA Special Schools and RB,Other L.A.'s - General,Bristol City Council - Schools,2578.00, 29-Aug-2018
308,Revenue,CAHD,Placements OLA Special Schools and RB,Other L.A.'s - General,Bristol City Council - Schools,1350.17, 29-Aug-2018
309,Revenue,CAHD,Statemented Support Payments to OLAs,Other L.A.'s - General,Bristol City Council - Schools,1378.83, 23-Aug-2018
310,Revenue,CAHD,Statemented Support Payments to OLAs,Other L.A.'s - General,Bristol City Council - Schools,1296.28, 23-Aug-2018
311,Revenue,CAHD,Placements OLA Special Schools and RB,Other L.A.'s - General,Bristol City Council - Schools,914.33, 29-Aug-2018
312,Revenue,CAHD,Placements OLA Special Schools and RB,Other L.A.'s - General,Bristol City Council - Schools,2578.00, 29-Aug-2018
313,Revenue,CAHD,Placements OLA Special Schools and RB,Other L.A.'s - General,Bristol City Council - Schools,1305.58, 29-Aug-2018
314,Revenue,CAHD,Placements OLA Special Schools and RB,Other L.A.'s - General,Bristol City Council - Schools,1244.17, 29-Aug-2018
315,Revenue,CAHD,Placements OLA Special Schools and RB,Other L.A.'s - General,Bristol City Council - Schools,3356.33, 29-Aug-2018
316,Revenue,CAHD,Placements OLA Special Schools and RB,Other L.A.'s - General,Bristol City Council - Schools,5222.32, 29-Aug-2018
317,Revenue,CAHD,Statemented Support Payments to OLAs,Other L.A.'s - General,Bristol City Council - Schools,907.16, 23-Aug-2018
318,Revenue,CAHD,Placements OLA Special Schools and RB,Other L.A.'s - General,Bristol City Council - Schools,2578.00, 29-Aug-2018
319,Revenue,CAHD,Placements OLA Special Schools and RB,Other L.A.'s - General,Bristol City Council - Schools,1381.00, 29-Aug-2018
320,Revenue,CAHD,Placements OLA Special Schools and RB,Other L.A.'s - General,Bristol City Council - Schools,2050.17, 29-Aug-2018
321,Revenue,CAHD,Placements OLA Special Schools and RB,Other L.A.'s - General,Bristol City Council - Schools,914.33, 29-Aug-2018
322,Revenue,CAHD,Placements OLA Special Schools and RB,Other L.A.'s - General,Bristol City Council - Schools,1381.00, 29-Aug-2018
323,Revenue,CAHD,Placements OLA Special Schools and RB,Other L.A.'s - General,Bristol City Council - Schools,2050.17, 29-Aug-2018
324,Revenue,CAHD,Placements OLA Special Schools and RB,Other L.A.'s - General,Bristol City Council - Schools,2578.00, 29-Aug-2018
325,Revenue,CAHD,Placements OLA Special Schools and RB,Other L.A.'s - General,Bristol City Council - Schools,809.00, 29-Aug-2018
326,Revenue,CAHD,Placements OLA Special Schools and RB,Other L.A.'s - General,Bristol City Council - Schools,883.50, 29-Aug-2018
327,Revenue,CAHD,Placements OLA Special Schools and RB,Other L.A.'s - General,Bristol City Council - Schools,4107.54, 29-Aug-2018
328,Revenue,CAHD,Placements OLA Special Schools and RB,Other L.A.'s - General,Bristol City Council - Schools,1031.20, 29-Aug-2018
329,Revenue,CAHD,Placements OLA Special Schools and RB,Other L.A.'s - General,Bristol City Council - Schools,2578.00, 29-Aug-2018
330,Revenue,CAHD,Placements OLA Special Schools and RB,Other L.A.'s - General,Bristol City Council - Schools,809.00, 29-Aug-2018
331,Revenue,CAHD,Placements OLA Special Schools and RB,Other L.A.'s - General,Bristol City Council - Schools,2578.00, 29-Aug-2018
332,Revenue,CAHD,Placements OLA Special Schools and RB,Other L.A.'s - General,Bristol City Council - Schools,883.50, 29-Aug-2018
333,Revenue,CAHD,Placements OLA Special Schools and RB,Other L.A.'s - General,Bristol City Council - Schools,2062.40, 29-Aug-2018
334,Revenue,CAHD,Placements OLA Special Schools and RB,Other L.A.'s - General,Bristol City Council - Schools,2578.00, 29-Aug-2018
335,Revenue,CAHD,Placements OLA Special Schools and RB,Other L.A.'s - General,Bristol City Council - Schools,2859.33, 29-Aug-2018
336,Revenue,CAHD,Placements OLA Special Schools and RB,Other L.A.'s - General,Bristol City Council - Schools,883.50, 29-Aug-2018
337,Revenue,CAHD,Home Care - Elderly - South,Day Care / Social Activities,Bristol Houses UK Limited,742.80, 08-Aug-2018
338,Revenue,CAHD,Training - Adult Services,Training Expenses,Bristol MIND,1900.00, 08-Aug-2018
339,Revenue,CAHD,Health Inequalities,Other Small Contracts,Bristol Rovers Community Trust,630.00, 14-Aug-2018
340,Revenue,CAHD,Statemented Support Payments to OLAs,Other L.A.'s - General,Broadlands Academy,1331.66, 23-Aug-2018
341,Revenue,CAHD,South Glos Users in South Glos Homes,Permanent Nursing,Brunelcare,700.42, 10-Aug-2018
342,Revenue,CAHD,South Glos Users in South Glos Homes,Permanent Nursing,Brunelcare,700.42, 10-Aug-2018
343,Revenue,CAHD,South Glos Users in South Glos Homes,Permanent Nursing,Brunelcare,700.42, 10-Aug-2018
344,Revenue,CAHD,South Glos Users in South Glos Homes,Permanent Nursing,Brunelcare,700.42, 10-Aug-2018
345,Revenue,CAHD,South Glos Users in South Glos Homes,Permanent Nursing,Brunelcare,700.42, 10-Aug-2018
346,Revenue,CAHD,South Glos Users in South Glos Homes,Permanent Nursing,Brunelcare,700.42, 10-Aug-2018
347,Revenue,CAHD,South Glos Users in South Glos Homes,Permanent Nursing,Brunelcare,700.42, 10-Aug-2018
348,Revenue,CAHD,South Glos Users in South Glos Homes,Permanent Nursing,Brunelcare,700.42, 10-Aug-2018
349,Revenue,CAHD,South Glos Users in South Glos Homes,Permanent Nursing,Brunelcare,700.42, 10-Aug-2018
350,Revenue,CAHD,South Glos Users in South Glos Homes,Permanent Nursing,Brunelcare,700.42, 10-Aug-2018
351,Revenue,CAHD,South Glos Users in South Glos Homes,Permanent Nursing,Brunelcare,700.42, 10-Aug-2018
352,Revenue,CAHD,South Glos Users in South Glos Homes,Permanent Nursing,Brunelcare,700.42, 10-Aug-2018
353,Revenue,CAHD,South Glos Users in South Glos Homes,Permanent Nursing,Brunelcare,700.42, 10-Aug-2018
354,Revenue,CAHD,South Glos Users in South Glos Homes,Permanent Nursing,Brunelcare,700.42, 10-Aug-2018
355,Revenue,CAHD,South Glos Users in South Glos Homes,Permanent Nursing,Brunelcare,926.37, 10-Aug-2018
356,Revenue,CAHD,Bed purchasing - Elderly S117 - South,Permanent Nursing,Brunelcare,4283.54, 10-Aug-2018
357,Revenue,CAHD,Bed purchasing - Elderly S117 - South,Permanent Nursing,Brunelcare,3583.11, 10-Aug-2018
358,Revenue,CAHD,Bed purchasing - Elderly S117 - South,Permanent Nursing,Brunelcare,3351.94, 10-Aug-2018
359,Revenue,CAHD,Bed Purchasing - Elderly S117- North,Permanent Nursing,Brunelcare,3583.11, 10-Aug-2018
360,Revenue,CAHD,Bed Purchasing - Elderly S117- North,Permanent Nursing,Brunelcare,3583.11, 10-Aug-2018
361,Revenue,CAHD,Bed Purchasing - Southmead Hospital,Permanent Nursing,Brunelcare,2415.56, 10-Aug-2018
362,Revenue,CAHD,Bed Purchasing - Southmead Hospital,Permanent Nursing,Brunelcare,2971.53, 10-Aug-2018
363,Revenue,CAHD,Bed Purchasing - South,Permanent Nursing,Brunelcare,2971.53, 10-Aug-2018
364,Revenue,CAHD,Bed Purchasing - South,Permanent Nursing,Brunelcare,2615.87, 10-Aug-2018
365,Revenue,CAHD,Bed Purchasing - South,Permanent Nursing,Brunelcare,2769.19, 10-Aug-2018
366,Revenue,CAHD,Bed Purchasing - South,Permanent Nursing,Brunelcare,3002.53, 10-Aug-2018
367,Revenue,CAHD,Bed Purchasing - South,Permanent Nursing,Brunelcare,2616.75, 10-Aug-2018
368,Revenue,CAHD,Enhanced Dementia Beds,Respite Planned - Nursing,Brunelcare,4291.29, 10-Aug-2018
369,Revenue,CAHD,Bed Purchasing - South,Respite Planned - Nursing,Brunelcare,1502.60, 10-Aug-2018
370,Revenue,CAHD,Bed Purchasing - North,Permanent Nursing,Brunelcare,2929.99, 10-Aug-2018
371,Revenue,CAHD,Bed Purchasing - North,Permanent Nursing,Brunelcare,2884.46, 10-Aug-2018
372,Revenue,CAHD,Bed Purchasing - North,Permanent Nursing,Brunelcare,2971.53, 10-Aug-2018
373,Revenue,CAHD,Bed Purchasing - North,Permanent Nursing,Brunelcare,3583.11, 10-Aug-2018
374,Revenue,CAHD,Bed Purchasing - North,Respite Planned - Nursing,Brunelcare,809.09, 10-Aug-2018
375,Revenue,CAHD,Bed Purchasing - North,Respite Planned - Nursing,Brunelcare,924.67, 10-Aug-2018
376,Revenue,CAHD,Bed purchasing - Elderly S117 - South,Permanent Nursing,Brunelcare,6357.14, 10-Aug-2018
377,Revenue,CAHD,Enhanced Dementia Beds,Respite Planned - Nursing,Brunelcare,809.09, 10-Aug-2018
378,Revenue,CAHD,Pathway 2 - (Interim Beds),Permanent Nursing,Brunelcare,45201.00, 02-Aug-2018
379,Revenue,CAHD,Pathway 2 - (Interim Beds),Permanent Nursing,Brunelcare,17511.00, 16-Aug-2018
380,Revenue,CAHD,Home Care - Elderly - South,Day Care / Social Activities,Brunelcare,154.70, 02-Aug-2018
381,Revenue,CAHD,Home Care - Elderly - South,Other Small Contracts,Brunelcare,13609.05, 02-Aug-2018
382,Revenue,CAHD,Home Care - Elderly - North,Other Small Contracts,Brunelcare,2848.30, 02-Aug-2018
383,Revenue,CAHD,Home Care - Elderly - South,Day Care / Social Activities,Brunelcare,154.70, 07-Aug-2018
384,Revenue,CAHD,Home Care - Elderly - South,Other Small Contracts,Brunelcare,17913.44, 07-Aug-2018
385,Revenue,CAHD,Home Care - Elderly - North,Other Small Contracts,Brunelcare,2361.45, 07-Aug-2018
386,Revenue,CAHD,Home Care - Elderly - South,Day Care / Social Activities,Brunelcare,163.80, 30-Aug-2018
387,Revenue,CAHD,Home Care - Elderly - South,Other Small Contracts,Brunelcare,23755.55, 30-Aug-2018
388,Revenue,CAHD,Home Care - Elderly - North,Other Small Contracts,Brunelcare,2343.25, 30-Aug-2018
389,Revenue,CAHD,Home Care - Elderly - South,Day Care / Social Activities,Brunelcare,168.35, 17-Aug-2018
390,Revenue,CAHD,Home Care - Elderly - South,Other Small Contracts,Brunelcare,25420.85, 17-Aug-2018
391,Revenue,CAHD,Home Care - Elderly - North,Other Small Contracts,Brunelcare,1715.35, 17-Aug-2018
392,Revenue,CAHD,Home Care - Elderly - South,Other Small Contracts,Brunelcare,25493.65, 21-Aug-2018
393,Revenue,CAHD,Home Care - Elderly - North,Other Small Contracts,Brunelcare,1820.00, 21-Aug-2018
394,Revenue,CAHD,Home Care - Elderly - South,Other Small Contracts,Brunelcare,25097.80, 23-Aug-2018
395,Revenue,CAHD,Home Care - Elderly - North,Other Small Contracts,Brunelcare,1874.60, 23-Aug-2018
396,Revenue,CAHD,Home Care - Elderly - South,Other Small Contracts,Brunelcare,25530.05, 30-Aug-2018
397,Revenue,CAHD,Home Care - Elderly - North,Other Small Contracts,Brunelcare,1779.05, 30-Aug-2018
398,Revenue,CAHD,Pathway 1 - Re-Ablement Home Care,Other Small Contracts,Brunelcare,70000.00, 24-Aug-2018
399,Revenue,CAHD,Pathway 1 - Re-Ablement Home Care,Other Small Contracts,Brunelcare,1041.95, 08-Aug-2018
400,Revenue,CAHD,Pathway 1 - Re-Ablement Home Care,Other Small Contracts,Brunelcare,1037.40, 30-Aug-2018
401,Revenue,CAHD,Pathway 1 - Re-Ablement Home Care,Other Small Contracts,Brunelcare,1196.65, 30-Aug-2018
402,Revenue,CAHD,Pathway 1 - Re-Ablement Home Care,Other Small Contracts,Brunelcare,1274.00, 30-Aug-2018
403,Revenue,CAHD,Pathway 1 - Re-Ablement Home Care,Other Small Contracts,Brunelcare,1437.80, 30-Aug-2018
404,Revenue,CAHD,Pathway 1 - Re-Ablement Home Care,Other Small Contracts,Brunelcare,1533.35, 30-Aug-2018
405,Revenue,CAHD,Pathway 1 - Re-Ablement Home Care,Other Small Contracts,Brunelcare,655.20, 30-Aug-2018
406,Revenue,CAHD,Pathway 1 - Re-Ablement Home Care,Other Small Contracts,Brunelcare,1929.20, 08-Aug-2018
407,Revenue,CAHD,Pathway 1 - Re-Ablement Home Care,Other Small Contracts,Brunelcare,1301.30, 08-Aug-2018
408,Revenue,CAHD,Jointly Funded H&SC Packages,Permanent Nursing,Bupa Care Services  Bridge House,1121.02, 28-Aug-2018
409,Revenue,CAHD,South Glos Users in all other LA Homes,Permanent Nursing,Bupa Care Services  Bridge House,870.36, 28-Aug-2018
410,Revenue,CAHD,Bed Purchasing - North,Permanent Nursing,Bupa Care Services  Bridge House,3800.00, 28-Aug-2018
411,Revenue,CAHD,Academy Resource Base Funding,Other Public Bodies,Cabot Learning Federation,1175.88, 24-Aug-2018
412,Revenue,CAHD,Academy Resource Base Funding,Other Public Bodies,Cabot Learning Federation,1540.83, 24-Aug-2018
413,Revenue,CAHD,Academy Resource Base Funding,Other Public Bodies,Cabot Learning Federation,1702.96, 24-Aug-2018
414,Revenue,CAHD,Academy Resource Base Funding,Other Public Bodies,Cabot Learning Federation,1175.88, 24-Aug-2018
415,Revenue,CAHD,Academy Resource Base Funding,Other Public Bodies,Cabot Learning Federation,1540.83, 24-Aug-2018
416,Revenue,CAHD,Academy Resource Base Funding,Other Public Bodies,Cabot Learning Federation,1175.88, 24-Aug-2018
417,Revenue,CAHD,Academy Resource Base Funding,Other Public Bodies,Cabot Learning Federation,1540.83, 24-Aug-2018
418,Revenue,CAHD,Academy Resource Base Funding,Other Public Bodies,Cabot Learning Federation,1175.88, 24-Aug-2018
419,Revenue,CAHD,Academy Resource Base Funding,Other Public Bodies,Cabot Learning Federation,648.71, 24-Aug-2018
420,Revenue,CAHD,Academy Resource Base Funding,Other Public Bodies,Cabot Learning Federation,1702.96, 24-Aug-2018
421,Revenue,CAHD,Academy Resource Base Funding,Other Public Bodies,Cabot Learning Federation,1540.83, 24-Aug-2018
422,Revenue,CAHD,Academy Resource Base Funding,Other Public Bodies,Cabot Learning Federation,892.04, 24-Aug-2018
423,Revenue,CAHD,Statemented Support Payments to OLAs,Other L.A.'s - General,Cabot Learning Federation,518.03, 23-Aug-2018
424,Revenue,CAHD,Statemented Support Academies,Schools Funding,Cabot Learning Federation,706.70, 23-Aug-2018
425,Revenue,CAHD,Statemented Support Academies,Schools Funding,Cabot Learning Federation,753.87, 23-Aug-2018
426,Revenue,CAHD,Statemented Support Academies,Schools Funding,Cabot Learning Federation,659.53, 23-Aug-2018
427,Revenue,CAHD,Statemented Support Academies,Schools Funding,Cabot Learning Federation,706.70, 23-Aug-2018
428,Revenue,CAHD,Statemented Support Academies,Schools Funding,Cabot Learning Federation,518.03, 23-Aug-2018
429,Revenue,CAHD,Statemented Support Academies,Schools Funding,Cabot Learning Federation,836.41, 23-Aug-2018
430,Revenue,CAHD,Statemented Support Academies,Schools Funding,Cabot Learning Federation,553.41, 23-Aug-2018
431,Revenue,CAHD,Statemented Support Academies,Schools Funding,Cabot Learning Federation,576.99, 23-Aug-2018
432,Revenue,CAHD,Statemented Support Academies,Schools Funding,Cabot Learning Federation,753.87, 23-Aug-2018
433,Revenue,CAHD,Statemented Support Academies,Schools Funding,Cabot Learning Federation,954.33, 23-Aug-2018
434,Revenue,CAHD,Statemented Support Academies,Schools Funding,Cabot Learning Federation,706.70, 23-Aug-2018
435,Revenue,CAHD,Statemented Support Academies,Schools Funding,Cabot Learning Federation,553.41, 23-Aug-2018
436,Revenue,CAHD,Statemented Support Academies,Schools Funding,Cabot Learning Federation,694.91, 23-Aug-2018
437,Revenue,CAHD,Statemented Support Academies,Schools Funding,Cabot Learning Federation,883.58, 23-Aug-2018
438,Revenue,CAHD,Statemented Support Academies,Schools Funding,Cabot Learning Federation,694.91, 23-Aug-2018
439,Revenue,CAHD,Statemented Support Academies,Schools Funding,Cabot Learning Federation,1084.03, 23-Aug-2018
440,Revenue,CAHD,Statemented Support Academies,Schools Funding,Cabot Learning Federation,954.33, 23-Aug-2018
441,Revenue,CAHD,Statemented Support Payments to OLAs,Other L.A.'s - General,Cabot Learning Federation,600.58, 23-Aug-2018
442,Revenue,CAHD,Statemented Support Academies,Schools Funding,Cabot Learning Federation,859.99, 23-Aug-2018
443,Revenue,CAHD,Statemented Support Academies,Schools Funding,Cabot Learning Federation,600.58, 23-Aug-2018
444,Revenue,CAHD,Statemented Support Academies,Schools Funding,Cabot Learning Federation,1048.66, 23-Aug-2018
445,Revenue,CAHD,Statemented Support Academies,Schools Funding,Cabot Learning Federation,506.24, 23-Aug-2018
446,Revenue,CAHD,Statemented Support Academies,Schools Funding,Cabot Learning Federation,1048.66, 23-Aug-2018
447,Revenue,CAHD,Statemented Support Payments to OLAs,Other L.A.'s - General,Cabot Learning Federation,600.58, 23-Aug-2018
448,Revenue,CAHD,Statemented Support Payments to OLAs,Other L.A.'s - General,Cabot Learning Federation,1072.24, 23-Aug-2018
449,Revenue,CAHD,Statemented Support Payments to OLAs,Other L.A.'s - General,Cabot Learning Federation,588.78, 23-Aug-2018
450,Revenue,CAHD,Statemented Support Academies,Schools Funding,Cabot Learning Federation,918.95, 23-Aug-2018
451,Revenue,CAHD,Sexual Health,Other Small Contracts,Cadbury Heath Healthcare,966.00, 24-Aug-2018
452,Revenue,CAHD,NHS Health Checks,Other Small Contracts,Cadbury Heath Healthcare,2001.00, 10-Aug-2018
453,Revenue,CAHD,Sexual Health,Other Small Contracts,Cadbury Heath Healthcare,2012.50, 03-Aug-2018
454,Revenue,CAHD,Sexual Health,Other Small Contracts,Cadbury Heath Healthcare,2343.48, 03-Aug-2018
455,Revenue,CAHD,Cambrian Green Day Service,Catering - Client Meals/Pupil Sch. Meals,Cambrian Court Dining,572.00, 17-Aug-2018
456,Revenue,CAHD,Cambrian Green Day Service,Catering - Client Meals/Pupil Sch. Meals,Cambrian Court Dining,517.00, 17-Aug-2018
457,Revenue,CAHD,Cambrian Green Day Service,Catering - Client Meals/Pupil Sch. Meals,Cambrian Court Dining,522.50, 17-Aug-2018
458,Revenue,CAHD,Cambrian Green Day Service,Catering - Client Meals/Pupil Sch. Meals,Cambrian Court Dining,517.00, 17-Aug-2018
459,Revenue,CAHD,Cambrian Green Day Service,Catering - Client Meals/Pupil Sch. Meals,Cambrian Court Dining,555.50, 17-Aug-2018
460,Revenue,CAHD,Home Care - Elderly - North,Day Care / Social Activities,Camphill Communities Thornbury Limited,662.84, 03-Aug-2018
461,Revenue,CAHD,Home Care - Elderly - North,Supported Living,Camphill Communities Thornbury Limited,1007.88, 03-Aug-2018
462,Revenue,CAHD,Home Care - Elderly - North,Day Care / Social Activities,Camphill Communities Thornbury Limited,540.26, 10-Aug-2018
463,Revenue,CAHD,Home Care - Elderly - North,Other Small Contracts,Camphill Communities Thornbury Limited,163.44, 10-Aug-2018
464,Revenue,CAHD,Home Care - Elderly - North,Supported Living,Camphill Communities Thornbury Limited,1030.58, 10-Aug-2018
465,Revenue,CAHD,Home Care - Elderly - North,Day Care / Social Activities,Camphill Communities Thornbury Limited,217.92, 15-Aug-2018
466,Revenue,CAHD,Home Care - Elderly - North,Other Small Contracts,Camphill Communities Thornbury Limited,163.44, 15-Aug-2018
467,Revenue,CAHD,Home Care - Elderly - North,Supported Living,Camphill Communities Thornbury Limited,957.94, 15-Aug-2018
468,Revenue,CAHD,Home Care - Elderly - North,Day Care / Social Activities,Camphill Communities Thornbury Limited,690.08, 24-Aug-2018
469,Revenue,CAHD,Home Care - Elderly - North,Other Small Contracts,Camphill Communities Thornbury Limited,163.44, 24-Aug-2018
470,Revenue,CAHD,Home Care - Elderly - North,Supported Living,Camphill Communities Thornbury Limited,803.58, 24-Aug-2018
471,Revenue,CAHD,Home Care - Elderly - North,Day Care / Social Activities,Camphill Communities Thornbury Limited,1112.30, 31-Aug-2018
472,Revenue,CAHD,Home Care - Elderly - North,Other Small Contracts,Camphill Communities Thornbury Limited,163.44, 31-Aug-2018
473,Revenue,CAHD,Home Care - Elderly - North,Supported Living,Camphill Communities Thornbury Limited,635.60, 31-Aug-2018
474,Revenue,CAHD,Bed Purchasing - Elderly S117- North,Permanent Residential,Canjayor,2468.44, 28-Aug-2018
475,Revenue,CAHD,Alexandra Way,Refuse Collection Charges,Cannon Hygiene Limited,547.80, 01-Aug-2018
476,Revenue,CAHD,CSC - Agency Fostering,Foster Parent Allowances,Capstone Foster Care (South West) Limited,3634.62, 01-Aug-2018
477,Revenue,CAHD,CSC - Agency Fostering,Foster Parent Allowances,Capstone Foster Care (South West) Limited,3498.66, 01-Aug-2018
478,Revenue,CAHD,CSC - Agency Fostering,Foster Parent Allowances,Capstone Foster Care (South West) Limited,3498.66, 01-Aug-2018
479,Revenue,CAHD,CSC - Agency Fostering,Foster Parent Allowances,Capstone Foster Care (South West) Limited,3634.62, 01-Aug-2018
480,Revenue,CAHD,CSC - Agency Fostering,Foster Parent Allowances,Capstone Foster Care (South West) Limited,3634.62, 31-Aug-2018
481,Revenue,CAHD,CSC - Agency Fostering,Foster Parent Allowances,Capstone Foster Care (South West) Limited,3498.66, 31-Aug-2018
482,Revenue,CAHD,CSC - Agency Fostering,Foster Parent Allowances,Capstone Foster Care (South West) Limited,3498.66, 31-Aug-2018
483,Revenue,CAHD,CSC - Agency Fostering,Foster Parent Allowances,Capstone Foster Care (South West) Limited,3634.62, 31-Aug-2018
484,Revenue,CAHD,CSC - Section 17 - ART,Bed & Breakfast,Care 1st Accomodation & Support Limited,735.00, 10-Aug-2018
485,Revenue,CAHD,CSC - No Recourse For Public Funds,Bed & Breakfast,Care 1st Accomodation & Support Limited,945.00, 10-Aug-2018
486,Revenue,CAHD,Home Care - Elderly - South,Other Small Contracts,Care 1st Homecare,1466.97, 02-Aug-2018
487,Revenue,CAHD,Home Care - Elderly - North,Other Small Contracts,Care 1st Homecare,3593.92, 02-Aug-2018
488,Revenue,CAHD,Younger MH non-res purchasing,Other Small Contracts,Care 1st Homecare,127.96, 02-Aug-2018
489,Revenue,CAHD,Home Care - Elderly - South,Other Small Contracts,Care 1st Homecare,1357.29, 02-Aug-2018
490,Revenue,CAHD,Home Care - Elderly - North,Other Small Contracts,Care 1st Homecare,3704.22, 02-Aug-2018
491,Revenue,CAHD,Younger MH non-res purchasing,Other Small Contracts,Care 1st Homecare,127.96, 02-Aug-2018
492,Revenue,CAHD,Home Care - Elderly - South,Other Small Contracts,Care 1st Homecare,1407.56, 02-Aug-2018
493,Revenue,CAHD,Home Care - Elderly - North,Other Small Contracts,Care 1st Homecare,3747.75, 02-Aug-2018
494,Revenue,CAHD,Younger MH non-res purchasing,Other Small Contracts,Care 1st Homecare,127.96, 02-Aug-2018
495,Revenue,CAHD,18-25 Year Olds,Other Small Contracts,Care Horizons Limited,188.40, 03-Aug-2018
496,Revenue,CAHD,Home Care - Elderly - South,Other Small Contracts,Care Horizons Limited,786.57, 03-Aug-2018
497,Revenue,CAHD,Home Care - Elderly - North,Day Care / Social Activities,Care Horizons Limited,348.54, 03-Aug-2018
498,Revenue,CAHD,Home Care - Elderly - North,Other Small Contracts,Care Horizons Limited,438.03, 03-Aug-2018
499,Revenue,CAHD,Younger MH non-res purchasing,Other Small Contracts,Care Horizons Limited,103.62, 03-Aug-2018
500,Revenue,CAHD,18-25 Year Olds,Other Small Contracts,Care Horizons Limited,188.40, 03-Aug-2018
501,Revenue,CAHD,Home Care - Elderly - South,Other Small Contracts,Care Horizons Limited,857.22, 03-Aug-2018
502,Revenue,CAHD,Home Care - Elderly - North,Day Care / Social Activities,Care Horizons Limited,268.47, 03-Aug-2018
503,Revenue,CAHD,Home Care - Elderly - North,Other Small Contracts,Care Horizons Limited,466.29, 03-Aug-2018
504,Revenue,CAHD,Younger MH non-res purchasing,Other Small Contracts,Care Horizons Limited,150.72, 03-Aug-2018
505,Revenue,CAHD,18-25 Year Olds,Other Small Contracts,Care Horizons Limited,188.40, 03-Aug-2018
506,Revenue,CAHD,Home Care - Elderly - South,Other Small Contracts,Care Horizons Limited,918.45, 03-Aug-2018
507,Revenue,CAHD,Home Care - Elderly - North,Day Care / Social Activities,Care Horizons Limited,259.05, 03-Aug-2018
508,Revenue,CAHD,Home Care - Elderly - North,Other Small Contracts,Care Horizons Limited,372.09, 03-Aug-2018
509,Revenue,CAHD,Younger MH non-res purchasing,Other Small Contracts,Care Horizons Limited,226.08, 03-Aug-2018
510,Revenue,CAHD,18-25 Year Olds,Other Small Contracts,Care Horizons Limited,188.40, 10-Aug-2018
511,Revenue,CAHD,Home Care - Elderly - South,Other Small Contracts,Care Horizons Limited,734.76, 10-Aug-2018
512,Revenue,CAHD,Home Care - Elderly - North,Day Care / Social Activities,Care Horizons Limited,372.09, 10-Aug-2018
513,Revenue,CAHD,Home Care - Elderly - North,Other Small Contracts,Care Horizons Limited,282.60, 10-Aug-2018
514,Revenue,CAHD,Younger MH non-res purchasing,Other Small Contracts,Care Horizons Limited,221.37, 10-Aug-2018
515,Revenue,CAHD,18-25 Year Olds,Other Small Contracts,Care Horizons Limited,150.72, 24-Aug-2018
516,Revenue,CAHD,Home Care - Elderly - South,Other Small Contracts,Care Horizons Limited,654.69, 24-Aug-2018
517,Revenue,CAHD,Home Care - Elderly - North,Day Care / Social Activities,Care Horizons Limited,263.76, 24-Aug-2018
518,Revenue,CAHD,Home Care - Elderly - North,Other Small Contracts,Care Horizons Limited,287.31, 24-Aug-2018
519,Revenue,CAHD,Younger MH non-res purchasing,Other Small Contracts,Care Horizons Limited,150.72, 24-Aug-2018
520,Revenue,CAHD,18-25 Year Olds,Other Small Contracts,Care Horizons Limited,169.56, 24-Aug-2018
521,Revenue,CAHD,Home Care - Elderly - South,Other Small Contracts,Care Horizons Limited,649.98, 24-Aug-2018
522,Revenue,CAHD,Home Care - Elderly - North,Day Care / Social Activities,Care Horizons Limited,409.77, 24-Aug-2018
523,Revenue,CAHD,Home Care - Elderly - North,Other Small Contracts,Care Horizons Limited,188.40, 24-Aug-2018
524,Revenue,CAHD,Younger MH non-res purchasing,Other Small Contracts,Care Horizons Limited,226.08, 24-Aug-2018
525,Revenue,CAHD,18-25 Year Olds,Other Small Contracts,Care Horizons Limited,150.72, 29-Aug-2018
526,Revenue,CAHD,Home Care - Elderly - South,Other Small Contracts,Care Horizons Limited,640.56, 29-Aug-2018
527,Revenue,CAHD,Home Care - Elderly - North,Day Care / Social Activities,Care Horizons Limited,400.35, 29-Aug-2018
528,Revenue,CAHD,Home Care - Elderly - North,Other Small Contracts,Care Horizons Limited,301.44, 29-Aug-2018
529,Revenue,CAHD,Younger MH non-res purchasing,Other Small Contracts,Care Horizons Limited,211.95, 29-Aug-2018
530,Revenue,CAHD,Home Care - Elderly - South,Other Small Contracts,Caring Comes 1st Ltd,555.00, 21-Aug-2018
531,Revenue,CAHD,Home Care - Elderly - South,Other Small Contracts,Caring Comes 1st Ltd,1376.40, 13-Aug-2018
532,Revenue,CAHD,Home Care - Elderly - South,Other Small Contracts,Caring Comes 1st Ltd,699.30, 01-Aug-2018
533,Revenue,CAHD,Home Care - Elderly - South,Other Small Contracts,Caring Comes 1st Ltd,1010.10, 09-Aug-2018
534,Revenue,CAHD,Home Care - Elderly - South,Other Small Contracts,Caring Comes 1st Ltd,1287.60, 24-Aug-2018
535,Revenue,CAHD,Home Care - Elderly - South,Other Small Contracts,Caring Comes 1st Ltd,1376.40, 02-Aug-2018
536,Revenue,CAHD,Home Care - Elderly - North,Other Small Contracts,Caring Comes 1st Ltd,1087.80, 01-Aug-2018
537,Revenue,CAHD,Home Care - Elderly - North,Other Small Contracts,Caring Comes 1st Ltd,1087.80, 03-Aug-2018
538,Revenue,CAHD,Home Care - Elderly - South,Other Small Contracts,Caring Comes 1st Ltd,1402.50, 03-Aug-2018
539,Revenue,CAHD,Home Care - Elderly - South,Other Small Contracts,Caring Comes 1st Ltd,942.48, 24-Aug-2018
540,Revenue,CAHD,Home Care - Elderly - North,Other Small Contracts,Caring Comes 1st Ltd,1099.56, 03-Aug-2018
541,Revenue,CAHD,Home Care - Elderly - South,Other Small Contracts,Caring Comes 1st Ltd,2468.40, 03-Aug-2018
542,Revenue,CAHD,Home Care - Elderly - South,Other Small Contracts,Caring Comes 1st Ltd,661.98, 01-Aug-2018
543,Revenue,CAHD,Home Care - Elderly - South,Other Small Contracts,Caring Comes 1st Ltd,2199.12, 03-Aug-2018
544,Revenue,CAHD,Home Care - Elderly - South,Other Small Contracts,Caring Comes 1st Ltd,920.04, 03-Aug-2018
545,Revenue,CAHD,Home Care - Elderly - South,Other Small Contracts,Caring Comes 1st Ltd,2109.36, 13-Aug-2018
546,Revenue,CAHD,Home Care - Elderly - South,Other Small Contracts,Caring Comes 1st Ltd,1133.22, 24-Aug-2018
547,Revenue,CAHD,Home Care - Elderly - South,Other Small Contracts,Caring Comes 1st Ltd,1884.96, 22-Aug-2018
548,Revenue,CAHD,Statemented Support Academies,Schools Funding,Castle School Education Trust,659.53, 23-Aug-2018
549,Revenue,CAHD,Statemented Support Academies,Schools Funding,Castle School Education Trust,635.95, 23-Aug-2018
550,Revenue,CAHD,Statemented Support Academies,Schools Funding,Castle School Education Trust,918.95, 23-Aug-2018
551,Revenue,CAHD,Statemented Support Academies,Schools Funding,Castle School Education Trust,1072.24, 23-Aug-2018
552,Revenue,CAHD,Statemented Support Academies,Schools Funding,Castle School Education Trust,683.12, 23-Aug-2018
553,Revenue,CAHD,Statemented Support Academies,Schools Funding,Castle School Education Trust,1602.87, 23-Aug-2018
554,Revenue,CAHD,Statemented Support Academies,Schools Funding,Castle School Education Trust,1142.99, 23-Aug-2018
555,Revenue,CAHD,Statemented Support Academies,Schools Funding,Castle School Education Trust,1260.91, 23-Aug-2018
556,Revenue,CAHD,Statemented Support Academies,Schools Funding,Castle School Education Trust,647.74, 23-Aug-2018
557,Revenue,CAHD,Statemented Support Academies,Schools Funding,Castle School Education Trust,730.28, 23-Aug-2018
558,Revenue,CAHD,Statemented Support Academies,Schools Funding,Castle School Education Trust,1095.83, 23-Aug-2018
559,Revenue,CAHD,Statemented Support Academies,Schools Funding,Castle School Education Trust,718.49, 23-Aug-2018
560,Revenue,CAHD,Statemented Support Academies,Schools Funding,Castle School Education Trust,812.83, 23-Aug-2018
561,Revenue,CAHD,Statemented Support Academies,Schools Funding,Castle School Education Trust,553.41, 23-Aug-2018
562,Revenue,CAHD,Statemented Support Academies,Schools Funding,Castle School Education Trust,765.66, 23-Aug-2018
563,Revenue,CAHD,Statemented Support Academies,Schools Funding,Castle School Education Trust,966.12, 23-Aug-2018
564,Revenue,CAHD,Statemented Support Academies,Schools Funding,Castle School Education Trust,989.70, 23-Aug-2018
565,Revenue,CAHD,Statemented Support Academies,Schools Funding,Castle School Education Trust,576.99, 23-Aug-2018
566,Revenue,CAHD,Statemented Support Academies,Schools Funding,Castle School Education Trust,1378.83, 23-Aug-2018
567,Revenue,CAHD,Statemented Support Academies,Schools Funding,Castle School Education Trust,1201.95, 23-Aug-2018
568,Revenue,CAHD,Statemented Support Academies,Schools Funding,Castle School Education Trust,659.53, 23-Aug-2018
569,Revenue,CAHD,Statemented Support Academies,Schools Funding,Castle School Education Trust,718.49, 23-Aug-2018
570,Revenue,CAHD,Academy Resource Base Funding,Other Public Bodies,Castle School Education Trust,1702.96, 24-Aug-2018
571,Revenue,CAHD,Academy Resource Base Funding,Other Public Bodies,Castle School Education Trust,2189.53, 24-Aug-2018
572,Revenue,CAHD,Academy Resource Base Funding,Other Public Bodies,Castle School Education Trust,1702.96, 24-Aug-2018
573,Revenue,CAHD,Academy Resource Base Funding,Other Public Bodies,Castle School Education Trust,1702.96, 24-Aug-2018
574,Revenue,CAHD,Statemented Support Academies,Schools Funding,Castle School Education Trust,612.37, 23-Aug-2018
575,Revenue,CAHD,Statemented Support Academies,Schools Funding,Castle School Education Trust,1626.45, 23-Aug-2018
576,Revenue,CAHD,Statemented Support Academies,Schools Funding,Castle School Education Trust,812.83, 23-Aug-2018
577,Revenue,CAHD,Statemented Support Academies,Schools Funding,Castle School Education Trust,706.70, 23-Aug-2018
578,Revenue,CAHD,Statemented Support Academies,Schools Funding,Castle School Education Trust,588.78, 23-Aug-2018
579,Revenue,CAHD,Statemented Support Academies,Schools Funding,Castle School Education Trust,989.70, 23-Aug-2018
580,Revenue,CAHD,Statemented Support Academies,Schools Funding,Castle School Education Trust,1048.66, 23-Aug-2018
581,Revenue,CAHD,Statemented Support Academies,Schools Funding,Castle School Education Trust,1331.66, 23-Aug-2018
582,Revenue,CAHD,Statemented Support Academies,Schools Funding,Castle School Education Trust,1697.20, 23-Aug-2018
583,Revenue,CAHD,Statemented Support Academies,Schools Funding,Castle School Education Trust,1166.58, 23-Aug-2018
584,Revenue,CAHD,Statemented Support Academies,Schools Funding,Castle School Education Trust,918.95, 23-Aug-2018
585,Revenue,CAHD,Social Lettings Agency,Fees - General,Individual,10.53, 01-Aug-2018
586,Revenue,CAHD,Social Lettings Agency,Fees & Charges Income - General,Individual,595.11, 01-Aug-2018
587,Revenue,CAHD,Social Lettings Agency,Fees - General,Individual,10.53, 31-Aug-2018
588,Revenue,CAHD,Social Lettings Agency,Fees & Charges Income - General,Individual,595.11, 31-Aug-2018
589,Revenue,CAHD,Home Care - Elderly - North,Day Care / Social Activities,Causeway House,1389.44, 28-Aug-2018
590,Revenue,CAHD,Home Care - Elderly - North,Day Care / Social Activities,Causeway House,1202.80, 28-Aug-2018
591,Revenue,CAHD,Home Care - Elderly - South,Day Care / Social Activities,Causeway House,5130.52, 28-Aug-2018
592,Revenue,CAHD,18-25 Year Olds,Day Care / Social Activities,Causeway House,4311.60, 28-Aug-2018
593,Revenue,CAHD,Home Care - Elderly - North,Day Care / Social Activities,Causeway House,4393.52, 28-Aug-2018
594,Revenue,CAHD,Home Care - Elderly - North,Day Care / Social Activities,Causeway House,3800.76, 28-Aug-2018
595,Revenue,CAHD,Home Care - Elderly - North,Day Care / Social Activities,Causeway House,2029.16, 28-Aug-2018
596,Revenue,CAHD,Home Care - Elderly - North,Day Care / Social Activities,Causeway House,3150.88, 28-Aug-2018
597,Revenue,CAHD,Home Care - Elderly - North,Day Care / Social Activities,Causeway House,4694.24, 28-Aug-2018
598,Revenue,CAHD,Home Care - Elderly - North,Day Care / Social Activities,Causeway House,3566.88, 28-Aug-2018
599,Revenue,CAHD,Home Care - Elderly - North,Day Care / Social Activities,Causeway House,3075.56, 28-Aug-2018
600,Revenue,CAHD,Home Care - Elderly - North,Day Care / Social Activities,Causeway House,555.12, 28-Aug-2018
601,Revenue,CAHD,Bed Purchasing - Elderly S117- North,Permanent Nursing,Cedar Care Homes Limited,4434.68, 28-Aug-2018
602,Revenue,CAHD,Bed Purchasing - North,Respite Planned - Residential,Challenge House,1285.14, 28-Aug-2018
603,Revenue,CAHD,Bed Purchasing - Elderly S117- North,Permanent Residential,Challenge House,2511.12, 28-Aug-2018
604,Revenue,CAHD,Bed Purchasing - Southmead Hospital,Respite Emergency - Residential,Challenge House,2315.16, 28-Aug-2018
605,Revenue,CAHD,Bed Purchasing - North,Permanent Residential,Challenge House,2180.68, 28-Aug-2018
606,Revenue,CAHD,Bed Purchasing - North,Permanent Residential,Challenge House,2315.16, 28-Aug-2018
607,Revenue,CAHD,Bed Purchasing - North,Permanent Residential,Challenge House,2262.20, 28-Aug-2018
608,Revenue,CAHD,Bed Purchasing - North,Respite Planned - Residential,Challenge House,811.43, 28-Aug-2018
609,Revenue,CAHD,Bed Purchasing - North,Respite Planned - Residential,Challenge House,730.29, 28-Aug-2018
610,Revenue,CAHD,Bed Purchasing - North,Permanent Residential,Challenge House,2039.72, 28-Aug-2018
611,Revenue,CAHD,Bed Purchasing - North,Permanent Nursing,Challenge House,3057.00, 28-Aug-2018
612,Revenue,CAHD,Bed Purchasing - Southmead Hospital,Respite Emergency - Residential,Challenge House,3214.29, 28-Aug-2018
613,Revenue,CAHD,Bed Purchasing - Southmead Hospital,Respite Planned - Nursing,Challenge House,3000.00, 28-Aug-2018
614,Revenue,CAHD,Bed Purchasing - Southmead Hospital,Respite Planned - Nursing,Challenge House,535.71, 28-Aug-2018
615,Revenue,CAHD,Bed Purchasing - Elderly S117- North,Permanent Nursing,Challenge House,2339.64, 28-Aug-2018
616,Revenue,CAHD,Bed Purchasing - Southmead Hospital,Respite Planned - Nursing,Challenge House,3642.86, 28-Aug-2018
617,Revenue,CAHD,Bed Purchasing - Southmead Hospital,Respite Planned - Nursing,Challenge House,1457.14, 28-Aug-2018
618,Revenue,CAHD,Bed Purchasing - Southmead Hospital,Permanent Residential,Challenge House,2343.72, 28-Aug-2018
619,Revenue,CAHD,Bed Purchasing - North,Permanent Residential,Challenge House,2683.84, 28-Aug-2018
620,Revenue,CAHD,Bed Purchasing - Southmead Hospital,Permanent Nursing,Challenge House,2511.12, 28-Aug-2018
621,Revenue,CAHD,Bed Purchasing - Southmead Hospital,Respite Emergency - Residential,Challenge House,749.99, 28-Aug-2018
622,Revenue,CAHD,Bed Purchasing - North,Permanent Nursing,Challenge House,2339.64, 28-Aug-2018
623,Revenue,CAHD,Bed Purchasing - Southmead Hospital,Permanent Nursing,Challenge House,3057.00, 28-Aug-2018
624,Revenue,CAHD,Alexandra Way,"Provisions (Food, etc)",Charles Saunders Limited,581.87, 29-Aug-2018
625,Revenue,CAHD,Bed Purchasing - South,Permanent Nursing,Charnwood House Nursing Home,12235.60, 28-Aug-2018
626,Revenue,CAHD,Sexual Health,Other Small Contracts,Chelsea and Westminster Hospital,847.55, 29-Aug-2018
627,Revenue,CAHD,Home Care - Elderly - South,Other Small Contracts,Cherish Able Care Limited,6921.64, 03-Aug-2018
628,Revenue,CAHD,Home Care - Elderly - North,Other Small Contracts,Cherish Able Care Limited,3121.27, 03-Aug-2018
629,Revenue,CAHD,Home Care - Elderly - South,Other Small Contracts,Cherish Able Care Limited,6784.54, 10-Aug-2018
630,Revenue,CAHD,Home Care - Elderly - North,Other Small Contracts,Cherish Able Care Limited,3442.40, 10-Aug-2018
631,Revenue,CAHD,Home Care - Elderly - South,Other Small Contracts,Cherish Able Care Limited,6784.54, 17-Aug-2018
632,Revenue,CAHD,Home Care - Elderly - North,Other Small Contracts,Cherish Able Care Limited,3439.91, 17-Aug-2018
633,Revenue,CAHD,Home Care - Elderly - South,Other Small Contracts,Cherish Able Care Limited,6779.97, 24-Aug-2018
634,Revenue,CAHD,Home Care - Elderly - North,Other Small Contracts,Cherish Able Care Limited,3457.67, 24-Aug-2018
635,Revenue,CAHD,Home Care - Elderly - South,Other Small Contracts,Cherish Able Care Limited,6743.41, 31-Aug-2018
636,Revenue,CAHD,Home Care - Elderly - North,Other Small Contracts,Cherish Able Care Limited,3080.74, 31-Aug-2018
637,Revenue,CAHD,Home Care - Elderly - South,Supported Living,Cherry Orchards,1613.67, 03-Aug-2018
638,Revenue,CAHD,18-25 Year Olds,Other Small Contracts,Cherry Orchards,4729.26, 03-Aug-2018
639,Revenue,CAHD,Early Years High Needs Support,Other Private Contractors,Cherry Tree Day Nursery,910.13, 24-Aug-2018
640,Revenue,CAHD,Bed purchasing - S28A Under 65 - South,Permanent Residential,Chescombe Lodge,9535.60, 28-Aug-2018
641,Revenue,CAHD,CSC - Agency Fostering,Foster Parent Allowances,Child Care Bureau Limited,3928.01, 28-Aug-2018
642,Revenue,CAHD,NHS Health Checks,Other Small Contracts,Christchurch Family Medical  CentreDO NOT USE,5750.00, 10-Aug-2018
643,Revenue,CAHD,Home Care - Elderly - South,Other Small Contracts,Cintre,157.08, 29-Aug-2018
644,Revenue,CAHD,Home Care - Elderly - North,Other Small Contracts,Cintre,733.04, 29-Aug-2018
645,Revenue,CAHD,18-25 Year Olds,Other Small Contracts,Cintre,133.28, 24-Aug-2018
646,Revenue,CAHD,Home Care - Elderly - South,Other Small Contracts,Cintre,195.16, 24-Aug-2018
647,Revenue,CAHD,Home Care - Elderly - North,Other Small Contracts,Cintre,580.72, 24-Aug-2018
648,Revenue,CAHD,18-25 Year Olds,Other Small Contracts,Cintre,133.28, 24-Aug-2018
649,Revenue,CAHD,Home Care - Elderly - South,Other Small Contracts,Cintre,214.20, 24-Aug-2018
650,Revenue,CAHD,Home Care - Elderly - North,Other Small Contracts,Cintre,504.56, 24-Aug-2018
651,Revenue,CAHD,18-25 Year Olds,Other Small Contracts,Cintre,133.28, 24-Aug-2018
652,Revenue,CAHD,Home Care - Elderly - South,Other Small Contracts,Cintre,209.44, 24-Aug-2018
653,Revenue,CAHD,Home Care - Elderly - North,Other Small Contracts,Cintre,276.08, 24-Aug-2018
654,Revenue,CAHD,18-25 Year Olds,Other Small Contracts,Cintre,133.28, 24-Aug-2018
655,Revenue,CAHD,Home Care - Elderly - South,Other Small Contracts,Cintre,266.56, 24-Aug-2018
656,Revenue,CAHD,Home Care - Elderly - North,Other Small Contracts,Cintre,390.32, 24-Aug-2018
657,Revenue,CAHD,18-25 Year Olds,Other Small Contracts,Cintre,133.28, 29-Aug-2018
658,Revenue,CAHD,Home Care - Elderly - South,Other Small Contracts,Cintre,161.84, 29-Aug-2018
659,Revenue,CAHD,Home Care - Elderly - North,Other Small Contracts,Cintre,514.08, 29-Aug-2018
660,Revenue,CAHD,18-25 Year Olds,Other Small Contracts,Cintre,133.28, 29-Aug-2018
661,Revenue,CAHD,Home Care - Elderly - South,Other Small Contracts,Cintre,266.56, 29-Aug-2018
662,Revenue,CAHD,Home Care - Elderly - North,Other Small Contracts,Cintre,476.00, 29-Aug-2018
663,Revenue,CAHD,18-25 Year Olds,Other Small Contracts,Cintre,57.12, 29-Aug-2018
664,Revenue,CAHD,Home Care - Elderly - South,Other Small Contracts,Cintre,266.56, 29-Aug-2018
665,Revenue,CAHD,Home Care - Elderly - North,Other Small Contracts,Cintre,514.08, 29-Aug-2018
666,Revenue,CAHD,18-25 Year Olds,Other Small Contracts,Cintre,76.16, 29-Aug-2018
667,Revenue,CAHD,Home Care - Elderly - South,Other Small Contracts,Cintre,280.84, 29-Aug-2018
668,Revenue,CAHD,Home Care - Elderly - North,Other Small Contracts,Cintre,333.20, 29-Aug-2018
669,Revenue,CAHD,Learning Difficulties,Premises Hire,Circadian Trust,910.00, 31-Aug-2018
670,Revenue,CAHD,CSC - Fostering Carer Support,Sporting Expenses,Circadian Trust,582.75, 15-Aug-2018
671,Revenue,CAHD,Learning Difficulties,Premises Hire,Circadian Trust,585.00, 23-Aug-2018
672,Revenue,CAHD,Information Systems - Software,Software Support & Maintenance,Civica UK Limited,470.52, 03-Aug-2018
673,Revenue,CAHD,Bed Purchasing - North,Permanent Residential,Claremont House and Lodge,700.00, 28-Aug-2018
674,Revenue,CAHD,MH Purchasing - Younger,Permanent Residential,Claro Homes,2803.60, 28-Aug-2018
675,Revenue,CAHD,Section 117 Placements MH Younger,Permanent Residential,Claro Homes,3471.28, 28-Aug-2018
676,Revenue,CAHD,Bed Purchasing - Southmead Hospital,Respite Planned - Nursing,Claro Homes,3240.44, 28-Aug-2018
677,Revenue,CAHD,Bed Purchasing - South,Permanent Residential,Cleeve Lodge,3600.00, 28-Aug-2018
678,Revenue,CAHD,Bed Purchasing - South,Permanent Residential,Cleeve Lodge,1277.76, 28-Aug-2018
679,Revenue,CAHD,Bed Purchasing - Southmead Hospital,Permanent Residential,Cleeve Lodge,2853.20, 28-Aug-2018
680,Revenue,CAHD,Bed Purchasing - South,Permanent Residential,Cleeve Lodge,3014.16, 28-Aug-2018
681,Revenue,CAHD,Bed Purchasing - South,Permanent Residential,Cleeve Lodge,3220.04, 28-Aug-2018
682,Revenue,CAHD,Bed Purchasing - South,Permanent Residential,Cleeve Lodge,2787.08, 28-Aug-2018
683,Revenue,CAHD,Bed Purchasing - South,Permanent Residential,Cleeve Lodge,2573.84, 28-Aug-2018
684,Revenue,CAHD,Bed Purchasing - South,Permanent Residential,Cleeve Lodge,2955.12, 28-Aug-2018
685,Revenue,CAHD,Bed Purchasing - South,Permanent Residential,Clerkenleap Barn,2066.54, 28-Aug-2018
686,Revenue,CAHD,CSC - ASYE,Training Expenses,Individual,1000.00, 03-Aug-2018
687,Revenue,CAHD,NHS Health Checks,Other Small Contracts,Close Farm Surgery,1403.00, 10-Aug-2018
688,Revenue,CAHD,Sexual Health,Other Small Contracts,Close Farm Surgery,1127.00, 03-Aug-2018
689,Revenue,CAHD,Sexual Health,Other Small Contracts,Close Farm Surgery,557.48, 03-Aug-2018
690,Revenue,CAHD,Home Care - Elderly - North,Other Small Contracts,Clover Health and Home Care Ltd,1440.04, 01-Aug-2018
691,Revenue,CAHD,Home Care - Elderly - North,Other Small Contracts,Clover Health and Home Care Ltd,1450.40, 24-Aug-2018
692,Revenue,CAHD,Home Care - Elderly - North,Other Small Contracts,Clover Health and Home Care Ltd,1450.40, 01-Aug-2018
693,Revenue,CAHD,Home Care - Elderly - North,Other Small Contracts,Clover Health and Home Care Ltd,1450.40, 13-Aug-2018
694,Revenue,CAHD,Home Care - Elderly - North,Other Small Contracts,Clover Health and Home Care Ltd,1428.70, 01-Aug-2018
695,Revenue,CAHD,Bed Purchasing - South,Permanent Residential,Collingwood Residential Home,2760.00, 28-Aug-2018
696,Revenue,CAHD,Bed Purchasing - South,Permanent Residential,Collingwood Residential Home,2188.76, 28-Aug-2018
697,Revenue,CAHD,Bed Purchasing - Southmead Hospital,Permanent Residential,Collingwood Residential Home,2477.40, 28-Aug-2018
698,Revenue,CAHD,Bed Purchasing - South,Fees & Charges Income - General,Collingwood Residential Home,903.83, 28-Aug-2018
699,Revenue,CAHD,Bed Purchasing - South,Permanent Residential,Collingwood Residential Home,2364.08, 28-Aug-2018
700,Revenue,CAHD,Bed Purchasing - Southmead Hospital,Permanent Residential,Collingwood Residential Home,3000.00, 28-Aug-2018
701,Revenue,CAHD,Bed Purchasing - South,Permanent Residential,Collingwood Residential Home,2547.52, 28-Aug-2018
702,Revenue,CAHD,Bed Purchasing - South,Permanent Residential,Collingwood Residential Home,2848.55, 28-Aug-2018
703,Revenue,CAHD,Bed Purchasing - South,Permanent Residential,Collingwood Residential Home,2445.60, 28-Aug-2018
704,Revenue,CAHD,Home Care - Elderly - North,Other Small Contracts,Complimenting Care and Training Services (CCTS) Lt,12364.02, 02-Aug-2018
705,Revenue,CAHD,Home Care - Elderly - North,Other Small Contracts,Complimenting Care and Training Services (CCTS) Lt,13092.40, 02-Aug-2018
706,Revenue,CAHD,Home Care - Elderly - North,Other Small Contracts,Complimenting Care and Training Services (CCTS) Lt,13258.36, 02-Aug-2018
707,Revenue,CAHD,Home Care - Elderly - North,Other Small Contracts,Complimenting Care and Training Services (CCTS) Lt,12792.75, 03-Aug-2018
708,Revenue,CAHD,Home Care - Elderly - North,Other Small Contracts,Complimenting Care and Training Services (CCTS) Lt,12562.25, 10-Aug-2018
709,Revenue,CAHD,Pathway 1 - Re-Ablement Home Care,Other Small Contracts,Complimenting Care and Training Services (CCTS) Lt,5462.85, 03-Aug-2018
710,Revenue,CAHD,Sexual Health,Other Small Contracts,Concord Medical Centre,2004.00, 24-Aug-2018
711,Revenue,CAHD,NHS Health Checks,Other Small Contracts,Concord Medical Centre,2760.00, 10-Aug-2018
712,Revenue,CAHD,Sexual Health,Other Small Contracts,Concord Medical Centre,2549.94, 03-Aug-2018
713,Revenue,CAHD,NHS Health Checks,Other Small Contracts,Coniston Medical Practice,575.00, 10-Aug-2018
714,Revenue,CAHD,Sexual Health,Other Small Contracts,Coniston Medical Practice,1127.00, 03-Aug-2018
715,Revenue,CAHD,Sexual Health,Other Small Contracts,Coniston Medical Practice,567.80, 03-Aug-2018
716,Revenue,CAHD,Statemented Support Equipment,Educational Supplies & Equipment,Connevans Limited,1621.05, 23-Aug-2018
717,Revenue,CAHD,Bed and Breakfast,Bed & Breakfast,Connolly & Callaghan Limited,791.00, 02-Aug-2018
718,Revenue,CAHD,Bed and Breakfast,Bed & Breakfast,Connolly & Callaghan Limited,539.00, 02-Aug-2018
719,Revenue,CAHD,Bed and Breakfast,Bed & Breakfast,Connolly & Callaghan Limited,539.00, 01-Aug-2018
720,Revenue,CAHD,Bed and Breakfast,Bed & Breakfast,Connolly & Callaghan Limited,581.00, 01-Aug-2018
721,Revenue,CAHD,Bed and Breakfast,Bed & Breakfast,Connolly & Callaghan Limited,420.00, 03-Aug-2018
722,Revenue,CAHD,Bed and Breakfast,Bed & Breakfast,Connolly & Callaghan Limited,441.00, 01-Aug-2018
723,Revenue,CAHD,Bed and Breakfast,Bed & Breakfast,Connolly & Callaghan Limited,497.00, 03-Aug-2018
724,Revenue,CAHD,Younger MH non-res purchasing,Supported Living,Connolly & Callaghan Limited,420.00, 20-Aug-2018
725,Revenue,CAHD,Bed and Breakfast,Bed & Breakfast,Connolly & Callaghan Limited,791.00, 09-Aug-2018
726,Revenue,CAHD,Bed and Breakfast,Bed & Breakfast,Connolly & Callaghan Limited,539.00, 09-Aug-2018
727,Revenue,CAHD,Bed and Breakfast,Bed & Breakfast,Connolly & Callaghan Limited,581.00, 10-Aug-2018
728,Revenue,CAHD,Bed and Breakfast,Bed & Breakfast,Connolly & Callaghan Limited,581.00, 10-Aug-2018
729,Revenue,CAHD,Bed and Breakfast,Bed & Breakfast,Connolly & Callaghan Limited,497.00, 10-Aug-2018
730,Revenue,CAHD,Bed and Breakfast,Bed & Breakfast,Connolly & Callaghan Limited,539.00, 10-Aug-2018
731,Revenue,CAHD,Younger MH non-res purchasing,Supported Living,Connolly & Callaghan Limited,420.00, 20-Aug-2018
732,Revenue,CAHD,Bed and Breakfast,Bed & Breakfast,Connolly & Callaghan Limited,791.00, 15-Aug-2018
733,Revenue,CAHD,Bed and Breakfast,Bed & Breakfast,Connolly & Callaghan Limited,539.00, 15-Aug-2018
734,Revenue,CAHD,Bed and Breakfast,Bed & Breakfast,Connolly & Callaghan Limited,546.00, 15-Aug-2018
735,Revenue,CAHD,Bed and Breakfast,Bed & Breakfast,Connolly & Callaghan Limited,581.00, 15-Aug-2018
736,Revenue,CAHD,Bed and Breakfast,Bed & Breakfast,Connolly & Callaghan Limited,581.00, 15-Aug-2018
737,Revenue,CAHD,Bed and Breakfast,Bed & Breakfast,Connolly & Callaghan Limited,420.00, 15-Aug-2018
738,Revenue,CAHD,Bed and Breakfast,Bed & Breakfast,Connolly & Callaghan Limited,497.00, 15-Aug-2018
739,Revenue,CAHD,Younger MH non-res purchasing,Supported Living,Connolly & Callaghan Limited,420.00, 17-Aug-2018
740,Revenue,CAHD,Bed and Breakfast,Bed & Breakfast,Connolly & Callaghan Limited,791.00, 22-Aug-2018
741,Revenue,CAHD,Bed and Breakfast,Bed & Breakfast,Connolly & Callaghan Limited,539.00, 31-Aug-2018
742,Revenue,CAHD,Bed and Breakfast,Bed & Breakfast,Connolly & Callaghan Limited,546.00, 22-Aug-2018
743,Revenue,CAHD,Bed and Breakfast,Bed & Breakfast,Connolly & Callaghan Limited,581.00, 22-Aug-2018
744,Revenue,CAHD,Bed and Breakfast,Bed & Breakfast,Connolly & Callaghan Limited,420.00, 22-Aug-2018
745,Revenue,CAHD,Bed and Breakfast,Bed & Breakfast,Connolly & Callaghan Limited,497.00, 22-Aug-2018
746,Revenue,CAHD,Younger MH non-res purchasing,Supported Living,Connolly & Callaghan Limited,420.00, 23-Aug-2018
747,Revenue,CAHD,Bed and Breakfast,Bed & Breakfast,Connolly & Callaghan Limited,455.00, 30-Aug-2018
748,Revenue,CAHD,Bed and Breakfast,Bed & Breakfast,Connolly & Callaghan Limited,791.00, 30-Aug-2018
749,Revenue,CAHD,Bed and Breakfast,Bed & Breakfast,Connolly & Callaghan Limited,539.00, 31-Aug-2018
750,Revenue,CAHD,Bed and Breakfast,Bed & Breakfast,Connolly & Callaghan Limited,546.00, 31-Aug-2018
751,Revenue,CAHD,Bed and Breakfast,Bed & Breakfast,Connolly & Callaghan Limited,581.00, 31-Aug-2018
752,Revenue,CAHD,Bed and Breakfast,Bed & Breakfast,Connolly & Callaghan Limited,581.00, 31-Aug-2018
753,Revenue,CAHD,Bed and Breakfast,Bed & Breakfast,Connolly & Callaghan Limited,420.00, 31-Aug-2018
754,Revenue,CAHD,Bed and Breakfast,Bed & Breakfast,Connolly & Callaghan Limited,455.00, 31-Aug-2018
755,Revenue,CAHD,Bed and Breakfast,Bed & Breakfast,Connolly & Callaghan Limited,497.00, 30-Aug-2018
756,Revenue,CAHD,Independent Special Placements - Pre 16,Other Private Contractors,Cotswold Chine School,22850.10, 02-Aug-2018
757,Revenue,CAHD,Independent Special Placements - Pre 16,Other Private Contractors,Cotswold Chine School,39292.50, 22-Aug-2018
758,Revenue,CAHD,Sexual Health,Other Small Contracts,Courtside Surgery,1248.00, 24-Aug-2018
759,Revenue,CAHD,NHS Health Checks,Other Small Contracts,Courtside Surgery,1656.00, 10-Aug-2018
760,Revenue,CAHD,Sexual Health,Other Small Contracts,Courtside Surgery,2254.00, 03-Aug-2018
761,Revenue,CAHD,Sexual Health,Other Small Contracts,Courtside Surgery,1321.42, 03-Aug-2018
762,Revenue,CAHD,Bed Purchasing - Southmead Hospital,Permanent Nursing,Cranhill Nursing Home,3566.52, 28-Aug-2018
763,Revenue,CAHD,Bed Purchasing - North,Permanent Residential,Cream Iii Ltd,8441.40, 28-Aug-2018
764,Revenue,CAHD,Bed purchasing - S28A Under 65 - South,Permanent Residential,Creedy Court,10349.56, 28-Aug-2018
765,Revenue,CAHD,Bed purchasing - S28A Under 65 - South,Permanent Residential,Creedy Court,8696.20, 28-Aug-2018
766,Revenue,CAHD,Bed Purchasing - North,Permanent Residential,Creedy Court,13724.60, 28-Aug-2018
767,Revenue,CAHD,Telecare,Other Supplies & Services,CSL Dualcom,422.50, 10-Aug-2018
768,Revenue,CAHD,Community Support - North,Preventative Assistance,D P Johnson : Kilkhampton Fencing Contractor,980.00, 24-Aug-2018
769,Revenue,CAHD,Bed Purchasing - South,Permanent Residential,Daneswood,11981.24, 28-Aug-2018
770,Revenue,CAHD,Home Care - Elderly - South,Day Care / Social Activities,Daneswood,1380.32, 28-Aug-2018
771,Revenue,CAHD,Bed Purchasing - North,Permanent Residential,Daneswood,10023.44, 28-Aug-2018
772,Revenue,CAHD,Bed Purchasing - Elderly S117- North,Permanent Nursing,Danshell Healthcare Group,10617.44, 28-Aug-2018
773,Revenue,CAHD,Jointly Funded H&SC Packages,Permanent Nursing,Danshell Healthcare Group,1575.48, 28-Aug-2018
774,Revenue,CAHD,Learning Difficulties PSL,Other Supplies & Services,Individual,2267.91, 22-Aug-2018
775,Revenue,CAHD,CSC - Professional Fees Foster Carers,Children - Family Support,Individual,529.00, 03-Aug-2018
776,Revenue,CAHD,CSC - Age Related Allowances,Children - Family Support,Individual,557.14, 03-Aug-2018
777,Revenue,CAHD,CSC - Adoption Support Fund,Post Adoption,Individual,202.66, 29-Aug-2018
778,Revenue,CAHD,CSC - Adoption Support Fund,Post Adoption,Individual,202.67, 29-Aug-2018
779,Revenue,CAHD,CSC - Adoption Support Fund,Post Adoption,Individual,202.67, 29-Aug-2018
780,Revenue,CAHD,CSC - Adoption Support Fund,Post Adoption,Individual,830.00, 24-Aug-2018
781,Revenue,CAHD,South Glos Users in South Glos Homes,Permanent Nursing,Deerhurst Nursing Home,632.64, 28-Aug-2018
782,Revenue,CAHD,Bed Purchasing - Southmead Hospital,Permanent Nursing,Deerhurst Nursing Home,3716.08, 28-Aug-2018
783,Revenue,CAHD,South Glos Users in South Glos Homes,Permanent Nursing,Deerhurst Nursing Home,632.64, 28-Aug-2018
784,Revenue,CAHD,Bed Purchasing - South,Permanent Nursing,Deerhurst Nursing Home,3417.64, 28-Aug-2018
785,Revenue,CAHD,South Glos Users in South Glos Homes,Permanent Nursing,Deerhurst Nursing Home,632.64, 28-Aug-2018
786,Revenue,CAHD,South Glos Users in South Glos Homes,Permanent Nursing,Deerhurst Nursing Home,632.64, 28-Aug-2018
787,Revenue,CAHD,South Glos Users in South Glos Homes,Permanent Nursing,Deerhurst Nursing Home,632.64, 28-Aug-2018
788,Revenue,CAHD,Bed Purchasing - North,Permanent Nursing,Deerhurst Nursing Home,3872.20, 28-Aug-2018
789,Revenue,CAHD,Bed Purchasing - South,Respite Planned - Nursing,Deerhurst Nursing Home,1155.84, 28-Aug-2018
790,Revenue,CAHD,Bed Purchasing - South,Respite Planned - Nursing,Deerhurst Nursing Home,577.92, 28-Aug-2018
791,Revenue,CAHD,Bed Purchasing - South,Permanent Nursing,Deerhurst Nursing Home,2963.08, 28-Aug-2018
792,Revenue,CAHD,South Glos Users in South Glos Homes,Permanent Nursing,Deerhurst Nursing Home,632.64, 28-Aug-2018
793,Revenue,CAHD,South Glos Users in South Glos Homes,Permanent Nursing,Deerhurst Nursing Home,632.64, 28-Aug-2018
794,Revenue,CAHD,South Glos Users in South Glos Homes,Permanent Nursing,Deerhurst Nursing Home,632.64, 28-Aug-2018
795,Revenue,CAHD,South Glos Users in South Glos Homes,Permanent Nursing,Deerhurst Nursing Home,632.64, 28-Aug-2018
796,Revenue,CAHD,South Glos Users in South Glos Homes,Permanent Nursing,Deerhurst Nursing Home,632.64, 28-Aug-2018
797,Revenue,CAHD,South Glos Users in South Glos Homes,Permanent Nursing,Deerhurst Nursing Home,632.64, 28-Aug-2018
798,Revenue,CAHD,South Glos Users in South Glos Homes,Permanent Nursing,Deerhurst Nursing Home,632.64, 28-Aug-2018
799,Revenue,CAHD,South Glos Users in South Glos Homes,Permanent Nursing,Deerhurst Nursing Home,632.64, 28-Aug-2018
800,Revenue,CAHD,Bed Purchasing - Southmead Hospital,Permanent Nursing,Deerhurst Nursing Home,3872.20, 28-Aug-2018
801,Revenue,CAHD,Bed Purchasing - North,Permanent Nursing,Deerhurst Nursing Home,3513.12, 28-Aug-2018
802,Revenue,CAHD,South Glos Users in South Glos Homes,Permanent Nursing,Deerhurst Nursing Home,632.64, 28-Aug-2018
803,Revenue,CAHD,South Glos Users in South Glos Homes,Permanent Nursing,Deerhurst Nursing Home,632.64, 28-Aug-2018
804,Revenue,CAHD,Home Care - Elderly - North,Day Care / Social Activities,Deerhurst Nursing Home,544.00, 28-Aug-2018
805,Revenue,CAHD,Bed Purchasing - Elderly S117- North,Permanent Nursing,Deerhurst Nursing Home,3872.20, 28-Aug-2018
806,Revenue,CAHD,South Glos Users in South Glos Homes,Permanent Nursing,Deerhurst Nursing Home,632.64, 28-Aug-2018
807,Revenue,CAHD,South Glos Users in South Glos Homes,Permanent Nursing,Deerhurst Nursing Home,632.64, 28-Aug-2018
808,Revenue,CAHD,South Glos Users in South Glos Homes,Permanent Nursing,Deerhurst Nursing Home,632.64, 28-Aug-2018
809,Revenue,CAHD,South Glos Users in South Glos Homes,Permanent Nursing,Deerhurst Nursing Home,632.64, 28-Aug-2018
810,Revenue,CAHD,Bed Purchasing - South,Permanent Nursing,Deerhurst Nursing Home,3872.20, 28-Aug-2018
811,Revenue,CAHD,South Glos Users in South Glos Homes,Permanent Nursing,Deerhurst Nursing Home,632.64, 28-Aug-2018
812,Revenue,CAHD,Bed purchasing - Elderly S117 - South,Permanent Nursing,Deerhurst Nursing Home,3872.20, 28-Aug-2018
813,Revenue,CAHD,Bed purchasing - Elderly S117 - South,Permanent Nursing,Deerhurst Nursing Home,2963.08, 28-Aug-2018
814,Revenue,CAHD,South Glos Users in South Glos Homes,Permanent Nursing,Deerhurst Nursing Home,632.64, 28-Aug-2018
815,Revenue,CAHD,Home Care - Elderly - South,Day Care / Social Activities,Deerhurst Nursing Home,612.00, 28-Aug-2018
816,Revenue,CAHD,Bed Purchasing - South,Permanent Nursing,Deerhurst Nursing Home,3800.00, 28-Aug-2018
817,Revenue,CAHD,Bed Purchasing - South,Permanent Nursing,Deerhurst Nursing Home,1628.57, 28-Aug-2018
818,Revenue,CAHD,South Glos Users in South Glos Homes,Permanent Nursing,Deerhurst Nursing Home,632.64, 28-Aug-2018
819,Revenue,CAHD,South Glos Users in South Glos Homes,Permanent Nursing,Deerhurst Nursing Home,632.64, 28-Aug-2018
820,Revenue,CAHD,South Glos Users in South Glos Homes,Permanent Nursing,Deerhurst Nursing Home,632.64, 28-Aug-2018
821,Revenue,CAHD,South Glos Users in South Glos Homes,Permanent Nursing,Deerhurst Nursing Home,632.64, 28-Aug-2018
822,Revenue,CAHD,South Glos Users in South Glos Homes,Permanent Nursing,Deerhurst Nursing Home,632.64, 28-Aug-2018
823,Revenue,CAHD,South Glos Users in South Glos Homes,Permanent Nursing,Deerhurst Nursing Home,632.64, 28-Aug-2018
824,Revenue,CAHD,South Glos Users in South Glos Homes,Permanent Nursing,Deerhurst Nursing Home,632.64, 28-Aug-2018
825,Revenue,CAHD,South Glos Users in South Glos Homes,Permanent Nursing,Deerhurst Nursing Home,632.64, 28-Aug-2018
826,Revenue,CAHD,South Glos Users in South Glos Homes,Permanent Nursing,Deerhurst Nursing Home,632.64, 28-Aug-2018
827,Revenue,CAHD,Bed Purchasing - South,Permanent Residential,Deerhurst Nursing Home,3800.00, 28-Aug-2018
828,Revenue,CAHD,Bed Purchasing - South,Permanent Nursing,Deerhurst Nursing Home,3872.20, 28-Aug-2018
829,Revenue,CAHD,South Glos Users in South Glos Homes,Permanent Nursing,Deerhurst Nursing Home,632.64, 28-Aug-2018
830,Revenue,CAHD,Bed Purchasing - North,Permanent Nursing,Deerhurst Nursing Home,2963.08, 28-Aug-2018
831,Revenue,CAHD,South Glos Users in South Glos Homes,Permanent Nursing,Deerhurst Nursing Home,632.64, 28-Aug-2018
832,Revenue,CAHD,Bed Purchasing - Southmead Hospital,Permanent Nursing,Deerhurst Nursing Home,2769.00, 28-Aug-2018
833,Revenue,CAHD,South Glos Users in South Glos Homes,Permanent Nursing,Deerhurst Nursing Home,632.64, 28-Aug-2018
834,Revenue,CAHD,Bed Purchasing - South,Permanent Nursing,Deerhurst Nursing Home,2963.76, 28-Aug-2018
835,Revenue,CAHD,Bed Purchasing - South,Permanent Nursing,Deerhurst Nursing Home,2670.16, 28-Aug-2018
836,Revenue,CAHD,South Glos Users in South Glos Homes,Permanent Nursing,Deerhurst Nursing Home,632.64, 28-Aug-2018
837,Revenue,CAHD,South Glos Users in South Glos Homes,Permanent Nursing,Deerhurst Nursing Home,632.64, 28-Aug-2018
838,Revenue,CAHD,South Glos Users in South Glos Homes,Permanent Nursing,Deerhurst Nursing Home,632.64, 28-Aug-2018
839,Revenue,CAHD,South Glos Users in South Glos Homes,Permanent Nursing,Deerhurst Nursing Home,632.64, 28-Aug-2018
840,Revenue,CAHD,South Glos Users in South Glos Homes,Permanent Nursing,Deerhurst Nursing Home,632.64, 28-Aug-2018
841,Revenue,CAHD,Home Care - Elderly - South,Supported Living,Design House,11695.86, 28-Aug-2018
842,Revenue,CAHD,Home Care - Elderly - South,Supported Living,Design House,3916.99, 28-Aug-2018
843,Revenue,CAHD,Home Care - Elderly - South,Supported Living,Design House,2599.08, 28-Aug-2018
844,Revenue,CAHD,Home Care - Elderly - South,Supported Living,Design House,2991.52, 28-Aug-2018
845,Revenue,CAHD,Home Care - Elderly - South,Supported Living,Design House,3059.64, 28-Aug-2018
846,Revenue,CAHD,Home Care - Elderly - South,Supported Living,Design House,2923.40, 28-Aug-2018
847,Revenue,CAHD,Home Care - Elderly - South,Day Care / Social Activities,Design House,501.92, 28-Aug-2018
848,Revenue,CAHD,Home Care - Elderly - North,Day Care / Social Activities,Design House,2383.88, 28-Aug-2018
849,Revenue,CAHD,Home Care - Elderly - South,Day Care / Social Activities,Design House,1499.56, 28-Aug-2018
850,Revenue,CAHD,Home Care - Elderly - South,Supported Living,Design House,2577.00, 28-Aug-2018
851,Revenue,CAHD,Home Care - Elderly - South,Supported Living,Design House,2577.00, 28-Aug-2018
852,Revenue,CAHD,Home Care - Elderly - South,Supported Living,Design House,2099.16, 28-Aug-2018
853,Revenue,CAHD,Home Care - Elderly - South,Day Care / Social Activities,Design House,501.92, 28-Aug-2018
854,Revenue,CAHD,Home Care - Elderly - South,Supported Living,Design House,1852.24, 28-Aug-2018
855,Revenue,CAHD,Home Care - Elderly - South,Supported Living,Design House,2457.84, 28-Aug-2018
856,Revenue,CAHD,Home Care - Elderly - South,Supported Living,Design House,4206.60, 28-Aug-2018
857,Revenue,CAHD,Home Care - Elderly - South,Supported Living,Design House,2982.96, 28-Aug-2018
858,Revenue,CAHD,Home Care - Elderly - South,Day Care / Social Activities,Design House,1470.80, 28-Aug-2018
859,Revenue,CAHD,Home Care - Elderly - South,Supported Living,Design House,2832.52, 28-Aug-2018
860,Revenue,CAHD,Home Care - Elderly - South,Supported Living,Design House,2483.44, 28-Aug-2018
861,Revenue,CAHD,Home Care - Elderly - South,Supported Living,Design House,2204.80, 28-Aug-2018
862,Revenue,CAHD,Home Care - Elderly - South,Supported Living,Design House,2204.80, 28-Aug-2018
863,Revenue,CAHD,Home Care - Elderly - South,Other Small Contracts,Dhek Bhal,411.20, 29-Aug-2018
864,Revenue,CAHD,Home Care - Elderly - North,Other Small Contracts,Dhek Bhal,123.36, 29-Aug-2018
865,Revenue,CAHD,Home Care - Elderly - South,Other Small Contracts,Dhek Bhal,411.20, 29-Aug-2018
866,Revenue,CAHD,Home Care - Elderly - North,Other Small Contracts,Dhek Bhal,123.36, 29-Aug-2018
867,Revenue,CAHD,Home Care - Elderly - North,Supported Living,Dimensions  Suite 2,58590.82, 28-Aug-2018
868,Revenue,CAHD,Home Care - Elderly - South,Supported Living,Dimensions  Suite 2,1858.68, 28-Aug-2018
869,Revenue,CAHD,Home Care - Elderly - South,Supported Living,Dimensions  Suite 2,1857.88, 28-Aug-2018
870,Revenue,CAHD,Home Care - Elderly - South,Supported Living,Dimensions  Suite 2,1857.88, 28-Aug-2018
871,Revenue,CAHD,Home Care - Elderly - South,Supported Living,Dimensions  Suite 2,1857.88, 28-Aug-2018
872,Revenue,CAHD,Home Care - Elderly - North,Supported Living,Dimensions  Suite 2,1857.88, 28-Aug-2018
873,Revenue,CAHD,Bed Purchasing - South,Permanent Residential,Dimensions  Suite 2,5498.80, 28-Aug-2018
874,Revenue,CAHD,Bed Purchasing - South,Permanent Residential,Dimensions  Suite 2,2740.36, 28-Aug-2018
875,Revenue,CAHD,Home Care - Elderly - South,Day Care / Social Activities,DoCare Limited,79.05, 03-Aug-2018
876,Revenue,CAHD,Home Care - Elderly - South,Other Small Contracts,DoCare Limited,921.55, 03-Aug-2018
877,Revenue,CAHD,Home Care - Elderly - North,Other Small Contracts,DoCare Limited,5544.76, 03-Aug-2018
878,Revenue,CAHD,Home Care - Elderly - South,Day Care / Social Activities,DoCare Limited,73.78, 24-Aug-2018
879,Revenue,CAHD,Home Care - Elderly - South,Other Small Contracts,DoCare Limited,917.62, 24-Aug-2018
880,Revenue,CAHD,Home Care - Elderly - North,Other Small Contracts,DoCare Limited,5467.80, 24-Aug-2018
881,Revenue,CAHD,Homecare - Central,Other Small Contracts,DoCare Limited,65.04, 24-Aug-2018
882,Revenue,CAHD,Home Care - Elderly - South,Day Care / Social Activities,DoCare Limited,73.78, 24-Aug-2018
883,Revenue,CAHD,Home Care - Elderly - South,Other Small Contracts,DoCare Limited,977.18, 24-Aug-2018
884,Revenue,CAHD,Home Care - Elderly - North,Other Small Contracts,DoCare Limited,5642.48, 24-Aug-2018
885,Revenue,CAHD,Homecare - Central,Other Small Contracts,DoCare Limited,65.04, 24-Aug-2018
886,Revenue,CAHD,Home Care - Elderly - South,Day Care / Social Activities,DoCare Limited,31.62, 24-Aug-2018
887,Revenue,CAHD,Home Care - Elderly - South,Other Small Contracts,DoCare Limited,966.18, 24-Aug-2018
888,Revenue,CAHD,Home Care - Elderly - North,Other Small Contracts,DoCare Limited,5623.60, 24-Aug-2018
889,Revenue,CAHD,Statemented Support Academies,Schools Funding,Downend School,553.41, 23-Aug-2018
890,Revenue,CAHD,Statemented Support Academies,Schools Funding,Downend School,1119.41, 23-Aug-2018
891,Revenue,CAHD,Statemented Support Academies,Schools Funding,Downend School,541.62, 23-Aug-2018
892,Revenue,CAHD,Statemented Support Academies,Schools Funding,Downend School,565.20, 23-Aug-2018
893,Revenue,CAHD,Statemented Support Academies,Schools Funding,Downend School,1154.78, 23-Aug-2018
894,Revenue,CAHD,Statemented Support Academies,Schools Funding,Downend School,671.33, 23-Aug-2018
895,Revenue,CAHD,Statemented Support Academies,Schools Funding,Downend School,612.37, 23-Aug-2018
896,Revenue,CAHD,Statemented Support Academies,Schools Funding,Downend School,553.41, 23-Aug-2018
897,Revenue,CAHD,Statemented Support Academies,Schools Funding,Downend School,553.41, 23-Aug-2018
898,Revenue,CAHD,Social Lettings Agency,Other Supplies & Services,Individual,605.64, 24-Aug-2018
899,Revenue,CAHD,NHS Health Checks,Other Small Contracts,Dr W J Foubister & Partners,1196.00, 10-Aug-2018
900,Revenue,CAHD,Sexual Health,Other Small Contracts,Dr W J Foubister & Partners,1288.00, 03-Aug-2018
901,Revenue,CAHD,Bed Purchasing - Southmead Hospital,Permanent Nursing,Drakes Court,4733.60, 28-Aug-2018
902,Revenue,CAHD,Bed Purchasing - North,Permanent Nursing,Drakes Court,2332.40, 28-Aug-2018
903,Revenue,CAHD,South Glos Users in South Glos Homes,Permanent Nursing,Drakes Court,632.64, 28-Aug-2018
904,Revenue,CAHD,Bed Purchasing - Southmead Hospital,Permanent Nursing,Drakes Court,2832.84, 28-Aug-2018
905,Revenue,CAHD,Bed Purchasing - Southmead Hospital,Permanent Nursing,Drakes Court,2017.24, 28-Aug-2018
906,Revenue,CAHD,South Glos Users in South Glos Homes,Permanent Nursing,Drakes Court,632.64, 28-Aug-2018
907,Revenue,CAHD,Bed Purchasing - South,Permanent Nursing,Drakes Court,2832.84, 28-Aug-2018
908,Revenue,CAHD,South Glos Users in South Glos Homes,Permanent Nursing,Drakes Court,632.64, 28-Aug-2018
909,Revenue,CAHD,South Glos Users in South Glos Homes,Permanent Nursing,Drakes Court,632.64, 28-Aug-2018
910,Revenue,CAHD,Bed Purchasing - Southmead Hospital,Permanent Nursing,Drakes Court,2832.84, 28-Aug-2018
911,Revenue,CAHD,South Glos Users in South Glos Homes,Permanent Nursing,Drakes Court,632.64, 28-Aug-2018
912,Revenue,CAHD,South Glos Users in South Glos Homes,Permanent Nursing,Drakes Court,632.64, 28-Aug-2018
913,Revenue,CAHD,Bed Purchasing - North,Permanent Nursing,Drakes Court,2017.24, 28-Aug-2018
914,Revenue,CAHD,Bed Purchasing - Southmead Hospital,Permanent Nursing,Drakes Court,2017.24, 28-Aug-2018
915,Revenue,CAHD,South Glos Users in South Glos Homes,Permanent Nursing,Drakes Court,632.64, 28-Aug-2018
916,Revenue,CAHD,South Glos Users in South Glos Homes,Permanent Nursing,Drakes Court,632.64, 28-Aug-2018
917,Revenue,CAHD,South Glos Users in South Glos Homes,Permanent Nursing,Drakes Court,632.64, 28-Aug-2018
918,Revenue,CAHD,South Glos Users in South Glos Homes,Permanent Nursing,Drakes Court,632.64, 28-Aug-2018
919,Revenue,CAHD,Bed Purchasing - North,Permanent Residential,Drakes Court,1956.04, 28-Aug-2018
920,Revenue,CAHD,Bed Purchasing - Central,Permanent Residential,Drakes Court,5857.86, 28-Aug-2018
921,Revenue,CAHD,Bed Purchasing - Central,Permanent Residential,Drakes Court,2780.00, 28-Aug-2018
922,Revenue,CAHD,Bed Purchasing - Central,Fees & Charges Income - General,Drakes Court,1163.99, 28-Aug-2018
923,Revenue,CAHD,Bed Purchasing - North,Permanent Nursing,Drakes Court,2683.84, 28-Aug-2018
924,Revenue,CAHD,South Glos Users in South Glos Homes,Permanent Nursing,Drakes Court,632.64, 28-Aug-2018
925,Revenue,CAHD,South Glos Users in South Glos Homes,Permanent Nursing,Drakes Court,632.64, 28-Aug-2018
926,Revenue,CAHD,South Glos Users in South Glos Homes,Permanent Nursing,Drakes Court,632.64, 28-Aug-2018
927,Revenue,CAHD,South Glos Users in South Glos Homes,Permanent Nursing,Drakes Court,632.64, 28-Aug-2018
928,Revenue,CAHD,MH Purchasing - Younger,Permanent Residential,Dunraven House,2316.16, 28-Aug-2018
929,Revenue,CAHD,Bed and Breakfast,Bed & Breakfast,Individual,528.00, 03-Aug-2018
930,Revenue,CAHD,Bed and Breakfast,Bed & Breakfast,Individual,476.00, 02-Aug-2018
931,Revenue,CAHD,Bed and Breakfast,Bed & Breakfast,Individual,651.00, 03-Aug-2018
932,Revenue,CAHD,Bed and Breakfast,Bed & Breakfast,Individual,476.00, 08-Aug-2018
933,Revenue,CAHD,Bed and Breakfast,Bed & Breakfast,Individual,651.00, 08-Aug-2018
934,Revenue,CAHD,Bed and Breakfast,Bed & Breakfast,Individual,567.00, 08-Aug-2018
935,Revenue,CAHD,Bed and Breakfast,Bed & Breakfast,Individual,476.00, 14-Aug-2018
936,Revenue,CAHD,Bed and Breakfast,Bed & Breakfast,Individual,651.00, 14-Aug-2018
937,Revenue,CAHD,Bed and Breakfast,Bed & Breakfast,Individual,567.00, 13-Aug-2018
938,Revenue,CAHD,Bed and Breakfast,Bed & Breakfast,Individual,476.00, 21-Aug-2018
939,Revenue,CAHD,Bed and Breakfast,Bed & Breakfast,Individual,567.00, 21-Aug-2018
940,Revenue,CAHD,Bed and Breakfast,Bed & Breakfast,Individual,476.00, 29-Aug-2018
941,Revenue,CAHD,Bed and Breakfast,Bed & Breakfast,Individual,567.00, 29-Aug-2018
942,Revenue,CAHD,Bed and Breakfast,Bed & Breakfast,Individual,462.00, 28-Aug-2018
943,Revenue,CAHD,Bed Purchasing - North,Permanent Residential,East Court,2698.80, 28-Aug-2018
944,Revenue,CAHD,Minor Adaptations Service,Operational Equipment,Eastman & Co (Timber) Limited,1226.12, 10-Aug-2018
945,Revenue,CAHD,CSC - Quality Review Unit,Long Service Awards,Edenred (UK Group) Limited,481.00, 31-Aug-2018
946,Revenue,CAHD,Training - Adult Services,Training Expenses,Edge Training & Consultancy Limited,925.00, 24-Aug-2018
947,Revenue,CAHD,Bed Purchasing - Southmead Hospital,Respite Planned - Residential,Edgecumbe Lodge,3157.14, 28-Aug-2018
948,Revenue,CAHD,Bed Purchasing - Southmead Hospital,Respite Planned - Residential,Edgecumbe Lodge,742.86, 28-Aug-2018
949,Revenue,CAHD,Bed Purchasing - Southmead Hospital,Permanent Residential,Edgecumbe Lodge,2148.68, 28-Aug-2018
950,Revenue,CAHD,Bed Purchasing - Elderly S117- North,Permanent Residential,Edgecumbe Lodge,2656.00, 28-Aug-2018
951,Revenue,CAHD,Bed Purchasing - Elderly S117- North,Permanent Residential,Edgecumbe Lodge,1992.00, 28-Aug-2018
952,Revenue,CAHD,Bed Purchasing - Southmead Hospital,Permanent Residential,Edgecumbe Lodge,3157.14, 28-Aug-2018
953,Revenue,CAHD,Bed Purchasing - Southmead Hospital,Permanent Residential,Edgecumbe Lodge,2600.00, 28-Aug-2018
954,Revenue,CAHD,Bed Purchasing - South,Permanent Residential,Edgecumbe Lodge,2220.00, 28-Aug-2018
955,Revenue,CAHD,Bed Purchasing - South,Respite Planned - Residential,Edgecumbe Lodge,1021.43, 28-Aug-2018
956,Revenue,CAHD,Bed Purchasing - South,Respite Planned - Residential,Edgecumbe Lodge,928.57, 28-Aug-2018
957,Revenue,CAHD,Bed Purchasing - North,Permanent Residential,Edgecumbe Lodge,2364.56, 28-Aug-2018
958,Revenue,CAHD,Bed Purchasing - Central,Respite Planned - Residential,Edgecumbe Lodge,650.00, 28-Aug-2018
959,Revenue,CAHD,Bed Purchasing - South,Permanent Residential,Edgecumbe Lodge,2220.00, 28-Aug-2018
960,Revenue,CAHD,Bed Purchasing - South,Permanent Residential,Edgecumbe Lodge,2445.60, 28-Aug-2018
961,Revenue,CAHD,Bed Purchasing - Southmead Hospital,Permanent Residential,Edgecumbe Lodge,2477.40, 28-Aug-2018
962,Revenue,CAHD,Bed Purchasing - North,Permanent Residential,Edgecumbe Lodge,2197.20, 28-Aug-2018
963,Revenue,CAHD,Bed Purchasing - Southmead Hospital,Permanent Residential,Edgemont House Ltd,2600.00, 28-Aug-2018
964,Revenue,CAHD,Bed Purchasing - Southmead Hospital,Respite Emergency - Residential,Edgemont House Ltd,2661.43, 28-Aug-2018
965,Revenue,CAHD,Bed Purchasing - Southmead Hospital,Respite Emergency - Residential,Edgemont House Ltd,1478.57, 28-Aug-2018
966,Revenue,CAHD,Bed Purchasing - Southmead Hospital,Permanent Residential,Edgemont House Ltd,1948.72, 28-Aug-2018
967,Revenue,CAHD,Bed Purchasing - South,Permanent Residential,Edgemont House Ltd,2649.40, 28-Aug-2018
968,Revenue,CAHD,South Glos Users in South Glos Homes,Permanent Nursing,Edgemont View Nursing Home,632.64, 28-Aug-2018
969,Revenue,CAHD,Bed Purchasing - South,Permanent Nursing,Edgemont View Nursing Home,3464.60, 28-Aug-2018
970,Revenue,CAHD,South Glos Users in South Glos Homes,Permanent Nursing,Edgemont View Nursing Home,632.64, 28-Aug-2018
971,Revenue,CAHD,South Glos Users in South Glos Homes,Permanent Nursing,Edgemont View Nursing Home,632.64, 28-Aug-2018
972,Revenue,CAHD,South Glos Users in South Glos Homes,Permanent Nursing,Edgemont View Nursing Home,632.64, 28-Aug-2018
973,Revenue,CAHD,South Glos Users in South Glos Homes,Permanent Nursing,Edgemont View Nursing Home,632.64, 28-Aug-2018
974,Revenue,CAHD,South Glos Users in South Glos Homes,Permanent Nursing,Edgemont View Nursing Home,632.64, 28-Aug-2018
975,Revenue,CAHD,South Glos Users in South Glos Homes,Permanent Nursing,Edgemont View Nursing Home,632.64, 28-Aug-2018
976,Revenue,CAHD,South Glos Users in South Glos Homes,Permanent Nursing,Edgemont View Nursing Home,632.64, 28-Aug-2018
977,Revenue,CAHD,South Glos Users in South Glos Homes,Permanent Nursing,Edgemont View Nursing Home,632.64, 28-Aug-2018
978,Revenue,CAHD,Bed Purchasing - South,Permanent Nursing,Edgemont View Nursing Home,2934.72, 28-Aug-2018
979,Revenue,CAHD,South Glos Users in South Glos Homes,Permanent Nursing,Edgemont View Nursing Home,632.64, 28-Aug-2018
980,Revenue,CAHD,South Glos Users in South Glos Homes,Permanent Nursing,Edgemont View Nursing Home,632.64, 28-Aug-2018
981,Revenue,CAHD,South Glos Users in South Glos Homes,Permanent Nursing,Edgemont View Nursing Home,632.64, 28-Aug-2018
982,Revenue,CAHD,South Glos Users in South Glos Homes,Permanent Nursing,Edgemont View Nursing Home,632.64, 28-Aug-2018
983,Revenue,CAHD,South Glos Users in South Glos Homes,Permanent Nursing,Edgemont View Nursing Home,632.64, 28-Aug-2018
984,Revenue,CAHD,South Glos Users in South Glos Homes,Permanent Nursing,Edgemont View Nursing Home,632.64, 28-Aug-2018
985,Revenue,CAHD,Bed Purchasing - South,Permanent Nursing,Edgemont View Nursing Home,2934.72, 28-Aug-2018
986,Revenue,CAHD,South Glos Users in South Glos Homes,Permanent Nursing,Edgemont View Nursing Home,632.64, 28-Aug-2018
987,Revenue,CAHD,Bed Purchasing - South,Permanent Nursing,Edgemont View Nursing Home,2310.44, 28-Aug-2018
988,Revenue,CAHD,South Glos Users in South Glos Homes,Permanent Nursing,Edgemont View Nursing Home,632.64, 28-Aug-2018
989,Revenue,CAHD,South Glos Users in South Glos Homes,Permanent Nursing,Edgemont View Nursing Home,632.64, 28-Aug-2018
990,Revenue,CAHD,South Glos Users in South Glos Homes,Permanent Nursing,Edgemont View Nursing Home,632.64, 28-Aug-2018
991,Revenue,CAHD,Planning and Partnerships Procurement,Other Supplies & Services,Eldercare,2938.98, 02-Aug-2018
992,Revenue,CAHD,Planning and Partnerships Procurement,Other Supplies & Services,Eldercare,2981.07, 24-Aug-2018
993,Revenue,CAHD,Supporting People Programme,Grants to Voluntary Bodies,Elim Housing Association Limited,5236.00, 01-Aug-2018
994,Revenue,CAHD,Supporting People Programme,Grants to Voluntary Bodies,Elim Housing Association Limited,5236.00, 31-Aug-2018
995,Revenue,CAHD,Home Care - Elderly - South,Other Small Contracts,Elite Home Care Ltd,6458.58, 29-Aug-2018
996,Revenue,CAHD,Home Care - Elderly - North,Other Small Contracts,Elite Home Care Ltd,1296.40, 29-Aug-2018
997,Revenue,CAHD,Home Care - Elderly - South,Other Small Contracts,Elite Home Care Ltd,6472.44, 29-Aug-2018
998,Revenue,CAHD,Home Care - Elderly - North,Other Small Contracts,Elite Home Care Ltd,1338.07, 29-Aug-2018
999,Revenue,CAHD,Home Care - Elderly - South,Other Small Contracts,Elite Home Care Ltd,6401.39, 29-Aug-2018
1000,Revenue,CAHD,Home Care - Elderly - North,Other Small Contracts,Elite Home Care Ltd,1222.32, 29-Aug-2018
1001,Revenue,CAHD,Home Care - Elderly - South,Other Small Contracts,Elite Home Care Ltd,6509.45, 29-Aug-2018
1002,Revenue,CAHD,Home Care - Elderly - North,Other Small Contracts,Elite Home Care Ltd,1046.38, 29-Aug-2018
1003,Revenue,CAHD,Home Care - Elderly - South,Other Small Contracts,Elite Home Care Ltd,6670.70, 29-Aug-2018
1004,Revenue,CAHD,Home Care - Elderly - North,Other Small Contracts,Elite Home Care Ltd,1055.64, 29-Aug-2018
1005,Revenue,CAHD,Bed Purchasing - South,Permanent Nursing,Ellenborough House,2934.72, 28-Aug-2018
1006,Revenue,CAHD,NHS Health Checks,Other Small Contracts,Emersons Green Medical Centre,1449.00, 10-Aug-2018
1007,Revenue,CAHD,Sexual Health,Other Small Contracts,Emersons Green Medical Centre,732.98, 03-Aug-2018
1008,Revenue,CAHD,Special ISB,Other Public Bodies,Enable Trust,1175.88, 01-Aug-2018
1009,Revenue,CAHD,Special ISB,Other Public Bodies,Enable Trust,892.04, 01-Aug-2018
1010,Revenue,CAHD,Special ISB,Other Public Bodies,Enable Trust,1175.88, 01-Aug-2018
1011,Revenue,CAHD,Special ISB,Other Public Bodies,Enable Trust,1540.83, 01-Aug-2018
1012,Revenue,CAHD,Special ISB,Other Public Bodies,Enable Trust,892.04, 01-Aug-2018
1013,Revenue,CAHD,Special ISB,Other Public Bodies,Enable Trust,1175.88, 01-Aug-2018
1014,Revenue,CAHD,Special ISB,Other Public Bodies,Enable Trust,1175.88, 01-Aug-2018
1015,Revenue,CAHD,Special ISB,Other Public Bodies,Enable Trust,648.71, 01-Aug-2018
1016,Revenue,CAHD,Special ISB,Other Public Bodies,Enable Trust,1540.83, 01-Aug-2018
1017,Revenue,CAHD,Special ISB,Other Public Bodies,Enable Trust,648.71, 01-Aug-2018
1018,Revenue,CAHD,Special ISB,Other Public Bodies,Enable Trust,892.04, 01-Aug-2018
1019,Revenue,CAHD,Special ISB,Other Public Bodies,Enable Trust,1175.88, 01-Aug-2018
1020,Revenue,CAHD,Special ISB,Other Public Bodies,Enable Trust,1175.88, 01-Aug-2018
1021,Revenue,CAHD,Special ISB,Other Public Bodies,Enable Trust,892.04, 01-Aug-2018
1022,Revenue,CAHD,Special ISB,Other Public Bodies,Enable Trust,1702.96, 01-Aug-2018
1023,Revenue,CAHD,Special ISB,Other Public Bodies,Enable Trust,1175.88, 01-Aug-2018
1024,Revenue,CAHD,Special ISB,Other Public Bodies,Enable Trust,648.71, 01-Aug-2018
1025,Revenue,CAHD,Special ISB,Other Public Bodies,Enable Trust,892.04, 01-Aug-2018
1026,Revenue,CAHD,Special ISB,Other Public Bodies,Enable Trust,1540.83, 01-Aug-2018
1027,Revenue,CAHD,Special ISB,Other Public Bodies,Enable Trust,1175.88, 01-Aug-2018
1028,Revenue,CAHD,Special ISB,Other Public Bodies,Enable Trust,892.04, 01-Aug-2018
1029,Revenue,CAHD,Special ISB,Other Public Bodies,Enable Trust,1175.88, 01-Aug-2018
1030,Revenue,CAHD,Special ISB,Other Public Bodies,Enable Trust,892.04, 01-Aug-2018
1031,Revenue,CAHD,Special ISB,Other Public Bodies,Enable Trust,1175.88, 01-Aug-2018
1032,Revenue,CAHD,Special ISB,Other Public Bodies,Enable Trust,2189.53, 01-Aug-2018
1033,Revenue,CAHD,Special ISB,Other Public Bodies,Enable Trust,1175.88, 01-Aug-2018
1034,Revenue,CAHD,Special ISB,Other Public Bodies,Enable Trust,1175.88, 01-Aug-2018
1035,Revenue,CAHD,Special ISB,Other Public Bodies,Enable Trust,1175.88, 01-Aug-2018
1036,Revenue,CAHD,Special ISB,Other Public Bodies,Enable Trust,1175.88, 01-Aug-2018
1037,Revenue,CAHD,Special ISB,Other Public Bodies,Enable Trust,1540.83, 01-Aug-2018
1038,Revenue,CAHD,Special ISB,Other Public Bodies,Enable Trust,1540.83, 01-Aug-2018
1039,Revenue,CAHD,Special ISB,Other Public Bodies,Enable Trust,892.04, 01-Aug-2018
1040,Revenue,CAHD,Special ISB,Other Public Bodies,Enable Trust,1175.88, 01-Aug-2018
1041,Revenue,CAHD,Special ISB,Other Public Bodies,Enable Trust,892.04, 01-Aug-2018
1042,Revenue,CAHD,Special ISB,Other Public Bodies,Enable Trust,1540.83, 01-Aug-2018
1043,Revenue,CAHD,Special ISB,Other Public Bodies,Enable Trust,1175.88, 01-Aug-2018
1044,Revenue,CAHD,Special ISB,Other Public Bodies,Enable Trust,1175.88, 01-Aug-2018
1045,Revenue,CAHD,Special ISB,Other Public Bodies,Enable Trust,1175.88, 01-Aug-2018
1046,Revenue,CAHD,Special ISB,Other Public Bodies,Enable Trust,1175.88, 01-Aug-2018
1047,Revenue,CAHD,Special ISB,Other Public Bodies,Enable Trust,648.71, 01-Aug-2018
1048,Revenue,CAHD,Special ISB,Other Public Bodies,Enable Trust,1175.88, 01-Aug-2018
1049,Revenue,CAHD,Special ISB,Other Public Bodies,Enable Trust,1702.96, 01-Aug-2018
1050,Revenue,CAHD,Special ISB,Other Public Bodies,Enable Trust,1540.83, 01-Aug-2018
1051,Revenue,CAHD,Special ISB,Other Public Bodies,Enable Trust,892.04, 01-Aug-2018
1052,Revenue,CAHD,Special ISB,Other Public Bodies,Enable Trust,1175.88, 01-Aug-2018
1053,Revenue,CAHD,Special ISB,Other Public Bodies,Enable Trust,1175.88, 01-Aug-2018
1054,Revenue,CAHD,Special ISB,Other Public Bodies,Enable Trust,1540.83, 01-Aug-2018
1055,Revenue,CAHD,Special ISB,Other Public Bodies,Enable Trust,892.04, 01-Aug-2018
1056,Revenue,CAHD,Special ISB,Other Public Bodies,Enable Trust,892.04, 01-Aug-2018
1057,Revenue,CAHD,Special ISB,Other Public Bodies,Enable Trust,1540.83, 01-Aug-2018
1058,Revenue,CAHD,Special ISB,Other Public Bodies,Enable Trust,1540.83, 01-Aug-2018
1059,Revenue,CAHD,Special ISB,Other Public Bodies,Enable Trust,648.71, 01-Aug-2018
1060,Revenue,CAHD,Special ISB,Other Public Bodies,Enable Trust,1175.88, 01-Aug-2018
1061,Revenue,CAHD,Special ISB,Other Public Bodies,Enable Trust,1540.83, 01-Aug-2018
1062,Revenue,CAHD,Special ISB,Other Public Bodies,Enable Trust,1175.88, 24-Aug-2018
1063,Revenue,CAHD,Special ISB,Other Public Bodies,Enable Trust,892.04, 24-Aug-2018
1064,Revenue,CAHD,Special ISB,Other Public Bodies,Enable Trust,1175.88, 24-Aug-2018
1065,Revenue,CAHD,Special ISB,Other Public Bodies,Enable Trust,1540.83, 24-Aug-2018
1066,Revenue,CAHD,Special ISB,Other Public Bodies,Enable Trust,892.04, 24-Aug-2018
1067,Revenue,CAHD,Special ISB,Other Public Bodies,Enable Trust,1175.88, 24-Aug-2018
1068,Revenue,CAHD,Special ISB,Other Public Bodies,Enable Trust,1175.88, 24-Aug-2018
1069,Revenue,CAHD,Special ISB,Other Public Bodies,Enable Trust,648.71, 24-Aug-2018
1070,Revenue,CAHD,Special ISB,Other Public Bodies,Enable Trust,1540.83, 24-Aug-2018
1071,Revenue,CAHD,Special ISB,Other Public Bodies,Enable Trust,648.71, 24-Aug-2018
1072,Revenue,CAHD,Special ISB,Other Public Bodies,Enable Trust,892.04, 24-Aug-2018
1073,Revenue,CAHD,Special ISB,Other Public Bodies,Enable Trust,1175.88, 24-Aug-2018
1074,Revenue,CAHD,Special ISB,Other Public Bodies,Enable Trust,1175.88, 24-Aug-2018
1075,Revenue,CAHD,Special ISB,Other Public Bodies,Enable Trust,892.04, 24-Aug-2018
1076,Revenue,CAHD,Special ISB,Other Public Bodies,Enable Trust,1702.96, 24-Aug-2018
1077,Revenue,CAHD,Special ISB,Other Public Bodies,Enable Trust,1175.88, 24-Aug-2018
1078,Revenue,CAHD,Special ISB,Other Public Bodies,Enable Trust,648.71, 24-Aug-2018
1079,Revenue,CAHD,Special ISB,Other Public Bodies,Enable Trust,892.04, 24-Aug-2018
1080,Revenue,CAHD,Special ISB,Other Public Bodies,Enable Trust,1540.83, 24-Aug-2018
1081,Revenue,CAHD,Special ISB,Other Public Bodies,Enable Trust,1175.88, 24-Aug-2018
1082,Revenue,CAHD,Special ISB,Other Public Bodies,Enable Trust,892.04, 24-Aug-2018
1083,Revenue,CAHD,Special ISB,Other Public Bodies,Enable Trust,1175.88, 24-Aug-2018
1084,Revenue,CAHD,Special ISB,Other Public Bodies,Enable Trust,892.04, 24-Aug-2018
1085,Revenue,CAHD,Special ISB,Other Public Bodies,Enable Trust,1175.88, 24-Aug-2018
1086,Revenue,CAHD,Special ISB,Other Public Bodies,Enable Trust,2189.53, 24-Aug-2018
1087,Revenue,CAHD,Special ISB,Other Public Bodies,Enable Trust,1175.88, 24-Aug-2018
1088,Revenue,CAHD,Special ISB,Other Public Bodies,Enable Trust,1175.88, 24-Aug-2018
1089,Revenue,CAHD,Special ISB,Other Public Bodies,Enable Trust,1175.88, 24-Aug-2018
1090,Revenue,CAHD,Special ISB,Other Public Bodies,Enable Trust,1175.88, 24-Aug-2018
1091,Revenue,CAHD,Special ISB,Other Public Bodies,Enable Trust,1540.83, 24-Aug-2018
1092,Revenue,CAHD,Special ISB,Other Public Bodies,Enable Trust,1540.83, 24-Aug-2018
1093,Revenue,CAHD,Special ISB,Other Public Bodies,Enable Trust,892.04, 24-Aug-2018
1094,Revenue,CAHD,Special ISB,Other Public Bodies,Enable Trust,1175.88, 24-Aug-2018
1095,Revenue,CAHD,Special ISB,Other Public Bodies,Enable Trust,892.04, 24-Aug-2018
1096,Revenue,CAHD,Special ISB,Other Public Bodies,Enable Trust,1540.83, 24-Aug-2018
1097,Revenue,CAHD,Special ISB,Other Public Bodies,Enable Trust,1175.88, 24-Aug-2018
1098,Revenue,CAHD,Special ISB,Other Public Bodies,Enable Trust,1175.88, 24-Aug-2018
1099,Revenue,CAHD,Special ISB,Other Public Bodies,Enable Trust,1175.88, 24-Aug-2018
1100,Revenue,CAHD,Special ISB,Other Public Bodies,Enable Trust,1175.88, 24-Aug-2018
1101,Revenue,CAHD,Special ISB,Other Public Bodies,Enable Trust,648.71, 24-Aug-2018
1102,Revenue,CAHD,Special ISB,Other Public Bodies,Enable Trust,1175.88, 24-Aug-2018
1103,Revenue,CAHD,Special ISB,Other Public Bodies,Enable Trust,1702.96, 24-Aug-2018
1104,Revenue,CAHD,Special ISB,Other Public Bodies,Enable Trust,1540.83, 24-Aug-2018
1105,Revenue,CAHD,Special ISB,Other Public Bodies,Enable Trust,892.04, 24-Aug-2018
1106,Revenue,CAHD,Special ISB,Other Public Bodies,Enable Trust,1175.88, 24-Aug-2018
1107,Revenue,CAHD,Special ISB,Other Public Bodies,Enable Trust,1175.88, 24-Aug-2018
1108,Revenue,CAHD,Special ISB,Other Public Bodies,Enable Trust,1540.83, 24-Aug-2018
1109,Revenue,CAHD,Special ISB,Other Public Bodies,Enable Trust,892.04, 24-Aug-2018
1110,Revenue,CAHD,Special ISB,Other Public Bodies,Enable Trust,892.04, 24-Aug-2018
1111,Revenue,CAHD,Special ISB,Other Public Bodies,Enable Trust,1540.83, 24-Aug-2018
1112,Revenue,CAHD,Special ISB,Other Public Bodies,Enable Trust,1540.83, 24-Aug-2018
1113,Revenue,CAHD,Special ISB,Other Public Bodies,Enable Trust,648.71, 24-Aug-2018
1114,Revenue,CAHD,Special ISB,Other Public Bodies,Enable Trust,1175.88, 24-Aug-2018
1115,Revenue,CAHD,Special ISB,Other Public Bodies,Enable Trust,1540.83, 24-Aug-2018
1116,Revenue,CAHD,Special ISB,Other Public Bodies,Enable Trust,1702.96, 01-Aug-2018
1117,Revenue,CAHD,Special ISB,Other Public Bodies,Enable Trust,892.04, 01-Aug-2018
1118,Revenue,CAHD,Special ISB,Other Public Bodies,Enable Trust,1175.88, 01-Aug-2018
1119,Revenue,CAHD,Special ISB,Other Public Bodies,Enable Trust,2189.53, 01-Aug-2018
1120,Revenue,CAHD,Special ISB,Other Public Bodies,Enable Trust,2189.53, 01-Aug-2018
1121,Revenue,CAHD,Special ISB,Other Public Bodies,Enable Trust,1175.88, 01-Aug-2018
1122,Revenue,CAHD,Special ISB,Other Public Bodies,Enable Trust,892.04, 01-Aug-2018
1123,Revenue,CAHD,Special ISB,Other Public Bodies,Enable Trust,892.04, 01-Aug-2018
1124,Revenue,CAHD,Special ISB,Other Public Bodies,Enable Trust,892.04, 01-Aug-2018
1125,Revenue,CAHD,Special ISB,Other Public Bodies,Enable Trust,1175.88, 01-Aug-2018
1126,Revenue,CAHD,Special ISB,Other Public Bodies,Enable Trust,1175.88, 01-Aug-2018
1127,Revenue,CAHD,Special ISB,Other Public Bodies,Enable Trust,1175.88, 01-Aug-2018
1128,Revenue,CAHD,Special ISB,Other Public Bodies,Enable Trust,892.04, 01-Aug-2018
1129,Revenue,CAHD,Special ISB,Other Public Bodies,Enable Trust,1702.96, 01-Aug-2018
1130,Revenue,CAHD,Special ISB,Other Public Bodies,Enable Trust,892.04, 01-Aug-2018
1131,Revenue,CAHD,Special ISB,Other Public Bodies,Enable Trust,1175.88, 01-Aug-2018
1132,Revenue,CAHD,Special ISB,Other Public Bodies,Enable Trust,2189.53, 01-Aug-2018
1133,Revenue,CAHD,Special ISB,Other Public Bodies,Enable Trust,2513.89, 01-Aug-2018
1134,Revenue,CAHD,Special ISB,Other Public Bodies,Enable Trust,892.04, 01-Aug-2018
1135,Revenue,CAHD,Special ISB,Other Public Bodies,Enable Trust,892.04, 01-Aug-2018
1136,Revenue,CAHD,Special ISB,Other Public Bodies,Enable Trust,1702.96, 01-Aug-2018
1137,Revenue,CAHD,Special ISB,Other Public Bodies,Enable Trust,1508.33, 01-Aug-2018
1138,Revenue,CAHD,Special ISB,Other Public Bodies,Enable Trust,1175.88, 01-Aug-2018
1139,Revenue,CAHD,Special ISB,Other Public Bodies,Enable Trust,1175.88, 01-Aug-2018
1140,Revenue,CAHD,Special ISB,Other Public Bodies,Enable Trust,1175.88, 01-Aug-2018
1141,Revenue,CAHD,Special ISB,Other Public Bodies,Enable Trust,1702.96, 01-Aug-2018
1142,Revenue,CAHD,Special ISB,Other Public Bodies,Enable Trust,1702.96, 01-Aug-2018
1143,Revenue,CAHD,Special ISB,Other Public Bodies,Enable Trust,1175.88, 01-Aug-2018
1144,Revenue,CAHD,Special ISB,Other Public Bodies,Enable Trust,1175.88, 01-Aug-2018
1145,Revenue,CAHD,Special ISB,Other Public Bodies,Enable Trust,892.04, 01-Aug-2018
1146,Revenue,CAHD,Special ISB,Other Public Bodies,Enable Trust,1175.88, 01-Aug-2018
1147,Revenue,CAHD,Special ISB,Other Public Bodies,Enable Trust,1175.88, 01-Aug-2018
1148,Revenue,CAHD,Special ISB,Other Public Bodies,Enable Trust,1175.88, 01-Aug-2018
1149,Revenue,CAHD,Special ISB,Other Public Bodies,Enable Trust,1175.88, 01-Aug-2018
1150,Revenue,CAHD,Special ISB,Other Public Bodies,Enable Trust,1702.96, 01-Aug-2018
1151,Revenue,CAHD,Special ISB,Other Public Bodies,Enable Trust,1702.96, 01-Aug-2018
1152,Revenue,CAHD,Special ISB,Other Public Bodies,Enable Trust,892.04, 01-Aug-2018
1153,Revenue,CAHD,Special ISB,Other Public Bodies,Enable Trust,1175.88, 01-Aug-2018
1154,Revenue,CAHD,Special ISB,Other Public Bodies,Enable Trust,1702.96, 01-Aug-2018
1155,Revenue,CAHD,Special ISB,Other Public Bodies,Enable Trust,892.04, 01-Aug-2018
1156,Revenue,CAHD,Special ISB,Other Public Bodies,Enable Trust,1175.88, 01-Aug-2018
1157,Revenue,CAHD,Special ISB,Other Public Bodies,Enable Trust,1175.88, 01-Aug-2018
1158,Revenue,CAHD,Special ISB,Other Public Bodies,Enable Trust,1175.88, 01-Aug-2018
1159,Revenue,CAHD,Special ISB,Other Public Bodies,Enable Trust,892.04, 01-Aug-2018
1160,Revenue,CAHD,Special ISB,Other Public Bodies,Enable Trust,1175.88, 01-Aug-2018
1161,Revenue,CAHD,Special ISB,Other Public Bodies,Enable Trust,892.04, 01-Aug-2018
1162,Revenue,CAHD,Special ISB,Other Public Bodies,Enable Trust,1175.88, 01-Aug-2018
1163,Revenue,CAHD,Special ISB,Other Public Bodies,Enable Trust,1175.88, 01-Aug-2018
1164,Revenue,CAHD,Special ISB,Other Public Bodies,Enable Trust,2189.53, 01-Aug-2018
1165,Revenue,CAHD,Special ISB,Other Public Bodies,Enable Trust,1702.96, 01-Aug-2018
1166,Revenue,CAHD,Special ISB,Other Public Bodies,Enable Trust,705.53, 01-Aug-2018
1167,Revenue,CAHD,Special ISB,Other Public Bodies,Enable Trust,892.04, 01-Aug-2018
1168,Revenue,CAHD,Special ISB,Other Public Bodies,Enable Trust,1175.88, 01-Aug-2018
1169,Revenue,CAHD,Special ISB,Other Public Bodies,Enable Trust,1702.96, 01-Aug-2018
1170,Revenue,CAHD,Special ISB,Other Public Bodies,Enable Trust,1702.96, 01-Aug-2018
1171,Revenue,CAHD,Special ISB,Other Public Bodies,Enable Trust,1540.83, 01-Aug-2018
1172,Revenue,CAHD,Special ISB,Other Public Bodies,Enable Trust,892.04, 01-Aug-2018
1173,Revenue,CAHD,Special ISB,Other Public Bodies,Enable Trust,1175.88, 01-Aug-2018
1174,Revenue,CAHD,Special ISB,Other Public Bodies,Enable Trust,2513.89, 01-Aug-2018
1175,Revenue,CAHD,Special ISB,Other Public Bodies,Enable Trust,1175.88, 01-Aug-2018
1176,Revenue,CAHD,Special ISB,Other Public Bodies,Enable Trust,1175.88, 01-Aug-2018
1177,Revenue,CAHD,Special ISB,Other Public Bodies,Enable Trust,892.04, 01-Aug-2018
1178,Revenue,CAHD,Special ISB,Other Public Bodies,Enable Trust,892.04, 01-Aug-2018
1179,Revenue,CAHD,Special ISB,Other Public Bodies,Enable Trust,892.04, 01-Aug-2018
1180,Revenue,CAHD,Special ISB,Other Public Bodies,Enable Trust,1175.88, 01-Aug-2018
1181,Revenue,CAHD,Special ISB,Other Public Bodies,Enable Trust,892.04, 01-Aug-2018
1182,Revenue,CAHD,Special ISB,Other Public Bodies,Enable Trust,892.04, 01-Aug-2018
1183,Revenue,CAHD,Special ISB,Other Public Bodies,Enable Trust,892.04, 01-Aug-2018
1184,Revenue,CAHD,Special ISB,Other Public Bodies,Enable Trust,892.04, 01-Aug-2018
1185,Revenue,CAHD,Special ISB,Other Public Bodies,Enable Trust,1175.88, 01-Aug-2018
1186,Revenue,CAHD,Special ISB,Other Public Bodies,Enable Trust,1702.96, 01-Aug-2018
1187,Revenue,CAHD,Special ISB,Other Public Bodies,Enable Trust,1313.72, 01-Aug-2018
1188,Revenue,CAHD,Special ISB,Other Public Bodies,Enable Trust,892.04, 01-Aug-2018
1189,Revenue,CAHD,Special ISB,Other Public Bodies,Enable Trust,1175.88, 01-Aug-2018
1190,Revenue,CAHD,Special ISB,Other Public Bodies,Enable Trust,2189.53, 01-Aug-2018
1191,Revenue,CAHD,Special ISB,Other Public Bodies,Enable Trust,1702.96, 01-Aug-2018
1192,Revenue,CAHD,Special ISB,Other Public Bodies,Enable Trust,892.04, 01-Aug-2018
1193,Revenue,CAHD,Special ISB,Other Public Bodies,Enable Trust,892.04, 01-Aug-2018
1194,Revenue,CAHD,Special ISB,Other Public Bodies,Enable Trust,1702.96, 01-Aug-2018
1195,Revenue,CAHD,Special ISB,Other Public Bodies,Enable Trust,1702.96, 01-Aug-2018
1196,Revenue,CAHD,Special ISB,Other Public Bodies,Enable Trust,1175.88, 01-Aug-2018
1197,Revenue,CAHD,Special ISB,Other Public Bodies,Enable Trust,1702.96, 24-Aug-2018
1198,Revenue,CAHD,Special ISB,Other Public Bodies,Enable Trust,892.04, 24-Aug-2018
1199,Revenue,CAHD,Special ISB,Other Public Bodies,Enable Trust,1175.88, 24-Aug-2018
1200,Revenue,CAHD,Special ISB,Other Public Bodies,Enable Trust,2189.53, 24-Aug-2018
1201,Revenue,CAHD,Special ISB,Other Public Bodies,Enable Trust,2189.53, 24-Aug-2018
1202,Revenue,CAHD,Special ISB,Other Public Bodies,Enable Trust,1175.88, 24-Aug-2018
1203,Revenue,CAHD,Special ISB,Other Public Bodies,Enable Trust,892.04, 24-Aug-2018
1204,Revenue,CAHD,Special ISB,Other Public Bodies,Enable Trust,892.04, 24-Aug-2018
1205,Revenue,CAHD,Special ISB,Other Public Bodies,Enable Trust,892.04, 24-Aug-2018
1206,Revenue,CAHD,Special ISB,Other Public Bodies,Enable Trust,1175.88, 24-Aug-2018
1207,Revenue,CAHD,Special ISB,Other Public Bodies,Enable Trust,1175.88, 24-Aug-2018
1208,Revenue,CAHD,Special ISB,Other Public Bodies,Enable Trust,1175.88, 24-Aug-2018
1209,Revenue,CAHD,Special ISB,Other Public Bodies,Enable Trust,892.04, 24-Aug-2018
1210,Revenue,CAHD,Special ISB,Other Public Bodies,Enable Trust,1702.96, 24-Aug-2018
1211,Revenue,CAHD,Special ISB,Other Public Bodies,Enable Trust,892.04, 24-Aug-2018
1212,Revenue,CAHD,Special ISB,Other Public Bodies,Enable Trust,1175.88, 24-Aug-2018
1213,Revenue,CAHD,Special ISB,Other Public Bodies,Enable Trust,2189.53, 24-Aug-2018
1214,Revenue,CAHD,Special ISB,Other Public Bodies,Enable Trust,2513.89, 24-Aug-2018
1215,Revenue,CAHD,Special ISB,Other Public Bodies,Enable Trust,892.04, 24-Aug-2018
1216,Revenue,CAHD,Special ISB,Other Public Bodies,Enable Trust,892.04, 24-Aug-2018
1217,Revenue,CAHD,Special ISB,Other Public Bodies,Enable Trust,1702.96, 24-Aug-2018
1218,Revenue,CAHD,Special ISB,Other Public Bodies,Enable Trust,1508.33, 24-Aug-2018
1219,Revenue,CAHD,Special ISB,Other Public Bodies,Enable Trust,1175.88, 24-Aug-2018
1220,Revenue,CAHD,Special ISB,Other Public Bodies,Enable Trust,1175.88, 24-Aug-2018
1221,Revenue,CAHD,Special ISB,Other Public Bodies,Enable Trust,1175.88, 24-Aug-2018
1222,Revenue,CAHD,Special ISB,Other Public Bodies,Enable Trust,1702.96, 24-Aug-2018
1223,Revenue,CAHD,Special ISB,Other Public Bodies,Enable Trust,1702.96, 24-Aug-2018
1224,Revenue,CAHD,Special ISB,Other Public Bodies,Enable Trust,1175.88, 24-Aug-2018
1225,Revenue,CAHD,Special ISB,Other Public Bodies,Enable Trust,1175.88, 24-Aug-2018
1226,Revenue,CAHD,Special ISB,Other Public Bodies,Enable Trust,892.04, 24-Aug-2018
1227,Revenue,CAHD,Special ISB,Other Public Bodies,Enable Trust,1175.88, 24-Aug-2018
1228,Revenue,CAHD,Special ISB,Other Public Bodies,Enable Trust,1175.88, 24-Aug-2018
1229,Revenue,CAHD,Special ISB,Other Public Bodies,Enable Trust,1175.88, 24-Aug-2018
1230,Revenue,CAHD,Special ISB,Other Public Bodies,Enable Trust,1175.88, 24-Aug-2018
1231,Revenue,CAHD,Special ISB,Other Public Bodies,Enable Trust,1702.96, 24-Aug-2018
1232,Revenue,CAHD,Special ISB,Other Public Bodies,Enable Trust,1702.96, 24-Aug-2018
1233,Revenue,CAHD,Special ISB,Other Public Bodies,Enable Trust,892.04, 24-Aug-2018
1234,Revenue,CAHD,Special ISB,Other Public Bodies,Enable Trust,1175.88, 24-Aug-2018
1235,Revenue,CAHD,Special ISB,Other Public Bodies,Enable Trust,1702.96, 24-Aug-2018
1236,Revenue,CAHD,Special ISB,Other Public Bodies,Enable Trust,892.04, 24-Aug-2018
1237,Revenue,CAHD,Special ISB,Other Public Bodies,Enable Trust,1175.88, 24-Aug-2018
1238,Revenue,CAHD,Special ISB,Other Public Bodies,Enable Trust,1175.88, 24-Aug-2018
1239,Revenue,CAHD,Special ISB,Other Public Bodies,Enable Trust,1175.88, 24-Aug-2018
1240,Revenue,CAHD,Special ISB,Other Public Bodies,Enable Trust,892.04, 24-Aug-2018
1241,Revenue,CAHD,Special ISB,Other Public Bodies,Enable Trust,1175.88, 24-Aug-2018
1242,Revenue,CAHD,Special ISB,Other Public Bodies,Enable Trust,892.04, 24-Aug-2018
1243,Revenue,CAHD,Special ISB,Other Public Bodies,Enable Trust,1175.88, 24-Aug-2018
1244,Revenue,CAHD,Special ISB,Other Public Bodies,Enable Trust,1175.88, 24-Aug-2018
1245,Revenue,CAHD,Special ISB,Other Public Bodies,Enable Trust,2189.53, 24-Aug-2018
1246,Revenue,CAHD,Special ISB,Other Public Bodies,Enable Trust,1702.96, 24-Aug-2018
1247,Revenue,CAHD,Special ISB,Other Public Bodies,Enable Trust,705.53, 24-Aug-2018
1248,Revenue,CAHD,Special ISB,Other Public Bodies,Enable Trust,892.04, 24-Aug-2018
1249,Revenue,CAHD,Special ISB,Other Public Bodies,Enable Trust,1175.88, 24-Aug-2018
1250,Revenue,CAHD,Special ISB,Other Public Bodies,Enable Trust,1702.96, 24-Aug-2018
1251,Revenue,CAHD,Special ISB,Other Public Bodies,Enable Trust,1702.96, 24-Aug-2018
1252,Revenue,CAHD,Special ISB,Other Public Bodies,Enable Trust,1540.83, 24-Aug-2018
1253,Revenue,CAHD,Special ISB,Other Public Bodies,Enable Trust,892.04, 24-Aug-2018
1254,Revenue,CAHD,Special ISB,Other Public Bodies,Enable Trust,1175.88, 24-Aug-2018
1255,Revenue,CAHD,Special ISB,Other Public Bodies,Enable Trust,2513.89, 24-Aug-2018
1256,Revenue,CAHD,Special ISB,Other Public Bodies,Enable Trust,1175.88, 24-Aug-2018
1257,Revenue,CAHD,Special ISB,Other Public Bodies,Enable Trust,1175.88, 24-Aug-2018
1258,Revenue,CAHD,Special ISB,Other Public Bodies,Enable Trust,892.04, 24-Aug-2018
1259,Revenue,CAHD,Special ISB,Other Public Bodies,Enable Trust,892.04, 24-Aug-2018
1260,Revenue,CAHD,Special ISB,Other Public Bodies,Enable Trust,892.04, 24-Aug-2018
1261,Revenue,CAHD,Special ISB,Other Public Bodies,Enable Trust,1175.88, 24-Aug-2018
1262,Revenue,CAHD,Special ISB,Other Public Bodies,Enable Trust,892.04, 24-Aug-2018
1263,Revenue,CAHD,Special ISB,Other Public Bodies,Enable Trust,892.04, 24-Aug-2018
1264,Revenue,CAHD,Special ISB,Other Public Bodies,Enable Trust,892.04, 24-Aug-2018
1265,Revenue,CAHD,Special ISB,Other Public Bodies,Enable Trust,892.04, 24-Aug-2018
1266,Revenue,CAHD,Special ISB,Other Public Bodies,Enable Trust,1175.88, 24-Aug-2018
1267,Revenue,CAHD,Special ISB,Other Public Bodies,Enable Trust,1702.96, 24-Aug-2018
1268,Revenue,CAHD,Special ISB,Other Public Bodies,Enable Trust,1313.72, 24-Aug-2018
1269,Revenue,CAHD,Special ISB,Other Public Bodies,Enable Trust,892.04, 24-Aug-2018
1270,Revenue,CAHD,Special ISB,Other Public Bodies,Enable Trust,1175.88, 24-Aug-2018
1271,Revenue,CAHD,Special ISB,Other Public Bodies,Enable Trust,2189.53, 24-Aug-2018
1272,Revenue,CAHD,Special ISB,Other Public Bodies,Enable Trust,1702.96, 24-Aug-2018
1273,Revenue,CAHD,Special ISB,Other Public Bodies,Enable Trust,892.04, 24-Aug-2018
1274,Revenue,CAHD,Special ISB,Other Public Bodies,Enable Trust,892.04, 24-Aug-2018
1275,Revenue,CAHD,Special ISB,Other Public Bodies,Enable Trust,1702.96, 24-Aug-2018
1276,Revenue,CAHD,Special ISB,Other Public Bodies,Enable Trust,1702.96, 24-Aug-2018
1277,Revenue,CAHD,Special ISB,Other Public Bodies,Enable Trust,1175.88, 24-Aug-2018
1278,Revenue,CAHD,CSC - Agency Fostering,Foster Parent Allowances,Enhanced Foster Care Ltd,4650.00, 28-Aug-2018
1279,Revenue,CAHD,CSC - Ofsted Work,Agency Staff (Admin/Support Staff) Pay,Enid Noctor,7110.00, 03-Aug-2018
1280,Revenue,CAHD,Homeless - Private Sector Leasing,Prop.Serv. General Repairs,Express Property Services Limited,2590.70, 31-Aug-2018
1281,Revenue,CAHD,Homeless - Private Sector Leasing,Prop.Serv. General Repairs,Express Property Services Limited,1944.00, 20-Aug-2018
1282,Revenue,CAHD,South Glos Users in South Glos Homes,Permanent Nursing,Fairview Court,632.64, 28-Aug-2018
1283,Revenue,CAHD,South Glos Users in South Glos Homes,Permanent Nursing,Fairview Court,632.64, 28-Aug-2018
1284,Revenue,CAHD,South Glos Users in South Glos Homes,Permanent Nursing,Fairview Court,632.64, 28-Aug-2018
1285,Revenue,CAHD,South Glos Users in South Glos Homes,Permanent Nursing,Fairview Court,632.64, 28-Aug-2018
1286,Revenue,CAHD,Bed Purchasing - Southmead Hospital,Permanent Nursing,Fairview Court,3464.60, 28-Aug-2018
1287,Revenue,CAHD,South Glos Users in South Glos Homes,Permanent Nursing,Fairview Court,632.64, 28-Aug-2018
1288,Revenue,CAHD,Bed Purchasing - Southmead Hospital,Permanent Nursing,Fairview Court,3423.84, 28-Aug-2018
1289,Revenue,CAHD,South Glos Users in South Glos Homes,Permanent Nursing,Fairview Court,632.64, 28-Aug-2018
1290,Revenue,CAHD,South Glos Users in South Glos Homes,Permanent Nursing,Fairview Court,632.64, 28-Aug-2018
1291,Revenue,CAHD,Bed purchasing - Elderly S117 - South,Permanent Nursing,Fairview Court,4076.00, 28-Aug-2018
1292,Revenue,CAHD,South Glos Users in South Glos Homes,Permanent Nursing,Fairview Court,632.64, 28-Aug-2018
1293,Revenue,CAHD,South Glos Users in South Glos Homes,Permanent Nursing,Fairview Court,632.64, 28-Aug-2018
1294,Revenue,CAHD,Bed Purchasing - South,Permanent Nursing,Fairview Court,3303.20, 28-Aug-2018
1295,Revenue,CAHD,South Glos Users in South Glos Homes,Permanent Nursing,Fairview Court,632.64, 28-Aug-2018
1296,Revenue,CAHD,Bed Purchasing - South,Permanent Nursing,Fairview Court,3721.08, 28-Aug-2018
1297,Revenue,CAHD,South Glos Users in South Glos Homes,Permanent Nursing,Fairview Court,632.64, 28-Aug-2018
1298,Revenue,CAHD,South Glos Users in South Glos Homes,Permanent Nursing,Fairview Court,632.64, 28-Aug-2018
1299,Revenue,CAHD,Bed Purchasing - Southmead Hospital,Permanent Nursing,Fairview Court,3464.60, 28-Aug-2018
1300,Revenue,CAHD,South Glos Users in South Glos Homes,Permanent Nursing,Fairview Court,632.64, 28-Aug-2018
1301,Revenue,CAHD,South Glos Users in South Glos Homes,Permanent Nursing,Fairview Court,632.64, 28-Aug-2018
1302,Revenue,CAHD,South Glos Users in South Glos Homes,Permanent Nursing,Fairview Court,632.64, 28-Aug-2018
1303,Revenue,CAHD,South Glos Users in South Glos Homes,Permanent Nursing,Fairview Court,632.64, 28-Aug-2018
1304,Revenue,CAHD,South Glos Users in South Glos Homes,Permanent Nursing,Fairview Court,632.64, 28-Aug-2018
1305,Revenue,CAHD,South Glos Users in South Glos Homes,Permanent Nursing,Fairview Court,632.64, 28-Aug-2018
1306,Revenue,CAHD,Bed Purchasing - Southmead Hospital,Permanent Nursing,Fairview Court,3400.00, 28-Aug-2018
1307,Revenue,CAHD,South Glos Users in South Glos Homes,Permanent Nursing,Fairview Court,632.64, 28-Aug-2018
1308,Revenue,CAHD,South Glos Users in South Glos Homes,Permanent Nursing,Fairview Court,632.64, 28-Aug-2018
1309,Revenue,CAHD,South Glos Users in South Glos Homes,Permanent Nursing,Fairview Court,632.64, 28-Aug-2018
1310,Revenue,CAHD,Bed Purchasing - North,Permanent Nursing,Fairview Court,3464.60, 28-Aug-2018
1311,Revenue,CAHD,South Glos Users in South Glos Homes,Permanent Nursing,Fairview Court,632.64, 28-Aug-2018
1312,Revenue,CAHD,South Glos Users in South Glos Homes,Permanent Nursing,Fairview Court,632.64, 28-Aug-2018
1313,Revenue,CAHD,Bed Purchasing - Southmead Hospital,Permanent Nursing,Fairview Court,3400.00, 28-Aug-2018
1314,Revenue,CAHD,South Glos Users in South Glos Homes,Permanent Nursing,Fairview Court,632.64, 28-Aug-2018
1315,Revenue,CAHD,South Glos Users in South Glos Homes,Permanent Nursing,Fairview Court,632.64, 28-Aug-2018
1316,Revenue,CAHD,Bed Purchasing - Southmead Hospital,Permanent Nursing,Fairview Court,3464.60, 28-Aug-2018
1317,Revenue,CAHD,Bed Purchasing - South,Permanent Nursing,Fairview Court,3057.00, 28-Aug-2018
1318,Revenue,CAHD,South Glos Users in South Glos Homes,Permanent Nursing,Fairview Court,632.64, 28-Aug-2018
1319,Revenue,CAHD,South Glos Users in South Glos Homes,Permanent Nursing,Fairview Court,632.64, 28-Aug-2018
1320,Revenue,CAHD,Bed Purchasing - South,Permanent Nursing,Fairview Court,3464.60, 28-Aug-2018
1321,Revenue,CAHD,South Glos Users in South Glos Homes,Permanent Nursing,Fairview Court,632.64, 28-Aug-2018
1322,Revenue,CAHD,Bed Purchasing - Southmead Hospital,Permanent Nursing,Fairview Court,3464.60, 28-Aug-2018
1323,Revenue,CAHD,South Glos Users in South Glos Homes,Permanent Nursing,Fairview Court,632.64, 28-Aug-2018
1324,Revenue,CAHD,South Glos Users in South Glos Homes,Permanent Nursing,Fairview Court,632.64, 28-Aug-2018
1325,Revenue,CAHD,South Glos Users in South Glos Homes,Permanent Nursing,Fairview Court,632.64, 28-Aug-2018
1326,Revenue,CAHD,Bed purchasing - Elderly S117 - South,Permanent Residential,Fairview House,2219.20, 28-Aug-2018
1327,Revenue,CAHD,Bed Purchasing - South,Permanent Residential,Fairview House,2219.20, 28-Aug-2018
1328,Revenue,CAHD,Bed Purchasing - South,Permanent Residential,Fairview House,2148.68, 28-Aug-2018
1329,Revenue,CAHD,Bed Purchasing - Southmead Hospital,Respite Planned - Residential,Fairview House,1714.29, 28-Aug-2018
1330,Revenue,CAHD,Bed Purchasing - South,Permanent Residential,Fairview House,2219.20, 28-Aug-2018
1331,Revenue,CAHD,Bed Purchasing - South,Permanent Residential,Fairview House,2148.68, 28-Aug-2018
1332,Revenue,CAHD,Bed Purchasing - South,Permanent Residential,Fairview House,2157.48, 28-Aug-2018
1333,Revenue,CAHD,Bed Purchasing - Southmead Hospital,Permanent Residential,Fairview House,2547.52, 28-Aug-2018
1334,Revenue,CAHD,Bed Purchasing - Southmead Hospital,Permanent Residential,Faith House,1859.29, 28-Aug-2018
1335,Revenue,CAHD,Bed Purchasing - Southmead Hospital,Permanent Residential,Faith House,880.71, 28-Aug-2018
1336,Revenue,CAHD,Bed Purchasing - North,Permanent Residential,Faith House,2792.08, 28-Aug-2018
1337,Revenue,CAHD,Bed Purchasing - South,Permanent Residential,Faith House,4012.14, 28-Aug-2018
1338,Revenue,CAHD,Bed Purchasing - South,Permanent Residential,Faith House,2740.00, 28-Aug-2018
1339,Revenue,CAHD,Bed Purchasing - Southmead Hospital,Permanent Nursing,Festival House,2983.44, 28-Aug-2018
1340,Revenue,CAHD,Bed Purchasing - North,Permanent Residential,Festival House,1959.94, 28-Aug-2018
1341,Revenue,CAHD,Bed Purchasing - North,Fees & Charges Income - General,Festival House,1340.32, 28-Aug-2018
1342,Revenue,CAHD,Bed Purchasing - North,Fees & Charges Income - General,Festival House,1321.04, 28-Aug-2018
1343,Revenue,CAHD,Bed Purchasing - North,Permanent Nursing,Field House Care Home,2164.36, 28-Aug-2018
1344,Revenue,CAHD,Bed Purchasing - Southmead Hospital,Permanent Nursing,Field House Care Home,3440.00, 28-Aug-2018
1345,Revenue,CAHD,South Glos Users in South Glos Homes,Permanent Nursing,Field House Care Home,632.64, 28-Aug-2018
1346,Revenue,CAHD,Bed Purchasing - Southmead Hospital,Permanent Nursing,Field House Care Home,3440.00, 28-Aug-2018
1347,Revenue,CAHD,Bed Purchasing - Southmead Hospital,Permanent Nursing,Field House Care Home,3323.84, 28-Aug-2018
1348,Revenue,CAHD,Bed Purchasing - North,Permanent Nursing,Field House Care Home,3505.36, 28-Aug-2018
1349,Revenue,CAHD,Bed Purchasing - Southmead Hospital,Permanent Nursing,Field House Care Home,3342.32, 28-Aug-2018
1350,Revenue,CAHD,Bed Purchasing - Southmead Hospital,Respite Planned - Nursing,Field House Care Home,3342.32, 28-Aug-2018
1351,Revenue,CAHD,Bed Purchasing - North,Permanent Nursing,Field House Care Home,3342.32, 28-Aug-2018
1352,Revenue,CAHD,Bed Purchasing - North,Permanent Nursing,Field House Care Home,2164.36, 28-Aug-2018
1353,Revenue,CAHD,South Glos Users in South Glos Homes,Permanent Nursing,Field House Care Home,632.64, 28-Aug-2018
1354,Revenue,CAHD,Bed Purchasing - North,Permanent Nursing,Field House Care Home,2164.36, 28-Aug-2018
1355,Revenue,CAHD,Bed Purchasing - Southmead Hospital,Permanent Nursing,Field House Care Home,3423.84, 28-Aug-2018
1356,Revenue,CAHD,Bed Purchasing - North,Permanent Nursing,Field House Care Home,3423.84, 28-Aug-2018
1357,Revenue,CAHD,Bed Purchasing - Central,Permanent Residential,Fieldview,5464.29, 28-Aug-2018
1358,Revenue,CAHD,Bed Purchasing - Central,Permanent Residential,Fieldview,3400.00, 28-Aug-2018
1359,Revenue,CAHD,Bed Purchasing - North,Permanent Residential,Fieldview,2890.28, 28-Aug-2018
1360,Revenue,CAHD,Bed Purchasing - North,Permanent Residential,Fieldview,3668.40, 28-Aug-2018
1361,Revenue,CAHD,MH Purchasing - Younger,Permanent Nursing,Fieldview,5367.68, 28-Aug-2018
1362,Revenue,CAHD,Bed Purchasing - South,Permanent Residential,Fig House,2890.28, 28-Aug-2018
1363,Revenue,CAHD,Statemented Support Payments to OLAs,Other L.A.'s - General,Filton Avenue Primary School,1131.20, 23-Aug-2018
1364,Revenue,CAHD,CSC - Agency Fostering,Foster Parent Allowances,Five Rivers Child Care Limited,3447.82, 31-Aug-2018
1365,Revenue,CAHD,CSC - Agency Fostering,Foster Parent Allowances,Five Rivers Child Care Limited,3447.82, 31-Aug-2018
1366,Revenue,CAHD,CSC - Agency Fostering,Foster Parent Allowances,Five Rivers Child Care Limited,4069.86, 31-Aug-2018
1367,Revenue,CAHD,CSC - Agency Fostering,Foster Parent Allowances,Five Rivers Child Care Limited,4291.29, 31-Aug-2018
1368,Revenue,CAHD,CSC - Agency Fostering,Foster Parent Allowances,Five Rivers Child Care Limited,3518.19, 31-Aug-2018
1369,Revenue,CAHD,CSC - Legal Fees,Legal Fees,Forpsych Ltd,638.90, 21-Aug-2018
1370,Revenue,CAHD,CSC - Legal Fees,Legal Fees,Forpsych Ltd,3541.10, 24-Aug-2018
1371,Revenue,CAHD,CSC - Agency Fostering,Foster Parent Allowances,Foster Care Associates Limited,4131.68, 24-Aug-2018
1372,Revenue,CAHD,CSC - Asylum Seekers - Unaccompanied,Foster Parent Allowances,Foster Care Associates Limited,3578.02, 24-Aug-2018
1373,Revenue,CAHD,CSC - Asylum Seekers - Unaccompanied,Foster Parent Allowances,Foster Care Associates Limited,5666.26, 24-Aug-2018
1374,Revenue,CAHD,CSC - Agency Fostering,Foster Parent Allowances,Foster Care Associates Limited,4131.68, 28-Aug-2018
1375,Revenue,CAHD,Home Care - Elderly - South,Other Small Contracts,Fourways Care Limited,2991.54, 24-Aug-2018
1376,Revenue,CAHD,Home Care - Elderly - North,Other Small Contracts,Fourways Care Limited,7082.46, 24-Aug-2018
1377,Revenue,CAHD,Home Care - Elderly - South,Other Small Contracts,Fourways Care Limited,2976.21, 24-Aug-2018
1378,Revenue,CAHD,Home Care - Elderly - North,Other Small Contracts,Fourways Care Limited,7196.34, 24-Aug-2018
1379,Revenue,CAHD,Home Care - Elderly - South,Other Small Contracts,Fourways Care Limited,2711.22, 24-Aug-2018
1380,Revenue,CAHD,Home Care - Elderly - North,Other Small Contracts,Fourways Care Limited,6959.82, 24-Aug-2018
1381,Revenue,CAHD,Home Care - Elderly - South,Other Small Contracts,Fourways Care Limited,3070.38, 29-Aug-2018
1382,Revenue,CAHD,Home Care - Elderly - North,Other Small Contracts,Fourways Care Limited,7213.86, 29-Aug-2018
1383,Revenue,CAHD,Home Care - Elderly - South,Other Small Contracts,Fourways Care Limited,2711.22, 29-Aug-2018
1384,Revenue,CAHD,Home Care - Elderly - North,Other Small Contracts,Fourways Care Limited,6631.32, 29-Aug-2018
1385,Revenue,CAHD,Pathway 1 - Re-Ablement Home Care,Other Small Contracts,Fourways Care Limited,884.76, 08-Aug-2018
1386,Revenue,CAHD,Supporting People Programme,Grants to Voluntary Bodies,Freeways Trust Limited,5989.85, 01-Aug-2018
1387,Revenue,CAHD,Supporting People Programme,Grants to Voluntary Bodies,Freeways Trust Limited,5989.85, 31-Aug-2018
1388,Revenue,CAHD,Freeways,Permanent Residential,Freeways Trust Limited,3748.60, 20-Aug-2018
1389,Revenue,CAHD,Freeways,Permanent Residential,Freeways Trust Limited,2410.80, 20-Aug-2018
1390,Revenue,CAHD,Freeways,Permanent Residential,Freeways Trust Limited,2410.80, 20-Aug-2018
1391,Revenue,CAHD,Freeways,Permanent Residential,Freeways Trust Limited,3507.76, 20-Aug-2018
1392,Revenue,CAHD,Freeways,Permanent Residential,Freeways Trust Limited,2410.80, 20-Aug-2018
1393,Revenue,CAHD,Freeways,Permanent Residential,Freeways Trust Limited,3553.44, 20-Aug-2018
1394,Revenue,CAHD,Freeways,Permanent Residential,Freeways Trust Limited,2674.68, 20-Aug-2018
1395,Revenue,CAHD,Freeways,Permanent Residential,Freeways Trust Limited,3719.68, 20-Aug-2018
1396,Revenue,CAHD,Freeways,Permanent Residential,Freeways Trust Limited,2267.40, 20-Aug-2018
1397,Revenue,CAHD,Freeways,Permanent Residential,Freeways Trust Limited,2847.12, 20-Aug-2018
1398,Revenue,CAHD,Freeways,Permanent Residential,Freeways Trust Limited,2819.80, 20-Aug-2018
1399,Revenue,CAHD,Freeways,Permanent Residential,Freeways Trust Limited,3183.32, 20-Aug-2018
1400,Revenue,CAHD,Freeways,Permanent Residential,Freeways Trust Limited,2410.80, 20-Aug-2018
1401,Revenue,CAHD,Freeways,Respite Planned - Residential,Freeways Trust Limited,1832.29, 20-Aug-2018
1402,Revenue,CAHD,Freeways,Respite Planned - Residential,Freeways Trust Limited,2107.13, 20-Aug-2018
1403,Revenue,CAHD,Freeways,Respite Planned - Residential,Freeways Trust Limited,2565.20, 20-Aug-2018
1404,Revenue,CAHD,Homecare - Central,Other Small Contracts,Freeways Trust Limited,590.08, 01-Aug-2018
1405,Revenue,CAHD,Homecare - Central,Other Small Contracts,Freeways Trust Limited,700.72, 01-Aug-2018
1406,Revenue,CAHD,Home Care - Elderly - North,Other Small Contracts,Freeways Trust Limited,714.40, 02-Aug-2018
1407,Revenue,CAHD,Home Care - Elderly - North,Other Small Contracts,Freeways Trust Limited,564.00, 02-Aug-2018
1408,Revenue,CAHD,Home Care - Elderly - North,Other Small Contracts,Freeways Trust Limited,827.20, 15-Aug-2018
1409,Revenue,CAHD,Home Care - Elderly - North,Supported Living,Freeways Trust Ltd,825.80, 28-Aug-2018
1410,Revenue,CAHD,Bed purchasing - S28A Under 65 - South,Permanent Residential,Freeways Trust Ltd,3795.56, 28-Aug-2018
1411,Revenue,CAHD,Bed Purchasing - North,Permanent Residential,Freeways Trust Ltd,3675.20, 28-Aug-2018
1412,Revenue,CAHD,Bed Purchasing - South,Permanent Residential,Freeways Trust Ltd,3897.84, 28-Aug-2018
1413,Revenue,CAHD,Bed Purchasing - North,Permanent Residential,Freeways Trust Ltd,2943.20, 28-Aug-2018
1414,Revenue,CAHD,Bed Purchasing - South,Permanent Residential,Freeways Trust Ltd,3101.48, 28-Aug-2018
1415,Revenue,CAHD,Bed Purchasing - North,Permanent Residential,Freeways Trust Ltd,3250.60, 28-Aug-2018
1416,Revenue,CAHD,Bed Purchasing - North,Permanent Residential,Freeways Trust Ltd,3890.76, 28-Aug-2018
1417,Revenue,CAHD,18-25 Year Olds,Permanent Residential,Freeways Trust Ltd,3594.20, 28-Aug-2018
1418,Revenue,CAHD,Section 117 Placements MH Younger,Permanent Residential,Freeways Trust Ltd,3260.80, 28-Aug-2018
1419,Revenue,CAHD,Home Care - Elderly - South,Day Care / Social Activities,Frenchay Beckspool Building,801.44, 28-Aug-2018
1420,Revenue,CAHD,Home Care - Elderly - North,Day Care / Social Activities,Frenchay Beckspool Building,1851.36, 28-Aug-2018
1421,Revenue,CAHD,Home Care - Elderly - South,Day Care / Social Activities,Frenchay Beckspool Building,880.40, 28-Aug-2018
1422,Revenue,CAHD,Home Care - Elderly - South,Day Care / Social Activities,Frenchay Beckspool Building,625.12, 28-Aug-2018
1423,Revenue,CAHD,Pathway 3 - (Complex Beds),Permanent Nursing,Frenchay House,3264.00, 16-Aug-2018
1424,Revenue,CAHD,Bed Purchasing - Southmead Hospital,Permanent Nursing,Frenchay Park Nursing Home,3400.00, 28-Aug-2018
1425,Revenue,CAHD,Bed Purchasing - Southmead Hospital,Permanent Nursing,Frenchay Park Nursing Home,3260.80, 28-Aug-2018
1426,Revenue,CAHD,Early Years High Needs Support,Other Private Contractors,Frenchay Pre School Playgroup,728.10, 24-Aug-2018
1427,Revenue,CAHD,Early Years High Needs Support,Other Private Contractors,Frenchay Pre School Playgroup,910.13, 24-Aug-2018
1428,Revenue,CAHD,NHS Health Checks,Other Small Contracts,Frome Valley Medical Centre,3427.00, 10-Aug-2018
1429,Revenue,CAHD,Sexual Health,Other Small Contracts,Frome Valley Medical Centre,966.00, 03-Aug-2018
1430,Revenue,CAHD,Sexual Health,Other Small Contracts,Frome Valley Medical Centre,578.14, 03-Aug-2018
1431,Revenue,CAHD,CSC - Social Work Team - NORTH,Agency Staff (Admin/Support Staff) Pay,Frontline Staffing Ltd,1731.23, 09-Aug-2018
1432,Revenue,CAHD,CSC - Social Work Team - NORTH,Agency Staff (Admin/Support Staff) Pay,Frontline Staffing Ltd,1731.23, 09-Aug-2018
1433,Revenue,CAHD,CSC - Social Work Team - NORTH,Agency Staff (Admin/Support Staff) Pay,Frontline Staffing Ltd,1731.23, 13-Aug-2018
1434,Revenue,CAHD,CSC - Social Work Team - NORTH,Agency Staff (Admin/Support Staff) Pay,Frontline Staffing Ltd,1731.23, 13-Aug-2018
1435,Revenue,CAHD,CSC - Social Work Team - NORTH,Agency Staff (Admin/Support Staff) Pay,Frontline Staffing Ltd,1731.23, 13-Aug-2018
1436,Revenue,CAHD,CSC - Social Work Team - NORTH,Agency Staff (Admin/Support Staff) Pay,Frontline Staffing Ltd,1544.07, 13-Aug-2018
1437,Revenue,CAHD,CSC - Social Work Team - NORTH,Agency Staff (Admin/Support Staff) Pay,Frontline Staffing Ltd,1731.23, 21-Aug-2018
1438,Revenue,CAHD,South Glos Users in South Glos Homes,Permanent Nursing,Fshc  1St Floor,632.64, 28-Aug-2018
1439,Revenue,CAHD,Bed Purchasing - South,Permanent Nursing,Fshc  1St Floor,2670.96, 28-Aug-2018
1440,Revenue,CAHD,South Glos Users in South Glos Homes,Permanent Nursing,Fshc  1St Floor,632.64, 28-Aug-2018
1441,Revenue,CAHD,Bed Purchasing - Southmead Hospital,Permanent Nursing,Fshc  1St Floor,2324.64, 28-Aug-2018
1442,Revenue,CAHD,Bed Purchasing - South,Permanent Nursing,Fshc  1St Floor,2310.44, 28-Aug-2018
1443,Revenue,CAHD,South Glos Users in South Glos Homes,Permanent Nursing,Fshc  1St Floor,632.64, 28-Aug-2018
1444,Revenue,CAHD,Bed Purchasing - Southmead Hospital,Fees & Charges Income - General,Fshc  1St Floor,1091.57, 28-Aug-2018
1445,Revenue,CAHD,Bed Purchasing - Southmead Hospital,Permanent Nursing,Fshc  1St Floor,2310.44, 28-Aug-2018
1446,Revenue,CAHD,South Glos Users in South Glos Homes,Permanent Nursing,Fshc  1St Floor,632.64, 28-Aug-2018
1447,Revenue,CAHD,Bed Purchasing - South,Permanent Residential,Fshc  1St Floor,2404.84, 28-Aug-2018
1448,Revenue,CAHD,Bed Purchasing - Southmead Hospital,Permanent Nursing,Fshc  1St Floor,2560.00, 28-Aug-2018
1449,Revenue,CAHD,Bed Purchasing - South,Permanent Nursing,Fshc  1St Floor,1942.86, 28-Aug-2018
1450,Revenue,CAHD,Bed Purchasing - South,Permanent Nursing,Fshc  1St Floor,1257.14, 28-Aug-2018
1451,Revenue,CAHD,South Glos Users in South Glos Homes,Permanent Nursing,Fshc  1St Floor,632.64, 28-Aug-2018
1452,Revenue,CAHD,South Glos Users in South Glos Homes,Permanent Nursing,Fshc  1St Floor,632.64, 28-Aug-2018
1453,Revenue,CAHD,Bed Purchasing - Southmead Hospital,Permanent Nursing,Fshc  1St Floor,2310.44, 28-Aug-2018
1454,Revenue,CAHD,Bed Purchasing - South,Permanent Nursing,Fshc  1St Floor,2824.00, 28-Aug-2018
1455,Revenue,CAHD,Bed Purchasing - South,Permanent Nursing,Fshc  1St Floor,1311.14, 28-Aug-2018
1456,Revenue,CAHD,Bed Purchasing - Southmead Hospital,Permanent Nursing,Fshc  1St Floor,2404.84, 28-Aug-2018
1457,Revenue,CAHD,South Glos Users in South Glos Homes,Permanent Nursing,Fshc  1St Floor,632.64, 28-Aug-2018
1458,Revenue,CAHD,Bed Purchasing - South,Permanent Nursing,Fshc  1St Floor,2560.00, 28-Aug-2018
1459,Revenue,CAHD,South Glos Users in South Glos Homes,Permanent Nursing,Fshc  1St Floor,632.64, 28-Aug-2018
1460,Revenue,CAHD,Bed Purchasing - South,Permanent Nursing,Fshc  1St Floor,2663.20, 28-Aug-2018
1461,Revenue,CAHD,South Glos Users in South Glos Homes,Permanent Nursing,Fshc  1St Floor,632.64, 28-Aug-2018
1462,Revenue,CAHD,South Glos Users in South Glos Homes,Permanent Nursing,Fshc  1St Floor,632.64, 28-Aug-2018
1463,Revenue,CAHD,Bed Purchasing - South,Permanent Nursing,Fshc  1St Floor,9508.57, 28-Aug-2018
1464,Revenue,CAHD,Bed Purchasing - South,Permanent Nursing,Fshc  1St Floor,2560.00, 28-Aug-2018
1465,Revenue,CAHD,South Glos Users in South Glos Homes,Permanent Nursing,Fshc  1St Floor,632.64, 28-Aug-2018
1466,Revenue,CAHD,South Glos Users in South Glos Homes,Permanent Nursing,Fshc  1St Floor,632.64, 28-Aug-2018
1467,Revenue,CAHD,Bed Purchasing - Southmead Hospital,Respite Emergency - Residential,Fshc  1St Floor,7680.00, 28-Aug-2018
1468,Revenue,CAHD,South Glos Users in South Glos Homes,Permanent Nursing,Fshc  1St Floor,632.64, 28-Aug-2018
1469,Revenue,CAHD,South Glos Users in South Glos Homes,Permanent Nursing,Fshc  1St Floor,632.64, 28-Aug-2018
1470,Revenue,CAHD,Bed Purchasing - South,Permanent Nursing,Fshc  1St Floor,2800.00, 28-Aug-2018
1471,Revenue,CAHD,Bed Purchasing - South,Permanent Nursing,Fshc  1St Floor,700.00, 28-Aug-2018
1472,Revenue,CAHD,Bed Purchasing - Southmead Hospital,Permanent Nursing,Fshc  1St Floor,2324.64, 28-Aug-2018
1473,Revenue,CAHD,South Glos Users in South Glos Homes,Permanent Nursing,Fshc  1St Floor,632.64, 28-Aug-2018
1474,Revenue,CAHD,Bed Purchasing - Southmead Hospital,Permanent Nursing,Fshc  1St Floor,2404.84, 28-Aug-2018
1475,Revenue,CAHD,South Glos Users in South Glos Homes,Permanent Nursing,Fshc  1St Floor,632.64, 28-Aug-2018
1476,Revenue,CAHD,Bed Purchasing - South,Permanent Nursing,Fshc  1St Floor,2310.44, 28-Aug-2018
1477,Revenue,CAHD,South Glos Users in South Glos Homes,Permanent Nursing,Fshc  1St Floor,632.64, 28-Aug-2018
1478,Revenue,CAHD,Bed Purchasing - Southmead Hospital,Permanent Nursing,Fshc  1St Floor,2310.44, 28-Aug-2018
1479,Revenue,CAHD,South Glos Users in South Glos Homes,Permanent Nursing,Fshc  1St Floor,632.64, 28-Aug-2018
1480,Revenue,CAHD,Bed Purchasing - South,Permanent Nursing,Fshc  1St Floor,2310.44, 28-Aug-2018
1481,Revenue,CAHD,South Glos Users in South Glos Homes,Permanent Nursing,Fshc  1St Floor,632.64, 28-Aug-2018
1482,Revenue,CAHD,Bed Purchasing - South,Permanent Nursing,Fshc  1St Floor,2324.64, 28-Aug-2018
1483,Revenue,CAHD,South Glos Users in South Glos Homes,Permanent Nursing,Fshc  1St Floor,632.64, 28-Aug-2018
1484,Revenue,CAHD,Bed Purchasing - Southmead Hospital,Permanent Nursing,Fshc  1St Floor,3200.00, 28-Aug-2018
1485,Revenue,CAHD,South Glos Users in South Glos Homes,Permanent Nursing,Fshc  1St Floor,632.64, 28-Aug-2018
1486,Revenue,CAHD,Bed Purchasing - South,Permanent Nursing,Fshc  1St Floor,2600.00, 28-Aug-2018
1487,Revenue,CAHD,South Glos Users in South Glos Homes,Permanent Nursing,Fshc  1St Floor,632.64, 28-Aug-2018
1488,Revenue,CAHD,Bed Purchasing - Southmead Hospital,Permanent Nursing,Fshc  1St Floor,2445.60, 28-Aug-2018
1489,Revenue,CAHD,Bed Purchasing - South,Permanent Nursing,Fshc  1St Floor,13939.92, 28-Aug-2018
1490,Revenue,CAHD,Bed Purchasing - South,Permanent Nursing,Fshc  1St Floor,3097.76, 28-Aug-2018
1491,Revenue,CAHD,Bed Purchasing - South,Permanent Nursing,Fshc  1St Floor,2931.43, 28-Aug-2018
1492,Revenue,CAHD,South Glos Users in South Glos Homes,Permanent Nursing,Fshc  1St Floor,632.64, 28-Aug-2018
1493,Revenue,CAHD,Bed Purchasing - South,Permanent Nursing,Fshc  1St Floor,2404.84, 28-Aug-2018
1494,Revenue,CAHD,South Glos Users in South Glos Homes,Permanent Nursing,Fshc  1St Floor,632.64, 28-Aug-2018
1495,Revenue,CAHD,Bed Purchasing - Southmead Hospital,Permanent Nursing,Fshc  1St Floor,2864.24, 28-Aug-2018
1496,Revenue,CAHD,Bed Purchasing - Southmead Hospital,Permanent Nursing,Fshc  1St Floor,2310.44, 28-Aug-2018
1497,Revenue,CAHD,South Glos Users in South Glos Homes,Permanent Nursing,Fshc  1St Floor,632.64, 28-Aug-2018
1498,Revenue,CAHD,Bed Purchasing - Southmead Hospital,Permanent Nursing,Fshc  1St Floor,2339.64, 28-Aug-2018
1499,Revenue,CAHD,South Glos Users in South Glos Homes,Permanent Nursing,Fshc  1St Floor,632.64, 28-Aug-2018
1500,Revenue,CAHD,Bed Purchasing - North,Respite Emergency - Nursing,Fshc  1St Floor,984.00, 28-Aug-2018
1501,Revenue,CAHD,Bed Purchasing - North,Permanent Nursing,Fshc  1St Floor,2339.64, 28-Aug-2018
1502,Revenue,CAHD,South Glos Users in South Glos Homes,Permanent Nursing,Fshc  1St Floor,632.64, 28-Aug-2018
1503,Revenue,CAHD,Bed Purchasing - Southmead Hospital,Permanent Nursing,Fshc  1St Floor,2339.64, 28-Aug-2018
1504,Revenue,CAHD,South Glos Users in South Glos Homes,Permanent Nursing,Fshc  1St Floor,632.64, 28-Aug-2018
1505,Revenue,CAHD,South Glos Users in South Glos Homes,Permanent Nursing,Fshc  1St Floor,632.64, 28-Aug-2018
1506,Revenue,CAHD,Bed Purchasing - Southmead Hospital,Permanent Nursing,Fshc  1St Floor,2310.44, 28-Aug-2018
1507,Revenue,CAHD,South Glos Users in South Glos Homes,Permanent Nursing,Fshc  1St Floor,632.64, 28-Aug-2018
1508,Revenue,CAHD,Bed Purchasing - Southmead Hospital,Permanent Residential,Fshc  1St Floor,2148.68, 28-Aug-2018
1509,Revenue,CAHD,South Glos Users in South Glos Homes,Permanent Nursing,Fshc  1St Floor,632.64, 28-Aug-2018
1510,Revenue,CAHD,South Glos Users in South Glos Homes,Permanent Nursing,Fshc  1St Floor,632.64, 28-Aug-2018
1511,Revenue,CAHD,Bed Purchasing - North,Permanent Residential,Fshc  1St Floor,2832.84, 28-Aug-2018
1512,Revenue,CAHD,Bed Purchasing - South,Permanent Residential,Fshc  1St Floor,2751.32, 28-Aug-2018
1513,Revenue,CAHD,Bed Purchasing - North,Permanent Nursing,Fshc  1St Floor,2339.64, 28-Aug-2018
1514,Revenue,CAHD,South Glos Users in South Glos Homes,Permanent Nursing,Fshc  1St Floor,632.64, 28-Aug-2018
1515,Revenue,CAHD,South Glos Users in South Glos Homes,Permanent Nursing,Fshc  1St Floor,632.64, 28-Aug-2018
1516,Revenue,CAHD,Bed Purchasing - Southmead Hospital,Permanent Nursing,Fshc  1St Floor,2311.20, 28-Aug-2018
1517,Revenue,CAHD,South Glos Users in South Glos Homes,Permanent Nursing,Fshc  1St Floor,632.64, 28-Aug-2018
1518,Revenue,CAHD,Bed Purchasing - Southmead Hospital,Permanent Nursing,Fshc  1St Floor,2310.44, 28-Aug-2018
1519,Revenue,CAHD,South Glos Users in South Glos Homes,Permanent Nursing,Fshc  1St Floor,632.64, 28-Aug-2018
1520,Revenue,CAHD,Bed Purchasing - North,Permanent Nursing,Fshc  1St Floor,2310.44, 28-Aug-2018
1521,Revenue,CAHD,South Glos Users in South Glos Homes,Permanent Nursing,Fshc  1St Floor,632.64, 28-Aug-2018
1522,Revenue,CAHD,Bed Purchasing - North,Permanent Nursing,Fshc  1St Floor,2310.44, 28-Aug-2018
1523,Revenue,CAHD,South Glos Users in South Glos Homes,Permanent Nursing,Fshc  1St Floor,632.64, 28-Aug-2018
1524,Revenue,CAHD,Bed Purchasing - Southmead Hospital,Permanent Residential,Fshc  1St Floor,2700.00, 28-Aug-2018
1525,Revenue,CAHD,Bed Purchasing - North,Permanent Nursing,Fshc  1St Floor,2339.64, 28-Aug-2018
1526,Revenue,CAHD,South Glos Users in South Glos Homes,Permanent Nursing,Fshc  1St Floor,632.64, 28-Aug-2018
1527,Revenue,CAHD,Bed Purchasing - North,Permanent Nursing,Fshc  1St Floor,2339.64, 28-Aug-2018
1528,Revenue,CAHD,South Glos Users in South Glos Homes,Permanent Nursing,Fshc  1St Floor,632.64, 28-Aug-2018
1529,Revenue,CAHD,Bed Purchasing - North,Permanent Nursing,Fshc  1St Floor,2310.44, 28-Aug-2018
1530,Revenue,CAHD,South Glos Users in South Glos Homes,Permanent Nursing,Fshc  1St Floor,632.64, 28-Aug-2018
1531,Revenue,CAHD,South Glos Users in South Glos Homes,Permanent Nursing,Fshc  1St Floor,632.64, 28-Aug-2018
1532,Revenue,CAHD,South Glos Users in South Glos Homes,Permanent Nursing,Fshc  1St Floor,632.64, 28-Aug-2018
1533,Revenue,CAHD,Bed Purchasing - North,Permanent Nursing,Fshc  1St Floor,2382.00, 28-Aug-2018
1534,Revenue,CAHD,Bed Purchasing - North,Permanent Residential,Fshc  1St Floor,2751.32, 28-Aug-2018
1535,Revenue,CAHD,Bed Purchasing - North,Permanent Nursing,Fshc  1St Floor,2310.44, 28-Aug-2018
1536,Revenue,CAHD,South Glos Users in South Glos Homes,Permanent Nursing,Fshc  1St Floor,4385.70, 28-Aug-2018
1537,Revenue,CAHD,South Glos Users in South Glos Homes,Permanent Nursing,Fshc  1St Floor,2700.89, 28-Aug-2018
1538,Revenue,CAHD,South Glos Users in South Glos Homes,Permanent Nursing,Fshc  1St Floor,632.64, 28-Aug-2018
1539,Revenue,CAHD,Bed Purchasing - North,Respite Planned - Nursing,Fshc  1St Floor,3631.89, 28-Aug-2018
1540,Revenue,CAHD,Bed Purchasing - North,Respite Planned - Nursing,Fshc  1St Floor,2311.20, 28-Aug-2018
1541,Revenue,CAHD,South Glos Users in South Glos Homes,Permanent Nursing,Fshc  1St Floor,632.64, 28-Aug-2018
1542,Revenue,CAHD,Bed Purchasing - Southmead Hospital,Permanent Nursing,Fshc  1St Floor,2310.44, 28-Aug-2018
1543,Revenue,CAHD,South Glos Users in South Glos Homes,Permanent Nursing,Fshc  1St Floor,632.64, 28-Aug-2018
1544,Revenue,CAHD,South Glos Users in South Glos Homes,Permanent Nursing,Fshc  1St Floor,632.64, 28-Aug-2018
1545,Revenue,CAHD,South Glos Users in South Glos Homes,Permanent Nursing,Fshc  1St Floor,632.64, 28-Aug-2018
1546,Revenue,CAHD,Bed Purchasing - North,Permanent Nursing,Fshc  1St Floor,2310.44, 28-Aug-2018
1547,Revenue,CAHD,Bed Purchasing - Central,Permanent Residential,Fshc  1St Floor,7247.86, 28-Aug-2018
1548,Revenue,CAHD,Bed Purchasing - Central,Permanent Residential,Fshc  1St Floor,2780.00, 28-Aug-2018
1549,Revenue,CAHD,Bed Purchasing - Central,Fees & Charges Income - General,Fshc  1St Floor,1668.48, 28-Aug-2018
1550,Revenue,CAHD,South Glos Users in South Glos Homes,Permanent Nursing,Fshc  1St Floor,632.64, 28-Aug-2018
1551,Revenue,CAHD,South Glos Users in South Glos Homes,Permanent Nursing,Fshc  1St Floor,632.64, 28-Aug-2018
1552,Revenue,CAHD,South Glos Users in South Glos Homes,Permanent Nursing,Fshc  1St Floor,632.64, 28-Aug-2018
1553,Revenue,CAHD,South Glos Users in South Glos Homes,Permanent Nursing,Fshc  1St Floor,632.64, 28-Aug-2018
1554,Revenue,CAHD,South Glos Users in South Glos Homes,Permanent Nursing,Fshc  1St Floor,632.64, 28-Aug-2018
1555,Revenue,CAHD,Bed Purchasing - North,Permanent Nursing,Fshc  1St Floor,2310.44, 28-Aug-2018
1556,Revenue,CAHD,South Glos Users in South Glos Homes,Permanent Nursing,Fshc  1St Floor,632.64, 28-Aug-2018
1557,Revenue,CAHD,Bed Purchasing - North,Permanent Nursing,Fshc  1St Floor,2310.44, 28-Aug-2018
1558,Revenue,CAHD,South Glos Users in South Glos Homes,Permanent Nursing,Fshc  1St Floor,632.64, 28-Aug-2018
1559,Revenue,CAHD,Bed Purchasing - North,Permanent Nursing,Fshc  1St Floor,2310.44, 28-Aug-2018
1560,Revenue,CAHD,South Glos Users in South Glos Homes,Permanent Nursing,Fshc  1St Floor,632.64, 28-Aug-2018
1561,Revenue,CAHD,South Glos Users in South Glos Homes,Permanent Nursing,Fshc  1St Floor,632.64, 28-Aug-2018
1562,Revenue,CAHD,Bed Purchasing - Southmead Hospital,Permanent Nursing,Fshc  1St Floor,2310.44, 28-Aug-2018
1563,Revenue,CAHD,South Glos Users in South Glos Homes,Permanent Nursing,Fshc  1St Floor,632.64, 28-Aug-2018
1564,Revenue,CAHD,Bed Purchasing - North,Permanent Nursing,Fshc  1St Floor,2380.96, 28-Aug-2018
1565,Revenue,CAHD,South Glos Users in South Glos Homes,Permanent Nursing,Fshc  1St Floor,632.64, 28-Aug-2018
1566,Revenue,CAHD,South Glos Users in South Glos Homes,Permanent Nursing,Fshc  1St Floor,632.64, 28-Aug-2018
1567,Revenue,CAHD,Bed Purchasing - North,Permanent Nursing,Fshc  1St Floor,2270.32, 28-Aug-2018
1568,Revenue,CAHD,South Glos Users in South Glos Homes,Permanent Nursing,Fshc  1St Floor,632.64, 28-Aug-2018
1569,Revenue,CAHD,Bed Purchasing - North,Permanent Nursing,Fshc  1St Floor,2380.96, 28-Aug-2018
1570,Revenue,CAHD,South Glos Users in South Glos Homes,Permanent Nursing,Fshc  1St Floor,632.64, 28-Aug-2018
1571,Revenue,CAHD,Bed Purchasing - South,Respite Emergency - Nursing,Fshc  1St Floor,761.43, 28-Aug-2018
1572,Revenue,CAHD,Bed Purchasing - Southmead Hospital,Permanent Nursing,Fshc  1St Floor,2427.84, 28-Aug-2018
1573,Revenue,CAHD,South Glos Users in South Glos Homes,Permanent Nursing,Fshc  1St Floor,632.64, 28-Aug-2018
1574,Revenue,CAHD,South Glos Users in South Glos Homes,Permanent Nursing,Fshc  1St Floor,632.64, 28-Aug-2018
1575,Revenue,CAHD,Bed Purchasing - North,Permanent Nursing,Fshc  1St Floor,2310.44, 28-Aug-2018
1576,Revenue,CAHD,South Glos Users in South Glos Homes,Permanent Nursing,Fshc  1St Floor,632.64, 28-Aug-2018
1577,Revenue,CAHD,Bed Purchasing - North,Permanent Nursing,Fshc  1St Floor,2310.44, 28-Aug-2018
1578,Revenue,CAHD,South Glos Users in South Glos Homes,Permanent Nursing,Fshc  1St Floor,632.64, 28-Aug-2018
1579,Revenue,CAHD,Bed Purchasing - Southmead Hospital,Permanent Nursing,Fshc  1St Floor,3158.92, 28-Aug-2018
1580,Revenue,CAHD,South Glos Users in South Glos Homes,Permanent Nursing,Fshc  1St Floor,632.64, 28-Aug-2018
1581,Revenue,CAHD,South Glos Users in South Glos Homes,Permanent Nursing,Fshc  1St Floor,632.64, 28-Aug-2018
1582,Revenue,CAHD,South Glos Users in South Glos Homes,Permanent Nursing,Fshc  1St Floor,632.64, 28-Aug-2018
1583,Revenue,CAHD,South Glos Users in South Glos Homes,Permanent Nursing,Fshc  1St Floor,632.64, 28-Aug-2018
1584,Revenue,CAHD,Bed Purchasing - North,Permanent Nursing,Fshc  1St Floor,2323.12, 28-Aug-2018
1585,Revenue,CAHD,South Glos Users in South Glos Homes,Permanent Nursing,Fshc  1St Floor,632.64, 28-Aug-2018
1586,Revenue,CAHD,Bed Purchasing - Elderly S117- North,Respite Planned - Nursing,Fshc  1St Floor,2879.40, 28-Aug-2018
1587,Revenue,CAHD,South Glos Users in South Glos Homes,Permanent Nursing,Fshc  1St Floor,632.64, 28-Aug-2018
1588,Revenue,CAHD,South Glos Users in South Glos Homes,Permanent Nursing,Fshc  1St Floor,632.64, 28-Aug-2018
1589,Revenue,CAHD,South Glos Users in South Glos Homes,Permanent Nursing,Fshc  1St Floor,632.64, 28-Aug-2018
1590,Revenue,CAHD,Bed Purchasing - Central,Permanent Nursing,Fshc  1St Floor,2667.36, 28-Aug-2018
1591,Revenue,CAHD,South Glos Users in South Glos Homes,Permanent Nursing,Fshc  1St Floor,632.64, 28-Aug-2018
1592,Revenue,CAHD,Bed Purchasing - South,Fees & Charges Income - General,Fshc  1St Floor,783.77, 28-Aug-2018
1593,Revenue,CAHD,South Glos Users in South Glos Homes,Permanent Nursing,Fshc  1St Floor,632.64, 28-Aug-2018
1594,Revenue,CAHD,Bed Purchasing - Central,Permanent Nursing,Fshc  1St Floor,1672.78, 28-Aug-2018
1595,Revenue,CAHD,Bed Purchasing - Central,Permanent Nursing,Fshc  1St Floor,1254.58, 28-Aug-2018
1596,Revenue,CAHD,Bed Purchasing - Central,Fees & Charges Income - General,Fshc  1St Floor,1254.58, 28-Aug-2018
1597,Revenue,CAHD,South Glos Users in South Glos Homes,Permanent Nursing,Fshc  1St Floor,632.64, 28-Aug-2018
1598,Revenue,CAHD,Bed Purchasing - Central,Permanent Nursing,Fshc  1St Floor,7632.05, 28-Aug-2018
1599,Revenue,CAHD,South Glos Users in South Glos Homes,Permanent Nursing,Fshc  1St Floor,632.64, 28-Aug-2018
1600,Revenue,CAHD,Bed Purchasing - North,Permanent Nursing,Fshc  1St Floor,2323.12, 28-Aug-2018
1601,Revenue,CAHD,South Glos Users in South Glos Homes,Permanent Nursing,Fshc  1St Floor,632.64, 28-Aug-2018
1602,Revenue,CAHD,South Glos Users in South Glos Homes,Permanent Nursing,Fshc  1St Floor,632.64, 28-Aug-2018
1603,Revenue,CAHD,Bed Purchasing - North,Respite Planned - Nursing,Fshc  1St Floor,2526.92, 28-Aug-2018
1604,Revenue,CAHD,South Glos Users in South Glos Homes,Permanent Nursing,Fshc  1St Floor,632.64, 28-Aug-2018
1605,Revenue,CAHD,Bed Purchasing - Southmead Hospital,Permanent Nursing,Fshc  1St Floor,2451.60, 28-Aug-2018
1606,Revenue,CAHD,South Glos Users in South Glos Homes,Permanent Nursing,Fshc  1St Floor,632.64, 28-Aug-2018
1607,Revenue,CAHD,South Glos Users in South Glos Homes,Permanent Nursing,Fshc  1St Floor,632.64, 28-Aug-2018
1608,Revenue,CAHD,Bed Purchasing - Southmead Hospital,Permanent Nursing,Fshc  1St Floor,2547.52, 28-Aug-2018
1609,Revenue,CAHD,South Glos Users in South Glos Homes,Permanent Nursing,Fshc  1St Floor,632.64, 28-Aug-2018
1610,Revenue,CAHD,South Glos Users in South Glos Homes,Permanent Nursing,Fshc  1St Floor,632.64, 28-Aug-2018
1611,Revenue,CAHD,South Glos Users in South Glos Homes,Permanent Nursing,Fshc  1St Floor,632.64, 28-Aug-2018
1612,Revenue,CAHD,Bed Purchasing - Southmead Hospital,Permanent Nursing,Fshc  1St Floor,1813.57, 28-Aug-2018
1613,Revenue,CAHD,Bed Purchasing - North,Permanent Nursing,Fshc  1St Floor,2380.96, 28-Aug-2018
1614,Revenue,CAHD,South Glos Users in South Glos Homes,Permanent Nursing,Fshc  1St Floor,632.64, 28-Aug-2018
1615,Revenue,CAHD,Bed Purchasing - Southmead Hospital,Permanent Nursing,Fshc  1St Floor,8584.15, 28-Aug-2018
1616,Revenue,CAHD,Bed Purchasing - Southmead Hospital,Permanent Nursing,Fshc  1St Floor,2967.36, 28-Aug-2018
1617,Revenue,CAHD,South Glos Users in South Glos Homes,Permanent Nursing,Fshc  1St Floor,632.64, 28-Aug-2018
1618,Revenue,CAHD,South Glos Users in South Glos Homes,Permanent Nursing,Fshc  1St Floor,632.64, 28-Aug-2018
1619,Revenue,CAHD,South Glos Users in South Glos Homes,Permanent Nursing,Fshc  1St Floor,632.64, 28-Aug-2018
1620,Revenue,CAHD,Bed Purchasing - Southmead Hospital,Permanent Nursing,Fshc  1St Floor,3158.92, 28-Aug-2018
1621,Revenue,CAHD,South Glos Users in South Glos Homes,Permanent Nursing,Fshc  1St Floor,632.64, 28-Aug-2018
1622,Revenue,CAHD,South Glos Users in South Glos Homes,Permanent Nursing,Fshc  1St Floor,632.64, 28-Aug-2018
1623,Revenue,CAHD,Bed Purchasing - North,Permanent Nursing,Fshc  1St Floor,2456.52, 28-Aug-2018
1624,Revenue,CAHD,South Glos Users in South Glos Homes,Permanent Nursing,Fshc  1St Floor,632.64, 28-Aug-2018
1625,Revenue,CAHD,South Glos Users in South Glos Homes,Permanent Nursing,Fshc  1St Floor,632.64, 28-Aug-2018
1626,Revenue,CAHD,Bed Purchasing - South,Permanent Nursing,Fshc  1St Floor,2554.80, 28-Aug-2018
1627,Revenue,CAHD,South Glos Users in South Glos Homes,Permanent Nursing,Fshc  1St Floor,632.64, 28-Aug-2018
1628,Revenue,CAHD,Bed Purchasing - Southmead Hospital,Permanent Nursing,Fshc  1St Floor,2380.96, 28-Aug-2018
1629,Revenue,CAHD,South Glos Users in South Glos Homes,Permanent Nursing,Fshc  1St Floor,632.64, 28-Aug-2018
1630,Revenue,CAHD,Bed Purchasing - South,Permanent Nursing,Fshc  1St Floor,2477.40, 28-Aug-2018
1631,Revenue,CAHD,South Glos Users in South Glos Homes,Permanent Nursing,Fshc  1St Floor,632.64, 28-Aug-2018
1632,Revenue,CAHD,South Glos Users in South Glos Homes,Permanent Nursing,Fshc  1St Floor,632.64, 28-Aug-2018
1633,Revenue,CAHD,Bed Purchasing - South,Permanent Nursing,Fshc  1St Floor,2547.52, 28-Aug-2018
1634,Revenue,CAHD,South Glos Users in South Glos Homes,Permanent Nursing,Fshc  1St Floor,632.64, 28-Aug-2018
1635,Revenue,CAHD,Bed Purchasing - Southmead Hospital,Permanent Nursing,Fshc  1St Floor,2310.44, 28-Aug-2018
1636,Revenue,CAHD,South Glos Users in South Glos Homes,Permanent Nursing,Fshc  1St Floor,632.64, 28-Aug-2018
1637,Revenue,CAHD,South Glos Users in South Glos Homes,Permanent Nursing,Fshc  1St Floor,632.64, 28-Aug-2018
1638,Revenue,CAHD,Bed Purchasing - South,Permanent Nursing,Fshc  1St Floor,2310.44, 28-Aug-2018
1639,Revenue,CAHD,South Glos Users in South Glos Homes,Permanent Nursing,Fshc  1St Floor,632.64, 28-Aug-2018
1640,Revenue,CAHD,South Glos Users in South Glos Homes,Permanent Nursing,Fshc  1St Floor,632.64, 28-Aug-2018
1641,Revenue,CAHD,Bed Purchasing - Southmead Hospital,Permanent Nursing,Fshc  1St Floor,2998.16, 28-Aug-2018
1642,Revenue,CAHD,Bed Purchasing - Southmead Hospital,Permanent Nursing,Fshc  1St Floor,2445.60, 28-Aug-2018
1643,Revenue,CAHD,South Glos Users in South Glos Homes,Permanent Nursing,Fshc  1St Floor,632.64, 28-Aug-2018
1644,Revenue,CAHD,South Glos Users in South Glos Homes,Permanent Nursing,Fshc  1St Floor,632.64, 28-Aug-2018
1645,Revenue,CAHD,Bed Purchasing - Southmead Hospital,Permanent Nursing,Fshc  1St Floor,2311.20, 28-Aug-2018
1646,Revenue,CAHD,South Glos Users in South Glos Homes,Permanent Nursing,Fshc  1St Floor,632.64, 28-Aug-2018
1647,Revenue,CAHD,South Glos Users in South Glos Homes,Permanent Nursing,Fshc  1St Floor,632.64, 28-Aug-2018
1648,Revenue,CAHD,South Glos Users in South Glos Homes,Permanent Nursing,Fshc  1St Floor,632.64, 28-Aug-2018
1649,Revenue,CAHD,Bed Purchasing - Southmead Hospital,Permanent Residential,Fshc  1St Floor,2343.72, 28-Aug-2018
1650,Revenue,CAHD,South Glos Users in South Glos Homes,Permanent Nursing,Fshc  1St Floor,632.64, 28-Aug-2018
1651,Revenue,CAHD,South Glos Users in South Glos Homes,Permanent Nursing,Fshc  1St Floor,632.64, 28-Aug-2018
1652,Revenue,CAHD,Bed Purchasing - Southmead Hospital,Permanent Residential,Fshc  1St Floor,2400.00, 28-Aug-2018
1653,Revenue,CAHD,South Glos Users in South Glos Homes,Permanent Nursing,Fshc  1St Floor,632.64, 28-Aug-2018
1654,Revenue,CAHD,Bed Purchasing - South,Permanent Residential,Fshc  1St Floor,2180.68, 28-Aug-2018
1655,Revenue,CAHD,Bed Purchasing - Southmead Hospital,Permanent Nursing,Fshc  1St Floor,2380.96, 28-Aug-2018
1656,Revenue,CAHD,South Glos Users in South Glos Homes,Permanent Nursing,Fshc  1St Floor,632.64, 28-Aug-2018
1657,Revenue,CAHD,Bed Purchasing - Southmead Hospital,Permanent Residential,Fshc  1St Floor,2309.73, 28-Aug-2018
1658,Revenue,CAHD,Bed Purchasing - Southmead Hospital,Permanent Nursing,Fshc  1St Floor,2310.44, 28-Aug-2018
1659,Revenue,CAHD,South Glos Users in South Glos Homes,Permanent Nursing,Fshc  1St Floor,632.64, 28-Aug-2018
1660,Revenue,CAHD,Bed Purchasing - South,Permanent Nursing,Fshc  1St Floor,2683.84, 28-Aug-2018
1661,Revenue,CAHD,South Glos Users in South Glos Homes,Permanent Nursing,Fshc  1St Floor,632.64, 28-Aug-2018
1662,Revenue,CAHD,Bed Purchasing - South,Permanent Nursing,Fshc  1St Floor,2310.44, 28-Aug-2018
1663,Revenue,CAHD,South Glos Users in South Glos Homes,Permanent Nursing,Fshc  1St Floor,632.64, 28-Aug-2018
1664,Revenue,CAHD,South Glos Users in South Glos Homes,Permanent Nursing,Fshc  1St Floor,632.64, 28-Aug-2018
1665,Revenue,CAHD,Bed Purchasing - South,Permanent Residential,Fshc  1St Floor,2223.84, 28-Aug-2018
1666,Revenue,CAHD,Bed Purchasing - South,Permanent Nursing,Fshc  1St Floor,2233.76, 28-Aug-2018
1667,Revenue,CAHD,Bed purchasing - Elderly S117 - South,Permanent Nursing,Fshc  1St Floor,2233.76, 28-Aug-2018
1668,Revenue,CAHD,Bed Purchasing - South,Permanent Nursing,Fshc  1St Floor,3509.64, 28-Aug-2018
1669,Revenue,CAHD,Bed Purchasing - Southmead Hospital,Permanent Nursing,Fshc  1St Floor,2233.76, 28-Aug-2018
1670,Revenue,CAHD,Bed Purchasing - Southmead Hospital,Permanent Nursing,Fshc  1St Floor,3668.40, 28-Aug-2018
1671,Revenue,CAHD,Bed Purchasing - Southmead Hospital,Permanent Nursing,Fshc  1St Floor,3158.92, 28-Aug-2018
1672,Revenue,CAHD,Bed Purchasing - Southmead Hospital,Permanent Nursing,Fshc  1St Floor,2233.76, 28-Aug-2018
1673,Revenue,CAHD,Bed Purchasing - Southmead Hospital,Respite Emergency - Residential,Fshc  1St Floor,3000.00, 28-Aug-2018
1674,Revenue,CAHD,Bed Purchasing - Southmead Hospital,Respite Emergency - Residential,Fshc  1St Floor,3000.00, 28-Aug-2018
1675,Revenue,CAHD,Bed Purchasing - South,Permanent Nursing,Fshc  1St Floor,2233.76, 28-Aug-2018
1676,Revenue,CAHD,Bed Purchasing - South,Permanent Residential,Fshc  1St Floor,3656.28, 28-Aug-2018
1677,Revenue,CAHD,Bed Purchasing - Southmead Hospital,Fees & Charges Income - General,Fshc  1St Floor,3173.76, 28-Aug-2018
1678,Revenue,CAHD,Bed Purchasing - North,Permanent Nursing,Fshc  1St Floor,2235.88, 28-Aug-2018
1679,Revenue,CAHD,Bed Purchasing - Central,Respite Emergency - Residential,Fshc  1St Floor,632.75, 28-Aug-2018
1680,Revenue,CAHD,Bed Purchasing - Southmead Hospital,Permanent Nursing,Fshc  1St Floor,4076.00, 28-Aug-2018
1681,Revenue,CAHD,Bed Purchasing - North,Permanent Nursing,Fshc  1St Floor,2264.96, 28-Aug-2018
1682,Revenue,CAHD,Bed Purchasing - North,Permanent Nursing,Fshc  1St Floor,2345.56, 28-Aug-2018
1683,Revenue,CAHD,Bed Purchasing - North,Permanent Nursing,Fshc  1St Floor,2309.04, 28-Aug-2018
1684,Revenue,CAHD,Bed Purchasing - North,Permanent Residential,Fshc  1St Floor,1890.36, 28-Aug-2018
1685,Revenue,CAHD,Bed Purchasing - Southmead Hospital,Respite Planned - Residential,Fshc  1St Floor,1800.00, 28-Aug-2018
1686,Revenue,CAHD,CSC - Agency Fostering,Foster Parent Allowances,Fusion Fostering Ltd,4096.43, 28-Aug-2018
1687,Revenue,CAHD,CSC - Corporate Parenting Manager,Agency Staff (Admin/Support Staff) Pay,Gatenby Sanderson Limited,2030.00, 24-Aug-2018
1688,Revenue,CAHD,Alexandra Way,Premises Maintenance by Contractor,Geoff Lewis Flooring Limited,480.00, 13-Aug-2018
1689,Revenue,CAHD,Bed Purchasing - South,Permanent Residential,Gladstone House,5859.20, 28-Aug-2018
1690,Revenue,CAHD,Bed Purchasing - North,Permanent Residential,Glan Y Felin,6643.96, 28-Aug-2018
1691,Revenue,CAHD,Bed Purchasing - South,Permanent Residential,Glasallt Fawr,5219.16, 28-Aug-2018
1692,Revenue,CAHD,Bed Purchasing - North,Permanent Nursing,Glebe House Nursing Home,3578.28, 28-Aug-2018
1693,Revenue,CAHD,South Glos Users in South Glos Homes,Permanent Nursing,Glebe House Nursing Home,632.64, 28-Aug-2018
1694,Revenue,CAHD,South Glos Users in South Glos Homes,Permanent Nursing,Glebe House Nursing Home,632.64, 28-Aug-2018
1695,Revenue,CAHD,South Glos Users in South Glos Homes,Permanent Nursing,Glebe House Nursing Home,632.64, 28-Aug-2018
1696,Revenue,CAHD,Bed Purchasing - North,Permanent Nursing,Glebe House Nursing Home,3789.28, 28-Aug-2018
1697,Revenue,CAHD,South Glos Users in South Glos Homes,Permanent Nursing,Glebe House Nursing Home,632.64, 28-Aug-2018
1698,Revenue,CAHD,South Glos Users in South Glos Homes,Permanent Nursing,Glebe House Nursing Home,632.64, 28-Aug-2018
1699,Revenue,CAHD,South Glos Users in South Glos Homes,Permanent Nursing,Glebe House Nursing Home,632.64, 28-Aug-2018
1700,Revenue,CAHD,South Glos Users in South Glos Homes,Permanent Nursing,Glebe House Nursing Home,632.64, 28-Aug-2018
1701,Revenue,CAHD,Bed Purchasing - North,Fees & Charges Income - General,Glebe House Nursing Home,13729.19, 28-Aug-2018
1702,Revenue,CAHD,Bed Purchasing - North,Permanent Residential,Glebe House Nursing Home,3696.32, 28-Aug-2018
1703,Revenue,CAHD,Bed Purchasing - North,Fees & Charges Income - General,Glebe House Nursing Home,4349.59, 28-Aug-2018
1704,Revenue,CAHD,Bed Purchasing - North,Permanent Residential,Glebe House Nursing Home,16633.44, 28-Aug-2018
1705,Revenue,CAHD,Bed Purchasing - North,Permanent Residential,Glebe House Nursing Home,10752.65, 28-Aug-2018
1706,Revenue,CAHD,Bed Purchasing - North,Fees & Charges Income - General,Glebe House Nursing Home,1574.99, 28-Aug-2018
1707,Revenue,CAHD,Bed Purchasing - North,Fees & Charges Income - General,Glebe House Nursing Home,2466.07, 28-Aug-2018
1708,Revenue,CAHD,Bed Purchasing - North,Permanent Residential,Glebe House Nursing Home,3744.00, 28-Aug-2018
1709,Revenue,CAHD,South Glos Users in South Glos Homes,Permanent Nursing,Glebe House Nursing Home,632.64, 28-Aug-2018
1710,Revenue,CAHD,South Glos Users in South Glos Homes,Permanent Nursing,Glebe House Nursing Home,632.64, 28-Aug-2018
1711,Revenue,CAHD,South Glos Users in South Glos Homes,Permanent Nursing,Glebe House Nursing Home,632.64, 28-Aug-2018
1712,Revenue,CAHD,South Glos Users in South Glos Homes,Permanent Nursing,Glebe House Nursing Home,632.64, 28-Aug-2018
1713,Revenue,CAHD,South Glos Users in South Glos Homes,Permanent Nursing,Glebe House Nursing Home,632.64, 28-Aug-2018
1714,Revenue,CAHD,South Glos Users in South Glos Homes,Permanent Nursing,Glebe House Nursing Home,632.64, 28-Aug-2018
1715,Revenue,CAHD,Bed Purchasing - North,Permanent Nursing,Glebe House Nursing Home,3867.36, 28-Aug-2018
1716,Revenue,CAHD,South Glos Users in South Glos Homes,Permanent Nursing,Glebe House Nursing Home,632.64, 28-Aug-2018
1717,Revenue,CAHD,South Glos Users in South Glos Homes,Permanent Nursing,Glebe House Nursing Home,632.64, 28-Aug-2018
1718,Revenue,CAHD,Bed Purchasing - North,Permanent Nursing,Glebe House Nursing Home,3420.00, 28-Aug-2018
1719,Revenue,CAHD,South Glos Users in South Glos Homes,Permanent Nursing,Glebe House Nursing Home,632.64, 28-Aug-2018
1720,Revenue,CAHD,Bed Purchasing - Southmead Hospital,Respite Planned - Nursing,Glenview,6571.43, 28-Aug-2018
1721,Revenue,CAHD,Bed Purchasing - South,Permanent Nursing,Glenview,3900.00, 28-Aug-2018
1722,Revenue,CAHD,Sexual Health,Other Small Contracts,Gloucestershire Care Services NHST,830.24, 24-Aug-2018
1723,Revenue,CAHD,Bed Purchasing - South,Permanent Residential,Goldcare House,4625.52, 28-Aug-2018
1724,Revenue,CAHD,Bed Purchasing - Southmead Hospital,Permanent Residential,Gordena Care Home,3925.68, 28-Aug-2018
1725,Revenue,CAHD,Bed Purchasing - South,Permanent Residential,Gordena Care Home,2635.96, 28-Aug-2018
1726,Revenue,CAHD,Bed Purchasing - South,Permanent Residential,Gordena Care Home,3752.80, 28-Aug-2018
1727,Revenue,CAHD,Bed Purchasing - South,Permanent Residential,Gordena Care Home,3764.24, 28-Aug-2018
1728,Revenue,CAHD,Bed Purchasing - South,Permanent Residential,Gordena Care Limited,4918.60, 28-Aug-2018
1729,Revenue,CAHD,Bed purchasing - S28A Under 65 - South,Permanent Residential,Gordena Care Limited,4783.60, 28-Aug-2018
1730,Revenue,CAHD,Bed Purchasing - North,Permanent Residential,Gordena Care Limited,4985.60, 28-Aug-2018
1731,Revenue,CAHD,Bed Purchasing - South,Fees & Charges Income - General,Gracefields Nursing Home,3043.23, 28-Aug-2018
1732,Revenue,CAHD,Bed Purchasing - South,Fees & Charges Income - General,Gracefields Nursing Home,3450.96, 28-Aug-2018
1733,Revenue,CAHD,South Glos Users in South Glos Homes,Permanent Nursing,Gracefields Nursing Home,632.64, 28-Aug-2018
1734,Revenue,CAHD,South Glos Users in South Glos Homes,Permanent Nursing,Gracefields Nursing Home,632.64, 28-Aug-2018
1735,Revenue,CAHD,Bed Purchasing - South,Permanent Nursing,Gracefields Nursing Home,3707.36, 28-Aug-2018
1736,Revenue,CAHD,South Glos Users in South Glos Homes,Permanent Nursing,Gracefields Nursing Home,632.64, 28-Aug-2018
1737,Revenue,CAHD,South Glos Users in South Glos Homes,Permanent Nursing,Gracefields Nursing Home,632.64, 28-Aug-2018
1738,Revenue,CAHD,Bed Purchasing - Southmead Hospital,Permanent Nursing,Gracefields Nursing Home,3566.52, 28-Aug-2018
1739,Revenue,CAHD,South Glos Users in South Glos Homes,Permanent Nursing,Gracefields Nursing Home,632.64, 28-Aug-2018
1740,Revenue,CAHD,South Glos Users in South Glos Homes,Permanent Nursing,Gracefields Nursing Home,632.64, 28-Aug-2018
1741,Revenue,CAHD,Bed purchasing - Elderly S117 - South,Permanent Nursing,Gracefields Nursing Home,2492.16, 28-Aug-2018
1742,Revenue,CAHD,South Glos Users in South Glos Homes,Permanent Nursing,Gracefields Nursing Home,632.64, 28-Aug-2018
1743,Revenue,CAHD,Bed Purchasing - South,Permanent Nursing,Gracefields Nursing Home,3668.40, 28-Aug-2018
1744,Revenue,CAHD,South Glos Users in South Glos Homes,Permanent Nursing,Gracefields Nursing Home,632.64, 28-Aug-2018
1745,Revenue,CAHD,Bed Purchasing - South,Permanent Nursing,Gracefields Nursing Home,3153.52, 28-Aug-2018
1746,Revenue,CAHD,South Glos Users in South Glos Homes,Permanent Nursing,Gracefields Nursing Home,632.64, 28-Aug-2018
1747,Revenue,CAHD,South Glos Users in South Glos Homes,Permanent Nursing,Gracefields Nursing Home,632.64, 28-Aug-2018
1748,Revenue,CAHD,South Glos Users in South Glos Homes,Permanent Nursing,Gracefields Nursing Home,632.64, 28-Aug-2018
1749,Revenue,CAHD,Bed Purchasing - South,Permanent Nursing,Gracefields Nursing Home,3464.60, 28-Aug-2018
1750,Revenue,CAHD,South Glos Users in South Glos Homes,Permanent Nursing,Gracefields Nursing Home,632.64, 28-Aug-2018
1751,Revenue,CAHD,Bed Purchasing - Southmead Hospital,Permanent Nursing,Gracefields Nursing Home,3464.60, 28-Aug-2018
1752,Revenue,CAHD,South Glos Users in South Glos Homes,Permanent Nursing,Gracefields Nursing Home,632.64, 28-Aug-2018
1753,Revenue,CAHD,South Glos Users in South Glos Homes,Permanent Nursing,Gracefields Nursing Home,632.64, 28-Aug-2018
1754,Revenue,CAHD,South Glos Users in South Glos Homes,Permanent Nursing,Gracefields Nursing Home,632.64, 28-Aug-2018
1755,Revenue,CAHD,Bed Purchasing - Southmead Hospital,Permanent Nursing,Gracefields Nursing Home,3567.36, 28-Aug-2018
1756,Revenue,CAHD,Bed Purchasing - Southmead Hospital,Permanent Nursing,Gracefields Nursing Home,891.84, 28-Aug-2018
1757,Revenue,CAHD,South Glos Users in South Glos Homes,Permanent Nursing,Gracefields Nursing Home,632.64, 28-Aug-2018
1758,Revenue,CAHD,South Glos Users in South Glos Homes,Permanent Nursing,Gracefields Nursing Home,632.64, 28-Aug-2018
1759,Revenue,CAHD,Bed Purchasing - South,Permanent Nursing,Gracefields Nursing Home,2675.52, 28-Aug-2018
1760,Revenue,CAHD,Bed Purchasing - South,Permanent Nursing,Gracefields Nursing Home,891.84, 28-Aug-2018
1761,Revenue,CAHD,Bed Purchasing - South,Permanent Nursing,Gracefields Nursing Home,891.84, 28-Aug-2018
1762,Revenue,CAHD,South Glos Users in South Glos Homes,Permanent Nursing,Gracefields Nursing Home,632.64, 28-Aug-2018
1763,Revenue,CAHD,South Glos Users in South Glos Homes,Permanent Nursing,Gracefields Nursing Home,632.64, 28-Aug-2018
1764,Revenue,CAHD,Bed Purchasing - Southmead Hospital,Permanent Nursing,Gracefields Nursing Home,3566.52, 28-Aug-2018
1765,Revenue,CAHD,Bed Purchasing - South,Permanent Nursing,Gracefields Nursing Home,3736.46, 28-Aug-2018
1766,Revenue,CAHD,Bed Purchasing - South,Permanent Nursing,Gracefields Nursing Home,3487.36, 28-Aug-2018
1767,Revenue,CAHD,South Glos Users in South Glos Homes,Permanent Nursing,Gracefields Nursing Home,632.64, 28-Aug-2018
1768,Revenue,CAHD,Bed Purchasing - South,Permanent Nursing,Gracefields Nursing Home,3129.76, 28-Aug-2018
1769,Revenue,CAHD,South Glos Users in South Glos Homes,Permanent Nursing,Gracefields Nursing Home,632.64, 28-Aug-2018
1770,Revenue,CAHD,South Glos Users in South Glos Homes,Permanent Nursing,Gracefields Nursing Home,632.64, 28-Aug-2018
1771,Revenue,CAHD,South Glos Users in South Glos Homes,Permanent Nursing,Gracefields Nursing Home,632.64, 28-Aug-2018
1772,Revenue,CAHD,South Glos Users in South Glos Homes,Permanent Nursing,Gracefields Nursing Home,632.64, 28-Aug-2018
1773,Revenue,CAHD,Bed Purchasing - Southmead Hospital,Permanent Nursing,Gracefields Nursing Home,3153.52, 28-Aug-2018
1774,Revenue,CAHD,South Glos Users in South Glos Homes,Permanent Nursing,Gracefields Nursing Home,632.64, 28-Aug-2018
1775,Revenue,CAHD,Bed Purchasing - South,Permanent Nursing,Gracefields Nursing Home,3026.56, 28-Aug-2018
1776,Revenue,CAHD,South Glos Users in South Glos Homes,Permanent Nursing,Gracefields Nursing Home,632.64, 28-Aug-2018
1777,Revenue,CAHD,South Glos Users in South Glos Homes,Permanent Nursing,Gracefields Nursing Home,632.64, 28-Aug-2018
1778,Revenue,CAHD,South Glos Users in South Glos Homes,Permanent Nursing,Gracefields Nursing Home,632.64, 28-Aug-2018
1779,Revenue,CAHD,South Glos Users in South Glos Homes,Permanent Nursing,Gracefields Nursing Home,632.64, 28-Aug-2018
1780,Revenue,CAHD,South Glos Users in South Glos Homes,Permanent Nursing,Gracefields Nursing Home,632.64, 28-Aug-2018
1781,Revenue,CAHD,South Glos Users in South Glos Homes,Permanent Nursing,Gracefields Nursing Home,632.64, 28-Aug-2018
1782,Revenue,CAHD,Bed Purchasing - Southmead Hospital,Permanent Nursing,Gracefields Nursing Home,1843.68, 28-Aug-2018
1783,Revenue,CAHD,Bed Purchasing - Southmead Hospital,Permanent Nursing,Gracefields Nursing Home,3400.00, 28-Aug-2018
1784,Revenue,CAHD,South Glos Users in South Glos Homes,Permanent Nursing,Gracefields Nursing Home,632.64, 28-Aug-2018
1785,Revenue,CAHD,Bed Purchasing - South,Permanent Nursing,Gracefields Nursing Home,2492.16, 28-Aug-2018
1786,Revenue,CAHD,South Glos Users in South Glos Homes,Permanent Nursing,Gracefields Nursing Home,632.64, 28-Aug-2018
1787,Revenue,CAHD,Bed Purchasing - South,Permanent Nursing,Gracefields Nursing Home,3464.60, 28-Aug-2018
1788,Revenue,CAHD,South Glos Users in South Glos Homes,Permanent Nursing,Gracefields Nursing Home,632.64, 28-Aug-2018
1789,Revenue,CAHD,Bed Purchasing - South,Fees & Charges Income - General,Gracefields Nursing Home,953.93, 28-Aug-2018
1790,Revenue,CAHD,South Glos Users in South Glos Homes,Permanent Nursing,Gracefields Nursing Home,632.64, 28-Aug-2018
1791,Revenue,CAHD,South Glos Users in South Glos Homes,Permanent Nursing,Gracefields Nursing Home,632.64, 28-Aug-2018
1792,Revenue,CAHD,Bed Purchasing - Southmead Hospital,Permanent Nursing,Gracefields Nursing Home,3336.20, 28-Aug-2018
1793,Revenue,CAHD,South Glos Users in South Glos Homes,Permanent Nursing,Gracefields Nursing Home,632.64, 28-Aug-2018
1794,Revenue,CAHD,Sexual Health,Other Small Contracts,Great Western Hospitals NHS FT,738.95, 24-Aug-2018
1795,Revenue,CAHD,Sexual Health,Other Small Contracts,Great Western Hospitals NHS FT,1118.36, 24-Aug-2018
1796,Revenue,CAHD,Academy Resource Base Funding,Other Public Bodies,Greenshaw Learning Trust T/A Yate Academy,1013.74, 24-Aug-2018
1797,Revenue,CAHD,Academy Resource Base Funding,Other Public Bodies,Greenshaw Learning Trust T/A Yate Academy,1702.96, 24-Aug-2018
1798,Revenue,CAHD,Academy Resource Base Funding,Other Public Bodies,Greenshaw Learning Trust T/A Yate Academy,1540.83, 24-Aug-2018
1799,Revenue,CAHD,Academy Resource Base Funding,Other Public Bodies,Greenshaw Learning Trust T/A Yate Academy,1175.88, 24-Aug-2018
1800,Revenue,CAHD,Academy Resource Base Funding,Other Public Bodies,Greenshaw Learning Trust T/A Yate Academy,1175.88, 24-Aug-2018
1801,Revenue,CAHD,Academy Resource Base Funding,Other Public Bodies,Greenshaw Learning Trust T/A Yate Academy,648.71, 24-Aug-2018
1802,Revenue,CAHD,Academy Resource Base Funding,Other Public Bodies,Greenshaw Learning Trust T/A Yate Academy,1702.96, 24-Aug-2018
1803,Revenue,CAHD,Academy Resource Base Funding,Other Public Bodies,Greenshaw Learning Trust T/A Yate Academy,1540.83, 24-Aug-2018
1804,Revenue,CAHD,Statemented Support Academies,Schools Funding,Greenshaw Learning Trust T/A Yate Academy,694.91, 23-Aug-2018
1805,Revenue,CAHD,Statemented Support Academies,Schools Funding,Greenshaw Learning Trust T/A Yate Academy,1213.74, 23-Aug-2018
1806,Revenue,CAHD,Statemented Support Academies,Schools Funding,Greenshaw Learning Trust T/A Yate Academy,848.20, 23-Aug-2018
1807,Revenue,CAHD,Statemented Support Academies,Schools Funding,Greenshaw Learning Trust T/A Yate Academy,1461.37, 23-Aug-2018
1808,Revenue,CAHD,Statemented Support Academies,Schools Funding,Greenshaw Learning Trust T/A Yate Academy,1213.74, 23-Aug-2018
1809,Revenue,CAHD,Statemented Support Academies,Schools Funding,Greenshaw Learning Trust T/A Yate Academy,1213.74, 23-Aug-2018
1810,Revenue,CAHD,Statemented Support Academies,Schools Funding,Greenshaw Learning Trust T/A Yate Academy,977.91, 23-Aug-2018
1811,Revenue,CAHD,Statemented Support Academies,Schools Funding,Greenshaw Learning Trust T/A Yate Academy,942.53, 23-Aug-2018
1812,Revenue,CAHD,Statemented Support Academies,Schools Funding,Greenshaw Learning Trust T/A Yate Academy,883.58, 23-Aug-2018
1813,Revenue,CAHD,Statemented Support Academies,Schools Funding,Greenshaw Learning Trust T/A Yate Academy,730.28, 23-Aug-2018
1814,Revenue,CAHD,Statemented Support Academies,Schools Funding,Greenshaw Learning Trust T/A Yate Academy,765.66, 23-Aug-2018
1815,Revenue,CAHD,Statemented Support Academies,Schools Funding,Greenshaw Learning Trust T/A Yate Academy,694.91, 23-Aug-2018
1816,Revenue,CAHD,Bed Purchasing - North,Permanent Residential,Greensleeves,2075.40, 28-Aug-2018
1817,Revenue,CAHD,Bed Purchasing - South,Permanent Residential,Gwendoline House,2613.96, 28-Aug-2018
1818,Revenue,CAHD,Bed Purchasing - South,Permanent Residential,Gwendoline House,2425.24, 28-Aug-2018
1819,Revenue,CAHD,Bed Purchasing - Central,Respite Planned - Residential,Gwendoline House,1151.43, 28-Aug-2018
1820,Revenue,CAHD,Bed Purchasing - South,Permanent Residential,Gwendoline House,2415.44, 28-Aug-2018
1821,Revenue,CAHD,Bed Purchasing - South,Permanent Residential,Gwendoline House,2425.24, 28-Aug-2018
1822,Revenue,CAHD,Bed Purchasing - Southmead Hospital,Permanent Residential,Gwendoline House,2144.76, 28-Aug-2018
1823,Revenue,CAHD,Supporting People Programme,Grants to Voluntary Bodies,Habinteg Housing Association,678.00, 01-Aug-2018
1824,Revenue,CAHD,Supporting People Programme,Grants to Voluntary Bodies,Habinteg Housing Association,678.00, 31-Aug-2018
1825,Revenue,CAHD,Social Lettings Agency,Fees - General,Individual,13.13, 24-Aug-2018
1826,Revenue,CAHD,Social Lettings Agency,Other Supplies & Services,Individual,577.72, 24-Aug-2018
1827,Revenue,CAHD,Future Bright,Fees - General,Hands on Babies Ltd,499.00, 22-Aug-2018
1828,Revenue,CAHD,Sexual Health,Other Small Contracts,Hanham Health,1548.00, 24-Aug-2018
1829,Revenue,CAHD,NHS Health Checks,Other Small Contracts,Hanham Health,3289.00, 10-Aug-2018
1830,Revenue,CAHD,Sexual Health,Other Small Contracts,Hanham Health,2656.50, 03-Aug-2018
1831,Revenue,CAHD,Sexual Health,Other Small Contracts,Hanham Health,1114.98, 03-Aug-2018
1832,Revenue,CAHD,Supporting People Programme,Grants to Voluntary Bodies,Hanover Housing Association,1015.00, 31-Aug-2018
1833,Revenue,CAHD,Supporting People Programme,Grants to Voluntary Bodies,Hanover Housing Association,1015.00, 31-Aug-2018
1834,Revenue,CAHD,Home Care - Elderly - South,Other Supplies & Services,Hanover Housing Association,1260.76, 10-Aug-2018
1835,Revenue,CAHD,Home Care - Elderly - South,Other Supplies & Services,Hanover Housing Association,958.24, 10-Aug-2018
1836,Revenue,CAHD,Home Care - Elderly - North,Other Supplies & Services,HAS Technology Limited T/A CM2000,1316.00, 02-Aug-2018
1837,Revenue,CAHD,Bed Purchasing - Southmead Hospital,Permanent Nursing,Hazelwood Gardens Nursing Home,2658.04, 28-Aug-2018
1838,Revenue,CAHD,Bed Purchasing - Southmead Hospital,Permanent Nursing,Hazelwood Gardens Nursing Home,2288.56, 28-Aug-2018
1839,Revenue,CAHD,Bed Purchasing - Southmead Hospital,Permanent Residential,Hc-One Ltd,2181.00, 28-Aug-2018
1840,Revenue,CAHD,Bed Purchasing - Southmead Hospital,Permanent Nursing,Hc-One Ltd,2816.28, 28-Aug-2018
1841,Revenue,CAHD,Bed Purchasing - North,Permanent Nursing,Hc-One Ltd,2156.56, 28-Aug-2018
1842,Revenue,CAHD,Bed Purchasing - Central,Respite Planned - Residential,Hc-One Ltd,953.37, 28-Aug-2018
1843,Revenue,CAHD,South Glos Users in South Glos Homes,Permanent Nursing,Hc-One Ltd,632.64, 28-Aug-2018
1844,Revenue,CAHD,Bed Purchasing - North,Permanent Nursing,Hc-One Ltd,2171.08, 28-Aug-2018
1845,Revenue,CAHD,Bed Purchasing - Central,Permanent Residential,Hc-One Ltd,2224.52, 28-Aug-2018
1846,Revenue,CAHD,Bed Purchasing - North,Respite Planned - Residential,Hc-One Ltd,2224.52, 28-Aug-2018
1847,Revenue,CAHD,Bed Purchasing - Central,Permanent Residential,Hc-One Ltd,2224.52, 28-Aug-2018
1848,Revenue,CAHD,Bed Purchasing - Central,Permanent Residential,Hc-One Ltd,2780.65, 28-Aug-2018
1849,Revenue,CAHD,Bed Purchasing - Central,Fees & Charges Income - General,Hc-One Ltd,670.77, 28-Aug-2018
1850,Revenue,CAHD,Bed Purchasing - Southmead Hospital,Permanent Nursing,Hc-One Ltd,2609.44, 28-Aug-2018
1851,Revenue,CAHD,Bed Purchasing - Southmead Hospital,Permanent Nursing,Head Office,2412.88, 28-Aug-2018
1852,Revenue,CAHD,Home Care - Elderly - North,Day Care / Social Activities,Head Office,563.52, 28-Aug-2018
1853,Revenue,CAHD,Home Care - Elderly - North,Day Care / Social Activities,Head Office,845.28, 28-Aug-2018
1854,Revenue,CAHD,Home Care - Elderly - South,Day Care / Social Activities,Headway Bristol,264.48, 16-Aug-2018
1855,Revenue,CAHD,Home Care - Elderly - South,Other Small Contracts,Headway Bristol,176.32, 16-Aug-2018
1856,Revenue,CAHD,Home Care - Elderly - North,Day Care / Social Activities,Headway Bristol,727.32, 16-Aug-2018
1857,Revenue,CAHD,Home Care - Elderly - North,Other Small Contracts,Headway Bristol,462.84, 16-Aug-2018
1858,Revenue,CAHD,Younger MH non-res purchasing,Day Care / Social Activities,Headway Bristol,44.08, 16-Aug-2018
1859,Revenue,CAHD,Home Care - Elderly - South,Day Care / Social Activities,Headway Bristol,330.60, 06-Aug-2018
1860,Revenue,CAHD,Home Care - Elderly - South,Other Small Contracts,Headway Bristol,264.48, 06-Aug-2018
1861,Revenue,CAHD,Home Care - Elderly - North,Day Care / Social Activities,Headway Bristol,903.64, 06-Aug-2018
1862,Revenue,CAHD,Home Care - Elderly - North,Other Small Contracts,Headway Bristol,462.84, 06-Aug-2018
1863,Revenue,CAHD,Younger MH non-res purchasing,Day Care / Social Activities,Headway Bristol,88.16, 06-Aug-2018
1864,Revenue,CAHD,Home Care - Elderly - South,Day Care / Social Activities,Headway Bristol,330.60, 13-Aug-2018
1865,Revenue,CAHD,Home Care - Elderly - South,Other Small Contracts,Headway Bristol,132.24, 13-Aug-2018
1866,Revenue,CAHD,Home Care - Elderly - North,Day Care / Social Activities,Headway Bristol,815.48, 13-Aug-2018
1867,Revenue,CAHD,Home Care - Elderly - North,Other Small Contracts,Headway Bristol,462.84, 13-Aug-2018
1868,Revenue,CAHD,Younger MH non-res purchasing,Day Care / Social Activities,Headway Bristol,44.08, 13-Aug-2018
1869,Revenue,CAHD,Home Care - Elderly - South,Day Care / Social Activities,Headway Bristol,330.60, 20-Aug-2018
1870,Revenue,CAHD,Home Care - Elderly - South,Other Small Contracts,Headway Bristol,264.48, 20-Aug-2018
1871,Revenue,CAHD,Home Care - Elderly - North,Day Care / Social Activities,Headway Bristol,903.64, 20-Aug-2018
1872,Revenue,CAHD,Home Care - Elderly - North,Other Small Contracts,Headway Bristol,330.60, 20-Aug-2018
1873,Revenue,CAHD,Younger MH non-res purchasing,Day Care / Social Activities,Headway Bristol,88.16, 20-Aug-2018
1874,Revenue,CAHD,Home Care - Elderly - South,Day Care / Social Activities,Headway Bristol,132.24, 29-Aug-2018
1875,Revenue,CAHD,Home Care - Elderly - South,Other Small Contracts,Headway Bristol,132.24, 29-Aug-2018
1876,Revenue,CAHD,Home Care - Elderly - North,Day Care / Social Activities,Headway Bristol,595.08, 29-Aug-2018
1877,Revenue,CAHD,Home Care - Elderly - North,Other Small Contracts,Headway Bristol,396.72, 29-Aug-2018
1878,Revenue,CAHD,Younger MH non-res purchasing,Day Care / Social Activities,Headway Bristol,88.16, 29-Aug-2018
1879,Revenue,CAHD,Home Care - Elderly - South,Other Small Contracts,Helping Hands Homecare,685.50, 24-Aug-2018
1880,Revenue,CAHD,Home Care - Elderly - North,Other Small Contracts,Helping Hands Homecare,3429.70, 24-Aug-2018
1881,Revenue,CAHD,Placements OLA Special Schools and RB,Other L.A.'s - General,Henbury Court Primary Academy,819.17, 29-Aug-2018
1882,Revenue,CAHD,S117 Placements PCT,Permanent Residential,Hesley Hall,19258.12, 28-Aug-2018
1883,Revenue,CAHD,Bed Purchasing - Central,Permanent Residential,High Border Lodge,2092.00, 28-Aug-2018
1884,Revenue,CAHD,Bed Purchasing - North,Permanent Residential,High Border Lodge,2039.72, 28-Aug-2018
1885,Revenue,CAHD,CSC - Care Leavers Support Costs,"Provisions (Food, etc)",High Street Vouchers Ltd T/A Park Retail Ltd,980.00, 15-Aug-2018
